Workbook

Sheet 綜合報表
A1: 2330 | B1: << 請輸入欲查詢的公司 代碼，並按[更新版面] | P1: ※2013年以後公司皆只公告"以合併為主"之月營收 | V1: =基本資料!A1 -> 2330 台積電 | W1: IFRS-資產負債表 | Z1: 單位:仟元 | AB1: =基本資料!A1 -> 2330 台積電 | AC1: IFRS-損益表(累計) | AE1: 單位:仟元 | AG1: =基本資料!A1 -> 2330 台積電 | AH1: IFRS-損益表、現流表(單季) | AM1: 單位:仟元 | AO1: IFRS-附註揭露 | AS1: 單位:仟元 | BA1: 單位:仟元 | BC1: IFRS新增專區!!!! | BI1: 單位:仟元 | BQ1: 單位:仟元
P2: 月營收 | Q2: 單月營收(佰萬) | R2: 累計營收(佰萬) | S2: 單月MoM | T2: 單月YoY | U2: 合併 | V2: 以合併為主資產負債表 | W2: ='合併財報(累計)'!B2 -> 2018-12-28 | X2: ='合併財報(累計)'!C2 -> 2019-12-31 | Y2: ='合併財報(累計)'!D2 -> 2020-12-31 | Z2: ='合併財報(累計)'!F2 -> 2020-12-31 | AB2: 以合併為主損益表-累計 | AC2: ='合併財報(累計)'!B2 -> 2018-12-28 | AD2: ='合併財報(累計)'!C2 -> 2019-12-31 | AE2: ='合併財報(累計)'!D2 -> 2020-12-31 | AG2: 以合併為主損益表-單季 | AH2: ='合併財報(單季)'!B2 -> 2019-09-27 | AI2: ='合併財報(單季)'!C2 -> 2019-12-31 | AJ2: ='合併財報(單季)'!D2 -> 2020-03-31 | AK2: ='合併財報(單季)'!E2 -> 2020-06-30 | AL2: ='合併財報(單季)'!F2 -> 2020-09-30 | AM2: ='合併財報(單季)'!G2 -> 2020-12-31 | AO2: =IFRS_BS!A1&" IFRS資產負債表" -> 2330 台積電 IFRS資產負債表 | AP2: =IF(IFRS_BS!B2="","",IFRS_BS!B2) -> 2018-12-28 | AQ2: =IF(IFRS_BS!C2="","",IFRS_BS!C2) -> 2019-12-31 | AR2: =IF(IFRS_BS!D2="","",IFRS_BS!D2) -> 2020-12-31 | AS2: =IF(IFRS_BS!F2="","",IFRS_BS!F2) -> 2020-12-31 | AU2: ='IFRS_IS(Q)'!A1&" IFRS損益表(單季)" -> 2330 台積電 IFRS損益表(單季) | AV2: =IF('IFRS_IS(Q)'!B2="","",'IFRS_IS(Q)'!B2) -> 2019-09-27 | AW2: =IF('IFRS_IS(Q)'!C2="","",'IFRS_IS(Q)'!C2) -> 2019-12-31 | AX2: =IF('IFRS_IS(Q)'!D2="","",'IFRS_IS(Q)'!D2) -> 2020-03-31 | AY2: =IF('IFRS_IS(Q)'!E2="","",'IFRS_IS(Q)'!E2) -> 2020-06-30 | AZ2: =IF('IFRS_IS(Q)'!F2="","",'IFRS_IS(Q)'!F2) -> 2020-09-30 | BA2: =IF('IFRS_IS(Q)'!G2="","",'IFRS_IS(Q)'!G2) -> 2020-12-31 | BC2: 其他綜合損益 | BD2: =IF(IFRS_note!B2="","",IFRS_note!B2) -> 2019-09-27 | BE2: =IF(IFRS_note!C2="","",IFRS_note!C2) -> 2019-12-31 | BF2: =IF(IFRS_note!D2="","",IFRS_note!D2) -> 2020-03-31 | BG2: =IF(IFRS_note!E2="","",IFRS_note!E2) -> 2020-06-30 | BH2: =IF(IFRS_note!F2="","",IFRS_note!F2) -> 2020-09-30 | BI2: =IF(IFRS_note!G2="","",IFRS_note!G2) -> 2020-12-31 | BK2: 存貨明細表 | BL2: =IF(IFRS_note!B2="","",IFRS_note!B2) -> 2019-09-27 | BM2: =IF(IFRS_note!C2="","",IFRS_note!C2) -> 2019-12-31 | BN2: =IF(IFRS_note!D2="","",IFRS_note!D2) -> 2020-03-31 | BO2: =IF(IFRS_note!E2="","",IFRS_note!E2) -> 2020-06-30 | BP2: =IF(IFRS_note!F2="","",IFRS_note!F2) -> 2020-09-30 | BQ2: =IF(IFRS_note!G2="","",IFRS_note!G2) -> 2020-12-31
A3: =基本資料!A1 -> 2330 台積電 | D3: 實收資本額 | E3: =TEXT(ROUND(基本資料!C3/1000000,2),"###,###.## (百萬元)") -> 259,303.8 (百萬元) | P3: =TEXT(月營收!$A3,"YYYY/MM") -> 2021/02 | Q3: =IF(月營收!$B3="","",月營收!$B3) -> 106533.69 | R3: =IF(月營收!$C3="","",月營收!$C3) -> 233282.842 | S3: =IF(月營收!$D3="","",月營收!$D3) -> -15.95 | T3: =IF(月營收!$E3="","",月營收!$E3) -> 14.07 | U3: =IF(月營收!$F3="Y","合併",IF(月營收!$F3="N","非合併","")) ->  | V3: ='合併財報(累計)'!$A3 -> 合併(Y/N) | W3: =IF('合併財報(累計)'!$B3="Y","合併","非合併") -> 合併 | X3: =IF('合併財報(累計)'!$C3="Y","合併","非合併") -> 合併 | Y3: =IF('合併財報(累計)'!$D3="Y","合併","非合併") -> 合併 | Z3: =IF('合併財報(累計)'!$F3="Y","合併","非合併") -> 合併 | AB3: ='合併財報(累計)'!$A3 -> 合併(Y/N) | AC3: =IF('合併財報(累計)'!$B3="Y","合併","非合併") -> 合併 | AD3: =IF('合併財報(累計)'!$B3="Y","合併","非合併") -> 合併 | AE3: =IF('合併財報(累計)'!$B3="Y","合併","非合併") -> 合併 | AG3: ='合併財報(單季)'!A3 -> 營業收入淨額 | AH3: ='合併財報(單季)'!B3 -> 293045439 | AI3: ='合併財報(單季)'!C3 -> 317237065 | AJ3: ='合併財報(單季)'!D3 -> 310597183 | AK3: ='合併財報(單季)'!E3 -> 310698367 | AL3: ='合併財報(單季)'!F3 -> 356426204 | AM3: ='合併財報(單季)'!G3 -> 361533057 | AO3: =IFRS_BS!A3 -> 現金及約當現金 | AP3: =IFRS_BS!B3 -> 577814601 | AQ3: =IFRS_BS!C3 -> 455399336 | AR3: =IFRS_BS!D3 -> 660170647 | AS3: =IFRS_BS!F3 -> 660170647 | AU3: =IF('IFRS_IS(Q)'!A3="","",'IFRS_IS(Q)'!A3) -> 合併(Y/N) | AV3: =IF('IFRS_IS(Q)'!B3="Y","合併",IF('IFRS_IS(Q)'!B3="N","非合併","")) -> 合併 | AW3: =IF('IFRS_IS(Q)'!C3="Y","合併",IF('IFRS_IS(Q)'!C3="N","非合併","")) -> 合併 | AX3: =IF('IFRS_IS(Q)'!D3="Y","合併",IF('IFRS_IS(Q)'!D3="N","非合併","")) -> 合併 | AY3: =IF('IFRS_IS(Q)'!E3="Y","合併",IF('IFRS_IS(Q)'!E3="N","非合併","")) -> 合併 | AZ3: =IF('IFRS_IS(Q)'!F3="Y","合併",IF('IFRS_IS(Q)'!F3="N","非合併","")) -> 合併 | BA3: =IF('IFRS_IS(Q)'!G3="Y","合併",IF('IFRS_IS(Q)'!G3="N","非合併","")) -> 合併 | BC3: =IFRS_note!A3 -> 財報附註TEJ是否完成Y/N | BD3: =IF(IFRS_note!B3="Y","完成",IF(IFRS_note!B3="","","未完成")) -> 完成 | BE3: =IF(IFRS_note!C3="Y","完成",IF(IFRS_note!C3="","","未完成")) -> 完成 | BF3: =IF(IFRS_note!D3="Y","完成",IF(IFRS_note!D3="","","未完成")) -> 完成 | BG3: =IF(IFRS_note!E3="Y","完成",IF(IFRS_note!E3="","","未完成")) -> 完成 | BH3: =IF(IFRS_note!F3="Y","完成",IF(IFRS_note!F3="","","未完成")) -> 完成 | BI3: =IF(IFRS_note!G3="Y","完成",IF(IFRS_note!G3="","","未完成")) -> 完成 | BK3: 存貨明細表-<主要觀察存貨相關費損及跌價損失>
A4: 市 場 別 | B4: =IF(基本資料!A3<>"",IF(基本資料!A3="TSE","上市",IF(基本資料!A3="OTC","上櫃",IF(基本資料!A3="ROTC","興櫃","其他"))),"") -> 上市 | D4: 上 市 日 期 | E4: =IF(基本資料!A3="TSE",基本資料!D3,IF(基本資料!A3="OTC",基本資料!E3,IF(基本資料!A3="ROTC",基本資料!F3,""))) -> 1994-09-05 | P4: =TEXT(月營收!$A4,"YYYY/MM") -> 2021/01 | Q4: =IF(月營收!$B4="","",月營收!$B4) -> 126749.152 | R4: =IF(月營收!$C4="","",月營收!$C4) -> 126749.152 | S4: =IF(月營收!$D4="","",月營收!$D4) -> 8 | T4: =IF(月營收!$E4="","",月營收!$E4) -> 22.25 | U4: =IF(月營收!$F4="Y","合併",IF(月營收!$F4="N","非合併","")) ->  | V4: ='合併財報(累計)'!$A4 -> 現金及約當現金 | W4: =IF('合併財報(累計)'!$B4="","",'合併財報(累計)'!$B4) -> 577814601 | X4: =IF('合併財報(累計)'!$C4="","",'合併財報(累計)'!$C4) -> 455399336 | Y4: =IF('合併財報(累計)'!$D4="","",'合併財報(累計)'!$D4) -> 660170647 | Z4: =IF('合併財報(累計)'!$F4="","",'合併財報(累計)'!$F4) -> 660170647 | AB4: ='合併財報(累計)'!A59 -> 營業收入淨額 | AC4: ='合併財報(累計)'!B59 -> 1031473557 | AD4: ='合併財報(累計)'!C59 -> 1069985448 | AE4: ='合併財報(累計)'!D59 -> 1339254811 | AG4: ='合併財報(單季)'!A4 -> 營業成本 | AH4: ='合併財報(單季)'!B4 -> 153613278 | AI4: ='合併財報(單季)'!C4 -> 157996080 | AJ4: ='合併財報(單季)'!D4 -> 149813002 | AK4: ='合併財報(單季)'!E4 -> 146005542 | AL4: ='合併財報(單季)'!F4 -> 165945534 | AM4: ='合併財報(單季)'!G4 -> 166344231 | AO4: =IFRS_BS!A4 -> 透過損益按公允價值衡量之金融資產－流動 | AP4: =IFRS_BS!B4 -> 3504590 | AQ4: =IFRS_BS!C4 -> 326839 | AR4: =IFRS_BS!D4 -> 2259412 | AS4: =IFRS_BS!F4 -> 2259412 | AU4: =IF('IFRS_IS(Q)'!A4="","",'IFRS_IS(Q)'!A4) -> 營業收入淨額 | AV4: =IF('IFRS_IS(Q)'!B4="","",'IFRS_IS(Q)'!B4) -> 293045439 | AW4: =IF('IFRS_IS(Q)'!C4="","",'IFRS_IS(Q)'!C4) -> 317237065 | AX4: =IF('IFRS_IS(Q)'!D4="","",'IFRS_IS(Q)'!D4) -> 310597183 | AY4: =IF('IFRS_IS(Q)'!E4="","",'IFRS_IS(Q)'!E4) -> 310698367 | AZ4: =IF('IFRS_IS(Q)'!F4="","",'IFRS_IS(Q)'!F4) -> 356426204 | BA4: =IF('IFRS_IS(Q)'!G4="","",'IFRS_IS(Q)'!G4) -> 361533057 | BC4: 其他綜合損益-<主要觀察公司未透過損益但造成淨值變動因素> | BK4: =IF(IFRS_note!A4="","",IFRS_note!A4) -> 存貨費損─呆滯損失 | BL4: =IF(IFRS_note!B4="","",IFRS_note!B4) -> 0 | BM4: =IF(IFRS_note!C4="","",IFRS_note!C4) -> 0 | BN4: =IF(IFRS_note!D4="","",IFRS_note!D4) -> 0 | BO4: =IF(IFRS_note!E4="","",IFRS_note!E4) -> 0 | BP4: =IF(IFRS_note!F4="","",IFRS_note!F4) -> 0 | BQ4: =IF(IFRS_note!G4="","",IFRS_note!G4) -> 0
A5: 發 言 人 | B5: =LEFT(基本資料!B3,FIND("(",基本資料!B3)-1) -> 黃仁昭 | D5: 電 話 | E5: =IF(基本資料!G3<>"",基本資料!G3,"") -> 03-5636688 | P5: =TEXT(月營收!$A5,"YYYY/MM") -> 2020/12 | Q5: =IF(月營收!$B5="","",月營收!$B5) -> 117364.912 | R5: =IF(月營收!$C5="","",月營收!$C5) -> 1339254.811 | S5: =IF(月營收!$D5="","",月營收!$D5) -> -6.01 | T5: =IF(月營收!$E5="","",月營收!$E5) -> 13.6 | U5: =IF(月營收!$F5="Y","合併",IF(月營收!$F5="N","非合併","")) ->  | V5: ='合併財報(累計)'!$A5 -> 透過損益按公允價值衡量之金融資產－流動 | W5: =IF('合併財報(累計)'!$B5="","",'合併財報(累計)'!$B5) -> 3504590 | X5: =IF('合併財報(累計)'!$C5="","",'合併財報(累計)'!$C5) -> 326839 | Y5: =IF('合併財報(累計)'!$D5="","",'合併財報(累計)'!$D5) -> 2259412 | Z5: =IF('合併財報(累計)'!$F5="","",'合併財報(累計)'!$F5) -> 2259412 | AB5: ='合併財報(累計)'!A60 -> 營業成本 | AC5: ='合併財報(累計)'!B60 -> 533487516 | AD5: ='合併財報(累計)'!C60 -> 577286947 | AE5: ='合併財報(累計)'!D60 -> 628108309 | AG5: ='合併財報(單季)'!A5 -> 營業毛利 | AH5: ='合併財報(單季)'!B5 -> 139432161 | AI5: ='合併財報(單季)'!C5 -> 159240985 | AJ5: ='合併財報(單季)'!D5 -> 160784181 | AK5: ='合併財報(單季)'!E5 -> 164692825 | AL5: ='合併財報(單季)'!F5 -> 190480670 | AM5: ='合併財報(單季)'!G5 -> 195188826 | AO5: =IFRS_BS!A5 -> 透過其他綜合損益按公允價值衡量之金融資產－流動 | AP5: =IFRS_BS!B5 -> 99561740 | AQ5: =IFRS_BS!C5 -> 127396577 | AR5: =IFRS_BS!D5 -> 122448453 | AS5: =IFRS_BS!F5 -> 122448453 | AU5: =IF('IFRS_IS(Q)'!A5="","",'IFRS_IS(Q)'!A5) -> 營業成本 | AV5: =IF('IFRS_IS(Q)'!B5="","",'IFRS_IS(Q)'!B5) -> 153613278 | AW5: =IF('IFRS_IS(Q)'!C5="","",'IFRS_IS(Q)'!C5) -> 157996080 | AX5: =IF('IFRS_IS(Q)'!D5="","",'IFRS_IS(Q)'!D5) -> 149813002 | AY5: =IF('IFRS_IS(Q)'!E5="","",'IFRS_IS(Q)'!E5) -> 146005542 | AZ5: =IF('IFRS_IS(Q)'!F5="","",'IFRS_IS(Q)'!F5) -> 165945534 | BA5: =IF('IFRS_IS(Q)'!G5="","",'IFRS_IS(Q)'!G5) -> 166344231 | BC5: =IF(IFRS_note!A43="","",IFRS_note!A43) -> 國外機構財務報表換算之兌換差額─OCI | BD5: =IF(IFRS_note!B43="","",IFRS_note!B43) -> 2221268 | BE5: =IF(IFRS_note!C43="","",IFRS_note!C43) -> -14689107 | BF5: =IF(IFRS_note!D43="","",IFRS_note!D43) -> 3035024 | BG5: =IF(IFRS_note!E43="","",IFRS_note!E43) -> -11690196 | BH5: =IF(IFRS_note!F43="","",IFRS_note!F43) -> -17163363 | BI5: =IF(IFRS_note!G43="","",IFRS_note!G43) -> -29847196 | BK5: =IF(IFRS_note!A5="","",IFRS_note!A5) -> 存貨費損─少/多分攤 | BL5: =IF(IFRS_note!B5="","",IFRS_note!B5) -> 0 | BM5: =IF(IFRS_note!C5="","",IFRS_note!C5) -> 0 | BN5: =IF(IFRS_note!D5="","",IFRS_note!D5) -> 0 | BO5: =IF(IFRS_note!E5="","",IFRS_note!E5) -> 0 | BP5: =IF(IFRS_note!F5="","",IFRS_note!F5) -> 0 | BQ5: =IF(IFRS_note!G5="","",IFRS_note!G5) -> 0
A6: 地 址 | B6: =IF(基本資料!H3<>"",基本資料!H3,"") -> 新竹科學工業園區新竹市力行六路8 號 | P6: =TEXT(月營收!$A6,"YYYY/MM") -> 2020/11 | Q6: =IF(月營收!$B6="","",月營收!$B6) -> 124865.438 | R6: =IF(月營收!$C6="","",月營收!$C6) -> 1221889.899 | S6: =IF(月營收!$D6="","",月營收!$D6) -> 4.66 | T6: =IF(月營收!$E6="","",月營收!$E6) -> 15.74 | U6: =IF(月營收!$F6="Y","合併",IF(月營收!$F6="N","非合併","")) ->  | V6: ='合併財報(累計)'!$A6 -> 透過其他綜合損益按公允價值衡量之金融資產－流動 | W6: =IF('合併財報(累計)'!$B6="","",'合併財報(累計)'!$B6) -> 99561740 | X6: =IF('合併財報(累計)'!$C6="","",'合併財報(累計)'!$C6) -> 127396577 | Y6: =IF('合併財報(累計)'!$D6="","",'合併財報(累計)'!$D6) -> 122448453 | Z6: =IF('合併財報(累計)'!$F6="","",'合併財報(累計)'!$F6) -> 122448453 | AB6: ='合併財報(累計)'!A61 -> 營業毛利 | AC6: ='合併財報(累計)'!B61 -> 497986041 | AD6: ='合併財報(累計)'!C61 -> 492698501 | AE6: ='合併財報(累計)'!D61 -> 711146502 | AG6: ='合併財報(單季)'!A6 -> 營業費用 | AH6: ='合併財報(單季)'!B6 -> 31378953 | AI6: ='合併財報(單季)'!C6 -> 34942621 | AJ6: ='合併財報(單季)'!D6 -> 32323046 | AK6: ='合併財報(單季)'!E6 -> 33520709 | AL6: ='合併財報(單季)'!F6 -> 40891355 | AM6: ='合併財報(單季)'!G6 -> 38321439 | AO6: =IFRS_BS!A6 -> 按攤銷後成本衡量之金融資產－流動 | AP6: =IFRS_BS!B6 -> 14277615 | AQ6: =IFRS_BS!C6 -> 299884 | AR6: =IFRS_BS!D6 -> 6597992 | AS6: =IFRS_BS!F6 -> 6597992 | AU6: =IF('IFRS_IS(Q)'!A6="","",'IFRS_IS(Q)'!A6) -> 營業毛利 | AV6: =IF('IFRS_IS(Q)'!B6="","",'IFRS_IS(Q)'!B6) -> 139432161 | AW6: =IF('IFRS_IS(Q)'!C6="","",'IFRS_IS(Q)'!C6) -> 159240985 | AX6: =IF('IFRS_IS(Q)'!D6="","",'IFRS_IS(Q)'!D6) -> 160784181 | AY6: =IF('IFRS_IS(Q)'!E6="","",'IFRS_IS(Q)'!E6) -> 164692825 | AZ6: =IF('IFRS_IS(Q)'!F6="","",'IFRS_IS(Q)'!F6) -> 190480670 | BA6: =IF('IFRS_IS(Q)'!G6="","",'IFRS_IS(Q)'!G6) -> 195188826 | BC6: =IF(IFRS_note!A44="","",IFRS_note!A44) -> 權益工具投資之利益〈損失〉─OCI | BD6: =IF(IFRS_note!B44="","",IFRS_note!B44) -> 219784 | BE6: =IF(IFRS_note!C44="","",IFRS_note!C44) -> 334327 | BF6: =IF(IFRS_note!D44="","",IFRS_note!D44) -> -44047 | BG6: =IF(IFRS_note!E44="","",IFRS_note!E44) -> -21710 | BH6: =IF(IFRS_note!F44="","",IFRS_note!F44) -> 78311 | BI6: =IF(IFRS_note!G44="","",IFRS_note!G44) -> 423697 | BK6: =IF(IFRS_note!A6="","",IFRS_note!A6) -> 存貨費損─盤盈/虧 | BL6: =IF(IFRS_note!B6="","",IFRS_note!B6) -> 0 | BM6: =IF(IFRS_note!C6="","",IFRS_note!C6) -> 0 | BN6: =IF(IFRS_note!D6="","",IFRS_note!D6) -> 0 | BO6: =IF(IFRS_note!E6="","",IFRS_note!E6) -> 0 | BP6: =IF(IFRS_note!F6="","",IFRS_note!F6) -> 0 | BQ6: =IF(IFRS_note!G6="","",IFRS_note!G6) -> 0
A7: 產 業 別 | B7: =IF(基本資料!I3<>"",基本資料!I3,"") -> M2324 半導體 | E7: 員工人數 | F7: =IF(基本資料!K3="","",基本資料!K3) -> 51297 | P7: =TEXT(月營收!$A7,"YYYY/MM") -> 2020/10 | Q7: =IF(月營收!$B7="","",月營收!$B7) -> 119302.707 | R7: =IF(月營收!$C7="","",月營收!$C7) -> 1097024.461 | S7: =IF(月營收!$D7="","",月營收!$D7) -> -6.49 | T7: =IF(月營收!$E7="","",月營收!$E7) -> 12.51 | U7: =IF(月營收!$F7="Y","合併",IF(月營收!$F7="N","非合併","")) ->  | V7: ='合併財報(累計)'!$A7 -> 按攤銷後成本衡量之金融資產－流動 | W7: =IF('合併財報(累計)'!$B7="","",'合併財報(累計)'!$B7) -> 14277615 | X7: =IF('合併財報(累計)'!$C7="","",'合併財報(累計)'!$C7) -> 299884 | Y7: =IF('合併財報(累計)'!$D7="","",'合併財報(累計)'!$D7) -> 6597992 | Z7: =IF('合併財報(累計)'!$F7="","",'合併財報(累計)'!$F7) -> 6597992 | AB7: ='合併財報(累計)'!A62 -> 聯屬公司已（未）實現銷貨利益 | AC7: ='合併財報(累計)'!B62 -> -111788 | AD7: ='合併財報(累計)'!C62 -> 3395 | AE7: ='合併財報(累計)'!D62 -> -16382 | AG7: ='合併財報(單季)'!A7 -> 營業利益 | AH7: ='合併財報(單季)'!B7 -> 107887292 | AI7: ='合併財報(單季)'!C7 -> 124243722 | AJ7: ='合併財報(單季)'!D7 -> 128521637 | AK7: ='合併財報(單季)'!E7 -> 131094538 | AL7: ='合併財報(單季)'!F7 -> 150047349 | AM7: ='合併財報(單季)'!G7 -> 157120174 | AO7: =IFRS_BS!A7 -> 避險之金融資產－流動 | AP7: =IFRS_BS!B7 -> 23497 | AQ7: =IFRS_BS!C7 -> 25884 | AR7: =IFRS_BS!D7 -> 47 | AS7: =IFRS_BS!F7 -> 47 | AU7: =IF('IFRS_IS(Q)'!A7="","",'IFRS_IS(Q)'!A7) -> 營業費用 | AV7: =IF('IFRS_IS(Q)'!B7="","",'IFRS_IS(Q)'!B7) -> 31378953 | AW7: =IF('IFRS_IS(Q)'!C7="","",'IFRS_IS(Q)'!C7) -> 34942621 | AX7: =IF('IFRS_IS(Q)'!D7="","",'IFRS_IS(Q)'!D7) -> 32323046 | AY7: =IF('IFRS_IS(Q)'!E7="","",'IFRS_IS(Q)'!E7) -> 33520709 | AZ7: =IF('IFRS_IS(Q)'!F7="","",'IFRS_IS(Q)'!F7) -> 40891355 | BA7: =IF('IFRS_IS(Q)'!G7="","",'IFRS_IS(Q)'!G7) -> 38321439 | BC7: =IF(IFRS_note!A45="","",IFRS_note!A45) -> 備供出售金融資產未實現評價損益─OCI | BD7: =IF(IFRS_note!B45="","",IFRS_note!B45) -> 2576461 | BE7: =IF(IFRS_note!C45="","",IFRS_note!C45) -> 2566373 | BF7: =IF(IFRS_note!D45="","",IFRS_note!D45) -> -210748 | BG7: =IF(IFRS_note!E45="","",IFRS_note!E45) -> 2698399 | BH7: =IF(IFRS_note!F45="","",IFRS_note!F45) -> 2600675 | BI7: =IF(IFRS_note!G45="","",IFRS_note!G45) -> 2466711 | BK7: =IF(IFRS_note!A7="","",IFRS_note!A7) -> 存貨費損─報廢 | BL7: =IF(IFRS_note!B7="","",IFRS_note!B7) -> 0 | BM7: =IF(IFRS_note!C7="","",IFRS_note!C7) -> 0 | BN7: =IF(IFRS_note!D7="","",IFRS_note!D7) -> 0 | BO7: =IF(IFRS_note!E7="","",IFRS_note!E7) -> 0 | BP7: =IF(IFRS_note!F7="","",IFRS_note!F7) -> 0 | BQ7: =IF(IFRS_note!G7="","",IFRS_note!G7) -> 0
A8: 主要產品 | B8: =IF(基本資料!J3<>"",基本資料!J3,"") -> 2019/12:晶圓(86.7%),其他(13.3%) | P8: =TEXT(月營收!$A8,"YYYY/MM") -> 2020/09 | Q8: =IF(月營收!$B8="","",月營收!$B8) -> 127584.492 | R8: =IF(月營收!$C8="","",月營收!$C8) -> 977721.754 | S8: =IF(月營收!$D8="","",月營收!$D8) -> 3.83 | T8: =IF(月營收!$E8="","",月營收!$E8) -> 24.87 | U8: =IF(月營收!$F8="Y","合併",IF(月營收!$F8="N","非合併","")) ->  | V8: ='合併財報(累計)'!$A8 -> 避險之金融資產－流動 | W8: =IF('合併財報(累計)'!$B8="","",'合併財報(累計)'!$B8) -> 23497 | X8: =IF('合併財報(累計)'!$C8="","",'合併財報(累計)'!$C8) -> 25884 | Y8: =IF('合併財報(累計)'!$D8="","",'合併財報(累計)'!$D8) -> 47 | Z8: =IF('合併財報(累計)'!$F8="","",'合併財報(累計)'!$F8) -> 47 | AB8: ='合併財報(累計)'!A63 -> 已實現銷貨毛利 | AC8: ='合併財報(累計)'!B63 -> 497874253 | AD8: ='合併財報(累計)'!C63 -> 492701896 | AE8: ='合併財報(累計)'!D63 -> 711130120 | AG8: ='合併財報(單季)'!A8 -> 採權益法之關聯企業及合資損益之份額 | AH8: ='合併財報(單季)'!B8 -> 915714 | AI8: ='合併財報(單季)'!C8 -> 866482 | AJ8: ='合併財報(單季)'!D8 -> 725968 | AK8: ='合併財報(單季)'!E8 -> 678757 | AL8: ='合併財報(單季)'!F8 -> 833165 | AM8: ='合併財報(單季)'!G8 -> 1354928 | AO8: =IFRS_BS!A8 -> 合約資產－流動 | AP8: =IFRS_BS!B8 -> 0 | AQ8: =IFRS_BS!C8 -> 0 | AR8: =IFRS_BS!D8 -> 0 | AS8: =IFRS_BS!F8 -> 0 | AU8: =IF('IFRS_IS(Q)'!A8="","",'IFRS_IS(Q)'!A8) -> 其他收益及費損淨額 | AV8: =IF('IFRS_IS(Q)'!B8="","",'IFRS_IS(Q)'!B8) -> -146189 | AW8: =IF('IFRS_IS(Q)'!C8="","",'IFRS_IS(Q)'!C8) -> -15502 | AX8: =IF('IFRS_IS(Q)'!D8="","",'IFRS_IS(Q)'!D8) -> 68175 | AY8: =IF('IFRS_IS(Q)'!E8="","",'IFRS_IS(Q)'!E8) -> -8544 | AZ8: =IF('IFRS_IS(Q)'!F8="","",'IFRS_IS(Q)'!F8) -> 445208 | BA8: =IF('IFRS_IS(Q)'!G8="","",'IFRS_IS(Q)'!G8) -> 205288 | BC8: =IF(IFRS_note!A46="","",IFRS_note!A46) -> 現金流量避險─OCI | BD8: =IF(IFRS_note!B46="","",IFRS_note!B46) ->  | BE8: =IF(IFRS_note!C46="","",IFRS_note!C46) ->  | BF8: =IF(IFRS_note!D46="","",IFRS_note!D46) ->  | BG8: =IF(IFRS_note!E46="","",IFRS_note!E46) ->  | BH8: =IF(IFRS_note!F46="","",IFRS_note!F46) ->  | BI8: =IF(IFRS_note!G46="","",IFRS_note!G46) ->  | BK8: =IF(IFRS_note!A8="","",IFRS_note!A8) -> 存貨費損─進貨合約損失 | BL8: =IF(IFRS_note!B8="","",IFRS_note!B8) -> 0 | BM8: =IF(IFRS_note!C8="","",IFRS_note!C8) -> 0 | BN8: =IF(IFRS_note!D8="","",IFRS_note!D8) -> 0 | BO8: =IF(IFRS_note!E8="","",IFRS_note!E8) -> 0 | BP8: =IF(IFRS_note!F8="","",IFRS_note!F8) -> 0 | BQ8: =IF(IFRS_note!G8="","",IFRS_note!G8) -> 0
P9: =TEXT(月營收!$A9,"YYYY/MM") -> 2020/08 | Q9: =IF(月營收!$B9="","",月營收!$B9) -> 122878.244 | R9: =IF(月營收!$C9="","",月營收!$C9) -> 850137.262 | S9: =IF(月營收!$D9="","",月營收!$D9) -> 15.96 | T9: =IF(月營收!$E9="","",月營收!$E9) -> 15.79 | U9: =IF(月營收!$F9="Y","合併",IF(月營收!$F9="N","非合併","")) ->  | V9: ='合併財報(累計)'!$A9 -> 應收帳款及票據 | W9: =IF('合併財報(累計)'!$B9="","",'合併財報(累計)'!$B9) -> 129197803 | X9: =IF('合併財報(累計)'!$C9="","",'合併財報(累計)'!$C9) -> 139770659 | Y9: =IF('合併財報(累計)'!$D9="","",'合併財報(累計)'!$D9) -> 146038403 | Z9: =IF('合併財報(累計)'!$F9="","",'合併財報(累計)'!$F9) -> 146038403 | AB9: ='合併財報(累計)'!A64 -> 營業費用 | AC9: ='合併財報(累計)'!B64 -> 112149280 | AD9: ='合併財報(累計)'!C64 -> 119504582 | AE9: ='合併財報(累計)'!D64 -> 145056549 | AG9: ='合併財報(單季)'!A9 -> 其他收入 | AH9: ='合併財報(單季)'!B9 -> 3918123 | AI9: ='合併財報(單季)'!C9 -> 3488423 | AJ9: ='合併財報(單季)'!D9 -> 3099578 | AK9: ='合併財報(單季)'!E9 -> 2711777 | AL9: ='合併財報(單季)'!F9 -> 2015597 | AM9: ='合併財報(單季)'!G9 -> 1852055 | AO9: =IFRS_BS!A9 -> 應收帳款及票據 | AP9: =IFRS_BS!B9 -> 129197803 | AQ9: =IFRS_BS!C9 -> 139770659 | AR9: =IFRS_BS!D9 -> 146038403 | AS9: =IFRS_BS!F9 -> 146038403 | AU9: =IF('IFRS_IS(Q)'!A9="","",'IFRS_IS(Q)'!A9) -> 營業利益 | AV9: =IF('IFRS_IS(Q)'!B9="","",'IFRS_IS(Q)'!B9) -> 107887292 | AW9: =IF('IFRS_IS(Q)'!C9="","",'IFRS_IS(Q)'!C9) -> 124243722 | AX9: =IF('IFRS_IS(Q)'!D9="","",'IFRS_IS(Q)'!D9) -> 128521637 | AY9: =IF('IFRS_IS(Q)'!E9="","",'IFRS_IS(Q)'!E9) -> 131094538 | AZ9: =IF('IFRS_IS(Q)'!F9="","",'IFRS_IS(Q)'!F9) -> 150047349 | BA9: =IF('IFRS_IS(Q)'!G9="","",'IFRS_IS(Q)'!G9) -> 157120174 | BC9: =IF(IFRS_note!A47="","",IFRS_note!A47) -> 國外營運機構淨投資避險─OCI | BD9: =IF(IFRS_note!B47="","",IFRS_note!B47) ->  | BE9: =IF(IFRS_note!C47="","",IFRS_note!C47) ->  | BF9: =IF(IFRS_note!D47="","",IFRS_note!D47) ->  | BG9: =IF(IFRS_note!E47="","",IFRS_note!E47) ->  | BH9: =IF(IFRS_note!F47="","",IFRS_note!F47) ->  | BI9: =IF(IFRS_note!G47="","",IFRS_note!G47) ->  | BK9: =IF(IFRS_note!A9="","",IFRS_note!A9) -> 存貨費損─下腳及癈料收 | BL9: =IF(IFRS_note!B9="","",IFRS_note!B9) -> 0 | BM9: =IF(IFRS_note!C9="","",IFRS_note!C9) -> 0 | BN9: =IF(IFRS_note!D9="","",IFRS_note!D9) -> 0 | BO9: =IF(IFRS_note!E9="","",IFRS_note!E9) -> 0 | BP9: =IF(IFRS_note!F9="","",IFRS_note!F9) -> 0 | BQ9: =IF(IFRS_note!G9="","",IFRS_note!G9) -> 0
A10: 收盤價 | B10: ='圖-報酬率'!B3 -> 591 | D10: 法人買賣超合計(近一日) | F10: =IF(法人動向!$E$3="", IF(法人動向!E4>0,"買超"&ABS(法人動向!E4)&"張",IF(法人動向!E4<0,"賣超"&ABS(法人動向!E4)&"張","")), IF(法人動向!E3>0,"買超"&ABS(法人動向!E3)&"張",IF(法人動向!E3<0,"賣超"&ABS(法人動向!E3)&"張",""))) -> 賣超24283張 | P10: =TEXT(月營收!$A10,"YYYY/MM") -> 2020/07 | Q10: =IF(月營收!$B10="","",月營收!$B10) -> 105963.468 | R10: =IF(月營收!$C10="","",月營收!$C10) -> 727259.018 | S10: =IF(月營收!$D10="","",月營收!$D10) -> -12.34 | T10: =IF(月營收!$E10="","",月營收!$E10) -> 25.02 | U10: =IF(月營收!$F10="Y","合併",IF(月營收!$F10="N","非合併","")) ->  | V10: ='合併財報(累計)'!$A10 -> 其他應收款 | W10: =IF('合併財報(累計)'!$B10="","",'合併財報(累計)'!$B10) -> 65028 | X10: =IF('合併財報(累計)'!$C10="","",'合併財報(累計)'!$C10) -> 51653 | Y10: =IF('合併財報(累計)'!$D10="","",'合併財報(累計)'!$D10) -> 50645 | Z10: =IF('合併財報(累計)'!$F10="","",'合併財報(累計)'!$F10) -> 50645 | AB10: ='合併財報(累計)'!A65 -> 推銷費用 | AC10: ='合併財報(累計)'!B65 -> 5987828 | AD10: ='合併財報(累計)'!C65 -> 6348626 | AE10: ='合併財報(累計)'!D65 -> 7112867 | AG10: ='合併財報(單季)'!A10 -> 其他利益及損失 | AH10: ='合併財報(單季)'!B10 -> 459563 | AI10: ='合併財報(單季)'!C10 -> 828657 | AJ10: ='合併財報(單季)'!D10 -> 332185 | AK10: ='合併財報(單季)'!E10 -> 2321273 | AL10: ='合併財報(單季)'!F10 -> 2600868 | AM10: ='合併財報(單季)'!G10 -> 1552458 | AO10: =IFRS_BS!A10 -> 其他應收款 | AP10: =IFRS_BS!B10 -> 65028 | AQ10: =IFRS_BS!C10 -> 51653 | AR10: =IFRS_BS!D10 -> 50645 | AS10: =IFRS_BS!F10 -> 50645 | AU10: =IF('IFRS_IS(Q)'!A10="","",'IFRS_IS(Q)'!A10) -> 利息收入 | AV10: =IF('IFRS_IS(Q)'!B10="","",'IFRS_IS(Q)'!B10) -> 3916098 | AW10: =IF('IFRS_IS(Q)'!C10="","",'IFRS_IS(Q)'!C10) -> 3317583 | AX10: =IF('IFRS_IS(Q)'!D10="","",'IFRS_IS(Q)'!D10) -> 2989069 | AY10: =IF('IFRS_IS(Q)'!E10="","",'IFRS_IS(Q)'!E10) -> 2478362 | AZ10: =IF('IFRS_IS(Q)'!F10="","",'IFRS_IS(Q)'!F10) -> 1897963 | BA10: =IF('IFRS_IS(Q)'!G10="","",'IFRS_IS(Q)'!G10) -> 1653006 | BC10: =IF(IFRS_note!A48="","",IFRS_note!A48) -> 重估價之利益〈損失〉─OCI | BD10: =IF(IFRS_note!B48="","",IFRS_note!B48) -> 0 | BE10: =IF(IFRS_note!C48="","",IFRS_note!C48) -> 0 | BF10: =IF(IFRS_note!D48="","",IFRS_note!D48) -> 0 | BG10: =IF(IFRS_note!E48="","",IFRS_note!E48) -> 0 | BH10: =IF(IFRS_note!F48="","",IFRS_note!F48) -> 0 | BI10: =IF(IFRS_note!G48="","",IFRS_note!G48) -> 0 | BK10: =IF(IFRS_note!A10="","",IFRS_note!A10) -> 存貨費損─其他 | BL10: =IF(IFRS_note!B10="","",IFRS_note!B10) -> 0 | BM10: =IF(IFRS_note!C10="","",IFRS_note!C10) -> 0 | BN10: =IF(IFRS_note!D10="","",IFRS_note!D10) -> 0 | BO10: =IF(IFRS_note!E10="","",IFRS_note!E10) -> 0 | BP10: =IF(IFRS_note!F10="","",IFRS_note!F10) -> 0 | BQ10: =IF(IFRS_note!G10="","",IFRS_note!G10) -> 0
A11: 券資比 | B11: ='圖-報酬率'!B4 -> 0.25 | D11: 法人買賣超合計(近一週) | F11: =IF(法人動向!$E$3="", IF(SUM(WEEK2)>0,"買超"&ABS(SUM(WEEK2))&"張",IF(SUM(WEEK2)<0,"賣超"&ABS(SUM(WEEK2))&"張","")), IF(SUM(WEEK1)>0,"買超"&ABS(SUM(WEEK1))&"張",IF(SUM(WEEK1)<0,"賣超"&ABS(SUM(WEEK1))&"張",""))) -> 賣超55944張 | P11: =TEXT(月營收!$A11,"YYYY/MM") -> 2020/06 | Q11: =IF(月營收!$B11="","",月營收!$B11) -> 120877.785 | R11: =IF(月營收!$C11="","",月營收!$C11) -> 621295.55 | S11: =IF(月營收!$D11="","",月營收!$D11) -> 28.84 | T11: =IF(月營收!$E11="","",月營收!$E11) -> 40.77 | U11: =IF(月營收!$F11="Y","合併",IF(月營收!$F11="N","非合併","")) ->  | V11: ='合併財報(累計)'!$A11 -> 存貨 | W11: =IF('合併財報(累計)'!$B11="","",'合併財報(累計)'!$B11) -> 103230976 | X11: =IF('合併財報(累計)'!$C11="","",'合併財報(累計)'!$C11) -> 82981196 | Y11: =IF('合併財報(累計)'!$D11="","",'合併財報(累計)'!$D11) -> 137353407 | Z11: =IF('合併財報(累計)'!$F11="","",'合併財報(累計)'!$F11) -> 137353407 | AB11: ='合併財報(累計)'!A66 -> 管理費用 | AC11: ='合併財報(累計)'!B66 -> 20265883 | AD11: ='合併財報(累計)'!C66 -> 21737210 | AE11: ='合併財報(累計)'!D66 -> 28457593 | AG11: ='合併財報(單季)'!A11 -> 財務成本 | AH11: ='合併財報(單季)'!B11 -> 843434 | AI11: ='合併財報(單季)'!C11 -> 643597 | AJ11: ='合併財報(單季)'!D11 -> 530564 | AK11: ='合併財報(單季)'!E11 -> 409145 | AL11: ='合併財報(單季)'!F11 -> 373164 | AM11: ='合併財報(單季)'!G11 -> 768582 | AO11: =IFRS_BS!A11 -> 存貨 | AP11: =IFRS_BS!B11 -> 103230976 | AQ11: =IFRS_BS!C11 -> 82981196 | AR11: =IFRS_BS!D11 -> 137353407 | AS11: =IFRS_BS!F11 -> 137353407 | AU11: =IF('IFRS_IS(Q)'!A11="","",'IFRS_IS(Q)'!A11) -> 租金收入 | AV11: =IF('IFRS_IS(Q)'!B11="","",'IFRS_IS(Q)'!B11) -> 0 | AW11: =IF('IFRS_IS(Q)'!C11="","",'IFRS_IS(Q)'!C11) -> 0 | AX11: =IF('IFRS_IS(Q)'!D11="","",'IFRS_IS(Q)'!D11) -> 0 | AY11: =IF('IFRS_IS(Q)'!E11="","",'IFRS_IS(Q)'!E11) -> 0 | AZ11: =IF('IFRS_IS(Q)'!F11="","",'IFRS_IS(Q)'!F11) -> 0 | BA11: =IF('IFRS_IS(Q)'!G11="","",'IFRS_IS(Q)'!G11) -> 0 | BC11: =IF(IFRS_note!A49="","",IFRS_note!A49) -> 確定福利計畫精算利益〈損失〉─OCI | BD11: =IF(IFRS_note!B49="","",IFRS_note!B49) -> 0 | BE11: =IF(IFRS_note!C49="","",IFRS_note!C49) -> 253895 | BF11: =IF(IFRS_note!D49="","",IFRS_note!D49) -> 0 | BG11: =IF(IFRS_note!E49="","",IFRS_note!E49) -> 0 | BH11: =IF(IFRS_note!F49="","",IFRS_note!F49) -> 0 | BI11: =IF(IFRS_note!G49="","",IFRS_note!G49) -> -3516749 | BK11: =IF(IFRS_note!A11="","",IFRS_note!A11) -> 存貨相關費損合計 | BL11: =IF(IFRS_note!B11="","",IFRS_note!B11) -> 0 | BM11: =IF(IFRS_note!C11="","",IFRS_note!C11) -> 0 | BN11: =IF(IFRS_note!D11="","",IFRS_note!D11) -> 0 | BO11: =IF(IFRS_note!E11="","",IFRS_note!E11) -> 0 | BP11: =IF(IFRS_note!F11="","",IFRS_note!F11) -> 0 | BQ11: =IF(IFRS_note!G11="","",IFRS_note!G11) -> 0
A12: 現金股利率 | B12: ='圖-報酬率'!B5 -> 1.6709 | D12: 法人買賣超合計(近一月) | F12: =IF(法人動向!$E$3="", IF(SUM(MONTH2)>0,"買超"&ABS(SUM(MONTH2))&"張",IF(SUM(MONTH2)<0,"賣超"&ABS(SUM(MONTH2))&"張","")), IF(SUM(MONTH1)>0,"買超"&ABS(SUM(MONTH1))&"張",IF(SUM(MONTH1)<0,"賣超"&ABS(SUM(MONTH1))&"張",""))) -> 賣超239855張 | P12: =TEXT(月營收!$A12,"YYYY/MM") -> 2020/05 | Q12: =IF(月營收!$B12="","",月營收!$B12) -> 93819.01 | R12: =IF(月營收!$C12="","",月營收!$C12) -> 500417.765 | S12: =IF(月營收!$D12="","",月營收!$D12) -> -2.27 | T12: =IF(月營收!$E12="","",月營收!$E12) -> 16.64 | U12: =IF(月營收!$F12="Y","合併",IF(月營收!$F12="N","非合併","")) ->  | V12: ='合併財報(累計)'!$A12 -> 其他金融資產－流動 | W12: =IF('合併財報(累計)'!$B12="","",'合併財報(累計)'!$B12) -> 18597448 | X12: =IF('合併財報(累計)'!$C12="","",'合併財報(累計)'!$C12) -> 11041091 | Y12: =IF('合併財報(累計)'!$D12="","",'合併財報(累計)'!$D12) -> 10676111 | Z12: =IF('合併財報(累計)'!$F12="","",'合併財報(累計)'!$F12) -> 10676111 | AB12: ='合併財報(累計)'!A67 -> 研究發展費 | AC12: ='合併財報(累計)'!B67 -> 85895569 | AD12: ='合併財報(累計)'!C67 -> 91418746 | AE12: ='合併財報(累計)'!D67 -> 109486089 | AG12: ='合併財報(單季)'!A12 -> 預期信用減損（損失）利益 | AH12: ='合併財報(單季)'!B12 -> -987 | AI12: ='合併財報(單季)'!C12 -> -1714 | AJ12: ='合併財報(單季)'!D12 -> -1626 | AK12: ='合併財報(單季)'!E12 -> 1438 | AL12: ='合併財報(單季)'!F12 -> 188 | AM12: ='合併財報(單季)'!G12 -> -3672 | AO12: =IFRS_BS!A12 -> 預付費用及預付款 | AP12: =IFRS_BS!B12 -> 0 | AQ12: =IFRS_BS!C12 -> 0 | AR12: =IFRS_BS!D12 -> 0 | AS12: =IFRS_BS!F12 -> 0 | AU12: =IF('IFRS_IS(Q)'!A12="","",'IFRS_IS(Q)'!A12) -> 其他收入-其他 | AV12: =IF('IFRS_IS(Q)'!B12="","",'IFRS_IS(Q)'!B12) -> 0 | AW12: =IF('IFRS_IS(Q)'!C12="","",'IFRS_IS(Q)'!C12) -> 0 | AX12: =IF('IFRS_IS(Q)'!D12="","",'IFRS_IS(Q)'!D12) -> 0 | AY12: =IF('IFRS_IS(Q)'!E12="","",'IFRS_IS(Q)'!E12) -> 343924 | AZ12: =IF('IFRS_IS(Q)'!F12="","",'IFRS_IS(Q)'!F12) -> 117634 | BA12: =IF('IFRS_IS(Q)'!G12="","",'IFRS_IS(Q)'!G12) -> -438526 | BC12: =IF(IFRS_note!A50="","",IFRS_note!A50) -> 採用權益法認列之關聯企業及合資之其他綜合損益之份額─OCI | BD12: =IF(IFRS_note!B50="","",IFRS_note!B50) ->  | BE12: =IF(IFRS_note!C50="","",IFRS_note!C50) ->  | BF12: =IF(IFRS_note!D50="","",IFRS_note!D50) ->  | BG12: =IF(IFRS_note!E50="","",IFRS_note!E50) ->  | BH12: =IF(IFRS_note!F50="","",IFRS_note!F50) ->  | BI12: =IF(IFRS_note!G50="","",IFRS_note!G50) -> 
A13: 股利殖利率 | B13: ='圖-報酬率'!B6 -> 1.61 | D13: =IF(法人動向!B3="", IF(法人動向!B4>=2,"外資連"&ABS(法人動向!B4)&"買",IF(法人動向!B4<=-2,"外資連"&ABS(法人動向!B4)&"賣","")), IF(法人動向!B3>2,"外資連"&ABS(法人動向!B3)&"買",IF(法人動向!B3<-2,"外資連"&ABS(法人動向!B3)&"賣",""))) -> 外資連5賣 | E13: =IF(法人動向!C3="", IF(法人動向!C4>=2,"投信連"&ABS(法人動向!C4)&"買",IF(法人動向!C4<=-2,"投信連"&ABS(法人動向!C4)&"賣","")), IF(法人動向!C3>2,"投信連"&ABS(法人動向!C3)&"買",IF(法人動向!C3<-2,"投信連"&ABS(法人動向!C3)&"賣",""))) ->  | F13: =IF(法人動向!D3="", IF(法人動向!D4>=2,"自營連"&ABS(法人動向!D4)&"買",IF(法人動向!D4<=-2,"自營連"&ABS(法人動向!D4)&"賣","")), IF(法人動向!D3>2,"自營連"&ABS(法人動向!D3)&"買",IF(法人動向!D3<-2,"自營連"&ABS(法人動向!D3)&"賣",""))) ->  | P13: =TEXT(月營收!$A13,"YYYY/MM") -> 2020/04 | Q13: =IF(月營收!$B13="","",月營收!$B13) -> 96001.572 | R13: =IF(月營收!$C13="","",月營收!$C13) -> 406598.755 | S13: =IF(月營收!$D13="","",月營收!$D13) -> -15.43 | T13: =IF(月營收!$E13="","",月營收!$E13) -> 28.53 | U13: =IF(月營收!$F13="Y","合併",IF(月營收!$F13="N","非合併","")) ->  | V13: ='合併財報(累計)'!$A13 -> 其他流動資產 | W13: =IF('合併財報(累計)'!$B13="","",'合併財報(累計)'!$B13) -> 5406423 | X13: =IF('合併財報(累計)'!$C13="","",'合併財報(累計)'!$C13) -> 5320795 | Y13: =IF('合併財報(累計)'!$D13="","",'合併財報(累計)'!$D13) -> 6590191 | Z13: =IF('合併財報(累計)'!$F13="","",'合併財報(累計)'!$F13) -> 6590191 | AB13: ='合併財報(累計)'!A68 -> 其他費用 | AC13: ='合併財報(累計)'!B68 -> 0 | AD13: ='合併財報(累計)'!C68 -> 0 | AE13: ='合併財報(累計)'!D68 -> 0 | AG13: ='合併財報(單季)'!A13 -> 營業外收入及支出 | AH13: ='合併財報(單季)'!B13 -> 4448979 | AI13: ='合併財報(單季)'!C13 -> 4538251 | AJ13: ='合併財報(單季)'!D13 -> 3625541 | AK13: ='合併財報(單季)'!E13 -> 5304100 | AL13: ='合併財報(單季)'!F13 -> 5076654 | AM13: ='合併財報(單季)'!G13 -> 3987187 | AO13: =IFRS_BS!A13 -> 待出售非流動資產 | AP13: =IFRS_BS!B13 -> 0 | AQ13: =IFRS_BS!C13 -> 0 | AR13: =IFRS_BS!D13 -> 0 | AS13: =IFRS_BS!F13 -> 0 | AU13: =IF('IFRS_IS(Q)'!A13="","",'IFRS_IS(Q)'!A13) -> 其他收入 | AV13: =IF('IFRS_IS(Q)'!B13="","",'IFRS_IS(Q)'!B13) -> 3918123 | AW13: =IF('IFRS_IS(Q)'!C13="","",'IFRS_IS(Q)'!C13) -> 3488423 | AX13: =IF('IFRS_IS(Q)'!D13="","",'IFRS_IS(Q)'!D13) -> 3099578 | AY13: =IF('IFRS_IS(Q)'!E13="","",'IFRS_IS(Q)'!E13) -> 2711777 | AZ13: =IF('IFRS_IS(Q)'!F13="","",'IFRS_IS(Q)'!F13) -> 2015597 | BA13: =IF('IFRS_IS(Q)'!G13="","",'IFRS_IS(Q)'!G13) -> 1852055 | BC13: =IF(IFRS_note!A51="","",IFRS_note!A51) -> 其他綜合損益─其他─OCI | BD13: =IF(IFRS_note!B51="","",IFRS_note!B51) ->  | BE13: =IF(IFRS_note!C51="","",IFRS_note!C51) ->  | BF13: =IF(IFRS_note!D51="","",IFRS_note!D51) ->  | BG13: =IF(IFRS_note!E51="","",IFRS_note!E51) ->  | BH13: =IF(IFRS_note!F51="","",IFRS_note!F51) ->  | BI13: =IF(IFRS_note!G51="","",IFRS_note!G51) ->  | BK13: 補充明細_負債準備 | BL13: =IF(IFRS_note!B2="","",IFRS_note!B2) -> 2019-09-27 | BM13: =IF(IFRS_note!C2="","",IFRS_note!C2) -> 2019-12-31 | BN13: =IF(IFRS_note!D2="","",IFRS_note!D2) -> 2020-03-31 | BO13: =IF(IFRS_note!E2="","",IFRS_note!E2) -> 2020-06-30 | BP13: =IF(IFRS_note!F2="","",IFRS_note!F2) -> 2020-09-30 | BQ13: =IF(IFRS_note!G2="","",IFRS_note!G2) -> 2020-12-31
P14: =TEXT(月營收!$A14,"YYYY/MM") -> 2020/03 | Q14: =IF(月營收!$B14="","",月營收!$B14) -> 113519.599 | R14: =IF(月營收!$C14="","",月營收!$C14) -> 310597.183 | S14: =IF(月營收!$D14="","",月營收!$D14) -> 21.55 | T14: =IF(月營收!$E14="","",月營收!$E14) -> 42.4 | U14: =IF(月營收!$F14="Y","合併",IF(月營收!$F14="N","非合併","")) ->  | V14: ='合併財報(累計)'!$A14 -> 流動資產 | W14: =IF('合併財報(累計)'!$B14="","",'合併財報(累計)'!$B14) -> 951679721 | X14: =IF('合併財報(累計)'!$C14="","",'合併財報(累計)'!$C14) -> 822613914 | Y14: =IF('合併財報(累計)'!$D14="","",'合併財報(累計)'!$D14) -> 1092185308 | Z14: =IF('合併財報(累計)'!$F14="","",'合併財報(累計)'!$F14) -> 1092185308 | AB14: ='合併財報(累計)'!A69 -> 其他收益及費損淨額 | AC14: ='合併財報(累計)'!B69 -> -2101449 | AD14: ='合併財報(累計)'!C69 -> -496224 | AE14: ='合併財報(累計)'!D69 -> 710127 | AG14: ='合併財報(單季)'!A14 -> 稅前淨利 | AH14: ='合併財報(單季)'!B14 -> 112336271 | AI14: ='合併財報(單季)'!C14 -> 128781973 | AJ14: ='合併財報(單季)'!D14 -> 132147178 | AK14: ='合併財報(單季)'!E14 -> 136398638 | AL14: ='合併財報(單季)'!F14 -> 155124003 | AM14: ='合併財報(單季)'!G14 -> 161107361 | AO14: =IFRS_BS!A14 -> 其他流動資產 | AP14: =IFRS_BS!B14 -> 5406423 | AQ14: =IFRS_BS!C14 -> 5320795 | AR14: =IFRS_BS!D14 -> 6590191 | AS14: =IFRS_BS!F14 -> 6590191 | AU14: =IF('IFRS_IS(Q)'!A14="","",'IFRS_IS(Q)'!A14) -> 處分不動產、廠房及設備利益 | AV14: =IF('IFRS_IS(Q)'!B14="","",'IFRS_IS(Q)'!B14) -> 0 | AW14: =IF('IFRS_IS(Q)'!C14="","",'IFRS_IS(Q)'!C14) -> 0 | AX14: =IF('IFRS_IS(Q)'!D14="","",'IFRS_IS(Q)'!D14) -> 0 | AY14: =IF('IFRS_IS(Q)'!E14="","",'IFRS_IS(Q)'!E14) -> 0 | AZ14: =IF('IFRS_IS(Q)'!F14="","",'IFRS_IS(Q)'!F14) -> 0 | BA14: =IF('IFRS_IS(Q)'!G14="","",'IFRS_IS(Q)'!G14) -> 0 | BC14: =IF(IFRS_note!A52="","",IFRS_note!A52) -> 與其他綜合損益組成部分相關之所得稅─OCI | BD14: =IF(IFRS_note!B52="","",IFRS_note!B52) ->  | BE14: =IF(IFRS_note!C52="","",IFRS_note!C52) ->  | BF14: =IF(IFRS_note!D52="","",IFRS_note!D52) ->  | BG14: =IF(IFRS_note!E52="","",IFRS_note!E52) ->  | BH14: =IF(IFRS_note!F52="","",IFRS_note!F52) ->  | BI14: =IF(IFRS_note!G52="","",IFRS_note!G52) ->  | BL14: =IF(IFRS_note!B2="","",IFRS_note!B2) -> 2019-09-27 | BM14: =IF(IFRS_note!C2="","",IFRS_note!C2) -> 2019-12-31 | BN14: =IF(IFRS_note!D2="","",IFRS_note!D2) -> 2020-03-31 | BO14: =IF(IFRS_note!E2="","",IFRS_note!E2) -> 2020-06-30 | BP14: =IF(IFRS_note!F2="","",IFRS_note!F2) -> 2020-09-30 | BQ14: =IF(IFRS_note!G2="","",IFRS_note!G2) -> 2020-12-31
A15: 股利年度 | B15: 現金股利(元) | D15: 股票股利(元) | E15: 除權日 | F15: 除息日 | P15: =TEXT(月營收!$A15,"YYYY/MM") -> 2020/02 | Q15: =IF(月營收!$B15="","",月營收!$B15) -> 93394.449 | R15: =IF(月營收!$C15="","",月營收!$C15) -> 197077.584 | S15: =IF(月營收!$D15="","",月營收!$D15) -> -9.92 | T15: =IF(月營收!$E15="","",月營收!$E15) -> 53.38 | U15: =IF(月營收!$F15="Y","合併",IF(月營收!$F15="N","非合併","")) ->  | V15: ='合併財報(累計)'!$A15 -> 透過損益按公允價值衡量之金融資產－非流動 | W15: =IF('合併財報(累計)'!$B15="","",'合併財報(累計)'!$B15) -> 0 | X15: =IF('合併財報(累計)'!$C15="","",'合併財報(累計)'!$C15) -> 0 | Y15: =IF('合併財報(累計)'!$D15="","",'合併財報(累計)'!$D15) -> 0 | Z15: =IF('合併財報(累計)'!$F15="","",'合併財報(累計)'!$F15) -> 0 | AB15: ='合併財報(累計)'!A70 -> 營業利益 | AC15: ='合併財報(累計)'!B70 -> 383623524 | AD15: ='合併財報(累計)'!C70 -> 372701090 | AE15: ='合併財報(累計)'!D70 -> 566783698 | AG15: ='合併財報(單季)'!A15 -> 所得稅費用 | AH15: ='合併財報(單季)'!B15 -> 11233817 | AI15: ='合併財報(單季)'!C15 -> 12703779 | AJ15: ='合併財報(單季)'!D15 -> 15084285 | AK15: ='合併財報(單季)'!E15 -> 15506124 | AL15: ='合併財報(單季)'!F15 -> 17745852 | AM15: ='合併財報(單季)'!G15 -> 18282837 | AO15: =IFRS_BS!A15 -> 透過損益按公允價值衡量之金融資產－非流動 | AP15: =IFRS_BS!B15 -> 0 | AQ15: =IFRS_BS!C15 -> 0 | AR15: =IFRS_BS!D15 -> 0 | AS15: =IFRS_BS!F15 -> 0 | AU15: =IF('IFRS_IS(Q)'!A15="","",'IFRS_IS(Q)'!A15) -> 處分投資利益 | AV15: =IF('IFRS_IS(Q)'!B15="","",'IFRS_IS(Q)'!B15) -> 326682 | AW15: =IF('IFRS_IS(Q)'!C15="","",'IFRS_IS(Q)'!C15) -> 38688 | AX15: =IF('IFRS_IS(Q)'!D15="","",'IFRS_IS(Q)'!D15) -> 179412 | AY15: =IF('IFRS_IS(Q)'!E15="","",'IFRS_IS(Q)'!E15) -> 747507 | AZ15: =IF('IFRS_IS(Q)'!F15="","",'IFRS_IS(Q)'!F15) -> 400332 | BA15: =IF('IFRS_IS(Q)'!G15="","",'IFRS_IS(Q)'!G15) -> 112169 | BC15: =IF(IFRS_note!A53="","",IFRS_note!A53) -> 其他綜合損益─OCI | BD15: =IF(IFRS_note!B53="","",IFRS_note!B53) -> 4917131 | BE15: =IF(IFRS_note!C53="","",IFRS_note!C53) -> -11823562 | BF15: =IF(IFRS_note!D53="","",IFRS_note!D53) -> 2647918 | BG15: =IF(IFRS_note!E53="","",IFRS_note!E53) -> -9235568 | BH15: =IF(IFRS_note!F53="","",IFRS_note!F53) -> -14670970 | BI15: =IF(IFRS_note!G53="","",IFRS_note!G53) -> -30321802 | BK15: 負債準備<主要觀察負債準備性質>
A16: =IF(股息股利!A3="","",YEAR(股息股利!A3)) -> 2020 | B16: =IF(股息股利!C3="","",股息股利!C3) -> 10 | D16: =IF(股息股利!D3="","",股息股利!D3) -> 0 | E16: =IF(股息股利!E3="","",股息股利!E3) ->  | F16: =IF(股息股利!F3="","",股息股利!F3) -> 2021-06-17 | P16: =TEXT(月營收!$A16,"YYYY/MM") -> 2020/01 | Q16: =IF(月營收!$B16="","",月營收!$B16) -> 103683.135 | R16: =IF(月營收!$C16="","",月營收!$C16) -> 103683.135 | S16: =IF(月營收!$D16="","",月營收!$D16) -> 0.36 | T16: =IF(月營收!$E16="","",月營收!$E16) -> 32.77 | U16: =IF(月營收!$F16="Y","合併",IF(月營收!$F16="N","非合併","")) ->  | V16: ='合併財報(累計)'!$A16 -> 透過其他綜合損益按公允價值衡量之金融資產－非流動 | W16: =IF('合併財報(累計)'!$B16="","",'合併財報(累計)'!$B16) -> 3910681 | X16: =IF('合併財報(累計)'!$C16="","",'合併財報(累計)'!$C16) -> 4124337 | Y16: =IF('合併財報(累計)'!$D16="","",'合併財報(累計)'!$D16) -> 4514940 | Z16: =IF('合併財報(累計)'!$F16="","",'合併財報(累計)'!$F16) -> 4514940 | AB16: ='合併財報(累計)'!A71 -> 採權益法之關聯企業及合資損益之份額 | AC16: ='合併財報(累計)'!B71 -> 3057781 | AD16: ='合併財報(累計)'!C71 -> 2844222 | AE16: ='合併財報(累計)'!D71 -> 3592818 | AG16: ='合併財報(單季)'!A16 -> 繼續營業單位損益 | AH16: ='合併財報(單季)'!B16 -> 101102454 | AI16: ='合併財報(單季)'!C16 -> 116078194 | AJ16: ='合併財報(單季)'!D16 -> 117062893 | AK16: ='合併財報(單季)'!E16 -> 120892514 | AL16: ='合併財報(單季)'!F16 -> 137378151 | AM16: ='合併財報(單季)'!G16 -> 142824524 | AO16: =IFRS_BS!A16 -> 透過其他綜合損益按公允價值衡量之金融資產－非流動 | AP16: =IFRS_BS!B16 -> 3910681 | AQ16: =IFRS_BS!C16 -> 4124337 | AR16: =IFRS_BS!D16 -> 4514940 | AS16: =IFRS_BS!F16 -> 4514940 | AU16: =IF('IFRS_IS(Q)'!A16="","",'IFRS_IS(Q)'!A16) -> 外幣兌換利益 | AV16: =IF('IFRS_IS(Q)'!B16="","",'IFRS_IS(Q)'!B16) -> 530496 | AW16: =IF('IFRS_IS(Q)'!C16="","",'IFRS_IS(Q)'!C16) -> 1564721 | AX16: =IF('IFRS_IS(Q)'!D16="","",'IFRS_IS(Q)'!D16) -> 375791 | AY16: =IF('IFRS_IS(Q)'!E16="","",'IFRS_IS(Q)'!E16) -> 2779312 | AZ16: =IF('IFRS_IS(Q)'!F16="","",'IFRS_IS(Q)'!F16) -> -3155103 | BA16: =IF('IFRS_IS(Q)'!G16="","",'IFRS_IS(Q)'!G16) -> 0 | BC16: =IF(IFRS_note!A54="","",IFRS_note!A54) -> ROA(A)稅後息前 | BD16: =IF(IFRS_note!B54="","",IFRS_note!B54) -> 10.95 | BE16: =IF(IFRS_note!C54="","",IFRS_note!C54) -> 15.98 | BF16: =IF(IFRS_note!D54="","",IFRS_note!D54) -> 5.1 | BG16: =IF(IFRS_note!E54="","",IFRS_note!E54) -> 10.13 | BH16: =IF(IFRS_note!F54="","",IFRS_note!F54) -> 15.36 | BI16: =IF(IFRS_note!G54="","",IFRS_note!G54) -> 20.69 | BK16: =IF(IFRS_note!A19="","",IFRS_note!A19) -> 員工福利負債準備─流動 | BL16: =IF(IFRS_note!B19="","",IFRS_note!B19) -> 0 | BM16: =IF(IFRS_note!C19="","",IFRS_note!C19) -> 0 | BN16: =IF(IFRS_note!D19="","",IFRS_note!D19) -> 0 | BO16: =IF(IFRS_note!E19="","",IFRS_note!E19) -> 0 | BP16: =IF(IFRS_note!F19="","",IFRS_note!F19) -> 0 | BQ16: =IF(IFRS_note!G19="","",IFRS_note!G19) -> 0
A17: =IF(股息股利!A4="","",YEAR(股息股利!A4)) -> 2019 | B17: =IF(股息股利!C4="","",股息股利!C4) -> 9.5 | D17: =IF(股息股利!D4="","",股息股利!D4) -> 0 | E17: =IF(股息股利!E4="","",股息股利!E4) ->  | F17: =IF(股息股利!F4="","",股息股利!F4) -> 2020-06-18 | P17: =TEXT(月營收!$A17,"YYYY/MM") -> 2019/12 | Q17: =IF(月營收!$B17="","",月營收!$B17) -> 103313.138 | R17: =IF(月營收!$C17="","",月營收!$C17) -> 1069985.448 | S17: =IF(月營收!$D17="","",月營收!$D17) -> -4.24 | T17: =IF(月營收!$E17="","",月營收!$E17) -> 15.01 | U17: =IF(月營收!$F17="Y","合併",IF(月營收!$F17="N","非合併","")) ->  | V17: ='合併財報(累計)'!$A17 -> 按攤銷後成本衡量之金融資產－非流動 | W17: =IF('合併財報(累計)'!$B17="","",'合併財報(累計)'!$B17) -> 7528277 | X17: =IF('合併財報(累計)'!$C17="","",'合併財報(累計)'!$C17) -> 7348914 | Y17: =IF('合併財報(累計)'!$D17="","",'合併財報(累計)'!$D17) -> 4372207 | Z17: =IF('合併財報(累計)'!$F17="","",'合併財報(累計)'!$F17) -> 4372207 | AB17: ='合併財報(累計)'!A72 -> 其他收入 | AC17: ='合併財報(累計)'!B72 -> 14852814 | AD17: ='合併財報(累計)'!C72 -> 16606669 | AE17: ='合併財報(累計)'!D72 -> 9679007 | AG17: ='合併財報(單季)'!A17 -> 其他綜合損益－OCI | AH17: ='合併財報(單季)'!B17 -> -3224875 | AI17: ='合併財報(單季)'!C17 -> -16740693 | AJ17: ='合併財報(單季)'!D17 -> 2647918 | AK17: ='合併財報(單季)'!E17 -> -11883486 | AL17: ='合併財報(單季)'!F17 -> -5435402 | AM17: ='合併財報(單季)'!G17 -> -15650832 | AO17: =IFRS_BS!A17 -> 按攤銷後成本衡量之金融資產－非流動 | AP17: =IFRS_BS!B17 -> 7528277 | AQ17: =IFRS_BS!C17 -> 7348914 | AR17: =IFRS_BS!D17 -> 4372207 | AS17: =IFRS_BS!F17 -> 4372207 | AU17: =IF('IFRS_IS(Q)'!A17="","",'IFRS_IS(Q)'!A17) -> 透過損益按公允價值衡量之金融資產（負債）利益 | AV17: =IF('IFRS_IS(Q)'!B17="","",'IFRS_IS(Q)'!B17) -> 18141 | AW17: =IF('IFRS_IS(Q)'!C17="","",'IFRS_IS(Q)'!C17) -> -18141 | AX17: =IF('IFRS_IS(Q)'!D17="","",'IFRS_IS(Q)'!D17) -> 0 | AY17: =IF('IFRS_IS(Q)'!E17="","",'IFRS_IS(Q)'!E17) -> 0 | AZ17: =IF('IFRS_IS(Q)'!F17="","",'IFRS_IS(Q)'!F17) -> 4105213 | BA17: =IF('IFRS_IS(Q)'!G17="","",'IFRS_IS(Q)'!G17) -> 4139278 | BC17: =IF(IFRS_note!A55="","",IFRS_note!A55) -> ROE(A)－稅後 | BD17: =IF(IFRS_note!B55="","",IFRS_note!B55) -> 14.04 | BE17: =IF(IFRS_note!C55="","",IFRS_note!C55) -> 20.93 | BF17: =IF(IFRS_note!D55="","",IFRS_note!D55) -> 7.1 | BG17: =IF(IFRS_note!E55="","",IFRS_note!E55) -> 14.23 | BH17: =IF(IFRS_note!F55="","",IFRS_note!F55) -> 22.01 | BI17: =IF(IFRS_note!G55="","",IFRS_note!G55) -> 29.84 | BK17: =IF(IFRS_note!A20="","",IFRS_note!A20) -> 保固之短期負債準備 | BL17: =IF(IFRS_note!B20="","",IFRS_note!B20) -> 0 | BM17: =IF(IFRS_note!C20="","",IFRS_note!C20) -> 0 | BN17: =IF(IFRS_note!D20="","",IFRS_note!D20) -> 0 | BO17: =IF(IFRS_note!E20="","",IFRS_note!E20) -> 0 | BP17: =IF(IFRS_note!F20="","",IFRS_note!F20) -> 0 | BQ17: =IF(IFRS_note!G20="","",IFRS_note!G20) -> 0
A18: =IF(股息股利!A5="","",YEAR(股息股利!A5)) -> 2018 | B18: =IF(股息股利!C5="","",股息股利!C5) -> 8 | D18: =IF(股息股利!D5="","",股息股利!D5) -> 0 | E18: =IF(股息股利!E5="","",股息股利!E5) ->  | F18: =IF(股息股利!F5="","",股息股利!F5) -> 2019-06-24 | P18: =TEXT(月營收!$A18,"YYYY/MM") -> 2019/11 | Q18: =IF(月營收!$B18="","",月營收!$B18) -> 107884.396 | R18: =IF(月營收!$C18="","",月營收!$C18) -> 966672.31 | S18: =IF(月營收!$D18="","",月營收!$D18) -> 1.74 | T18: =IF(月營收!$E18="","",月營收!$E18) -> 9.65 | U18: =IF(月營收!$F18="Y","合併",IF(月營收!$F18="N","非合併","")) ->  | V18: ='合併財報(累計)'!$A18 -> 避險之金融資產－非流動 | W18: =IF('合併財報(累計)'!$B18="","",'合併財報(累計)'!$B18) -> 0 | X18: =IF('合併財報(累計)'!$C18="","",'合併財報(累計)'!$C18) -> 0 | Y18: =IF('合併財報(累計)'!$D18="","",'合併財報(累計)'!$D18) -> 0 | Z18: =IF('合併財報(累計)'!$F18="","",'合併財報(累計)'!$F18) -> 0 | AB18: ='合併財報(累計)'!A73 -> 其他利益及損失 | AC18: ='合併財報(累計)'!B73 -> -975016 | AD18: ='合併財報(累計)'!C73 -> 945916 | AE18: ='合併財報(累計)'!D73 -> 6806784 | AG18: ='合併財報(單季)'!A18 -> 本期綜合損益總額 | AH18: ='合併財報(單季)'!B18 -> 97877579 | AI18: ='合併財報(單季)'!C18 -> 99337501 | AJ18: ='合併財報(單季)'!D18 -> 119710811 | AK18: ='合併財報(單季)'!E18 -> 109009028 | AL18: ='合併財報(單季)'!F18 -> 131942749 | AM18: ='合併財報(單季)'!G18 -> 127173692 | AO18: =IFRS_BS!A18 -> 合約資產－非流動 | AP18: =IFRS_BS!B18 -> 0 | AQ18: =IFRS_BS!C18 -> 0 | AR18: =IFRS_BS!D18 -> 0 | AS18: =IFRS_BS!F18 -> 0 | AU18: =IF('IFRS_IS(Q)'!A18="","",'IFRS_IS(Q)'!A18) -> 資產評價利益 | AV18: =IF('IFRS_IS(Q)'!B18="","",'IFRS_IS(Q)'!B18) -> 0 | AW18: =IF('IFRS_IS(Q)'!C18="","",'IFRS_IS(Q)'!C18) -> 0 | AX18: =IF('IFRS_IS(Q)'!D18="","",'IFRS_IS(Q)'!D18) -> 0 | AY18: =IF('IFRS_IS(Q)'!E18="","",'IFRS_IS(Q)'!E18) -> 0 | AZ18: =IF('IFRS_IS(Q)'!F18="","",'IFRS_IS(Q)'!F18) -> 0 | BA18: =IF('IFRS_IS(Q)'!G18="","",'IFRS_IS(Q)'!G18) -> 0 | BC18: =IF(IFRS_note!A56="","",IFRS_note!A56) -> ROA-綜合損益 | BD18: =IF(IFRS_note!B56="","",IFRS_note!B56) -> 11.09 | BE18: =IF(IFRS_note!C56="","",IFRS_note!C56) -> 15.32 | BF18: =IF(IFRS_note!D56="","",IFRS_note!D56) -> 5.2 | BG18: =IF(IFRS_note!E56="","",IFRS_note!E56) -> 9.7 | BH18: =IF(IFRS_note!F56="","",IFRS_note!F56) -> 14.72 | BI18: =IF(IFRS_note!G56="","",IFRS_note!G56) -> 19.41 | BK18: =IF(IFRS_note!A21="","",IFRS_note!A21) -> 重組之短期負債準備 | BL18: =IF(IFRS_note!B21="","",IFRS_note!B21) -> 0 | BM18: =IF(IFRS_note!C21="","",IFRS_note!C21) -> 0 | BN18: =IF(IFRS_note!D21="","",IFRS_note!D21) -> 0 | BO18: =IF(IFRS_note!E21="","",IFRS_note!E21) -> 0 | BP18: =IF(IFRS_note!F21="","",IFRS_note!F21) -> 0 | BQ18: =IF(IFRS_note!G21="","",IFRS_note!G21) -> 0
A19: =IF(股息股利!A6="","",YEAR(股息股利!A6)) -> 2017 | B19: =IF(股息股利!C6="","",股息股利!C6) -> 8 | D19: =IF(股息股利!D6="","",股息股利!D6) -> 0 | E19: =IF(股息股利!E6="","",股息股利!E6) ->  | F19: =IF(股息股利!F6="","",股息股利!F6) -> 2018-06-25 | P19: =TEXT(月營收!$A19,"YYYY/MM") -> 2019/10 | Q19: =IF(月營收!$B19="","",月營收!$B19) -> 106039.531 | R19: =IF(月營收!$C19="","",月營收!$C19) -> 858787.914 | S19: =IF(月營收!$D19="","",月營收!$D19) -> 3.79 | T19: =IF(月營收!$E19="","",月營收!$E19) -> 4.42 | U19: =IF(月營收!$F19="Y","合併",IF(月營收!$F19="N","非合併","")) ->  | V19: ='合併財報(累計)'!$A19 -> 採權益法之長期股權投資 | W19: =IF('合併財報(累計)'!$B19="","",'合併財報(累計)'!$B19) -> 17865838 | X19: =IF('合併財報(累計)'!$C19="","",'合併財報(累計)'!$C19) -> 18698788 | Y19: =IF('合併財報(累計)'!$D19="","",'合併財報(累計)'!$D19) -> 18841061 | Z19: =IF('合併財報(累計)'!$F19="","",'合併財報(累計)'!$F19) -> 18841061 | AB19: ='合併財報(累計)'!A74 -> 財務成本 | AC19: ='合併財報(累計)'!B74 -> 3051223 | AD19: ='合併財報(累計)'!C74 -> 3250847 | AE19: ='合併財報(累計)'!D74 -> 2081455 | AG19: ='合併財報(單季)'!A19 -> 歸屬母公司淨利（損） | AH19: ='合併財報(單季)'!B19 -> 101069886 | AI19: ='合併財報(單季)'!C19 -> 116035081 | AJ19: ='合併財報(單季)'!D19 -> 116986720 | AK19: ='合併財報(單季)'!E19 -> 120822193 | AL19: ='合併財報(單季)'!F19 -> 137310040 | AM19: ='合併財報(單季)'!G19 -> 142766434 | AO19: =IFRS_BS!A19 -> 採權益法之長期股權投資 | AP19: =IFRS_BS!B19 -> 17865838 | AQ19: =IFRS_BS!C19 -> 18698788 | AR19: =IFRS_BS!D19 -> 18841061 | AS19: =IFRS_BS!F19 -> 18841061 | AU19: =IF('IFRS_IS(Q)'!A19="","",'IFRS_IS(Q)'!A19) -> 金融資產減損迴轉利益 | AV19: =IF('IFRS_IS(Q)'!B19="","",'IFRS_IS(Q)'!B19) -> 0 | AW19: =IF('IFRS_IS(Q)'!C19="","",'IFRS_IS(Q)'!C19) -> 0 | AX19: =IF('IFRS_IS(Q)'!D19="","",'IFRS_IS(Q)'!D19) -> 0 | AY19: =IF('IFRS_IS(Q)'!E19="","",'IFRS_IS(Q)'!E19) -> 0 | AZ19: =IF('IFRS_IS(Q)'!F19="","",'IFRS_IS(Q)'!F19) -> 0 | BA19: =IF('IFRS_IS(Q)'!G19="","",'IFRS_IS(Q)'!G19) -> 0 | BC19: =IF(IFRS_note!A57="","",IFRS_note!A57) -> ROE-綜合損益 | BD19: =IF(IFRS_note!B57="","",IFRS_note!B57) -> 14.35 | BE19: =IF(IFRS_note!C57="","",IFRS_note!C57) -> 20.22 | BF19: =IF(IFRS_note!D57="","",IFRS_note!D57) -> 7.26 | BG19: =IF(IFRS_note!E57="","",IFRS_note!E57) -> 13.68 | BH19: =IF(IFRS_note!F57="","",IFRS_note!F57) -> 21.15 | BI19: =IF(IFRS_note!G57="","",IFRS_note!G57) -> 28.1 | BK19: =IF(IFRS_note!A22="","",IFRS_note!A22) -> 有待法律程序決定之短期負債準備 | BL19: =IF(IFRS_note!B22="","",IFRS_note!B22) -> 0 | BM19: =IF(IFRS_note!C22="","",IFRS_note!C22) -> 0 | BN19: =IF(IFRS_note!D22="","",IFRS_note!D22) -> 0 | BO19: =IF(IFRS_note!E22="","",IFRS_note!E22) -> 0 | BP19: =IF(IFRS_note!F22="","",IFRS_note!F22) -> 0 | BQ19: =IF(IFRS_note!G22="","",IFRS_note!G22) -> 0
A20: 金融大事紀 | P20: =TEXT(月營收!$A20,"YYYY/MM") -> 2019/09 | Q20: =IF(月營收!$B20="","",月營收!$B20) -> 102170.096 | R20: =IF(月營收!$C20="","",月營收!$C20) -> 752748.383 | S20: =IF(月營收!$D20="","",月營收!$D20) -> -3.72 | T20: =IF(月營收!$E20="","",月營收!$E20) -> 7.64 | U20: =IF(月營收!$F20="Y","合併",IF(月營收!$F20="N","非合併","")) ->  | V20: ='合併財報(累計)'!$A20 -> 不動產廠房及設備 | W20: =IF('合併財報(累計)'!$B20="","",'合併財報(累計)'!$B20) -> 1072050279 | X20: =IF('合併財報(累計)'!$C20="","",'合併財報(累計)'!$C20) -> 1352377405 | Y20: =IF('合併財報(累計)'!$D20="","",'合併財報(累計)'!$D20) -> 1555589120 | Z20: =IF('合併財報(累計)'!$F20="","",'合併財報(累計)'!$F20) -> 1555589120 | AB20: ='合併財報(累計)'!A75 -> 採用權益法認列之關聯企業及合資損失之份額 | AC20: ='合併財報(累計)'!B75 -> 0 | AD20: ='合併財報(累計)'!C75 -> 0 | AE20: ='合併財報(累計)'!D75 -> 0 | AG20: ='合併財報(單季)'!A20 -> 歸屬非控制權益淨利（損） | AH20: ='合併財報(單季)'!B20 -> 32568 | AI20: ='合併財報(單季)'!C20 -> 43113 | AJ20: ='合併財報(單季)'!D20 -> 76173 | AK20: ='合併財報(單季)'!E20 -> 70321 | AL20: ='合併財報(單季)'!F20 -> 68111 | AM20: ='合併財報(單季)'!G20 -> 58090 | AO20: =IFRS_BS!A20 -> 不動產廠房及設備 | AP20: =IFRS_BS!B20 -> 1072050279 | AQ20: =IFRS_BS!C20 -> 1352377405 | AR20: =IFRS_BS!D20 -> 1555589120 | AS20: =IFRS_BS!F20 -> 1555589120 | AU20: =IF('IFRS_IS(Q)'!A20="","",'IFRS_IS(Q)'!A20) -> 資產減損迴轉利益 | AV20: =IF('IFRS_IS(Q)'!B20="","",'IFRS_IS(Q)'!B20) -> 0 | AW20: =IF('IFRS_IS(Q)'!C20="","",'IFRS_IS(Q)'!C20) -> 0 | AX20: =IF('IFRS_IS(Q)'!D20="","",'IFRS_IS(Q)'!D20) -> 0 | AY20: =IF('IFRS_IS(Q)'!E20="","",'IFRS_IS(Q)'!E20) -> 0 | AZ20: =IF('IFRS_IS(Q)'!F20="","",'IFRS_IS(Q)'!F20) -> 0 | BA20: =IF('IFRS_IS(Q)'!G20="","",'IFRS_IS(Q)'!G20) -> 0 | BK20: =IF(IFRS_note!A23="","",IFRS_note!A23) -> 虧損性合約之短期負債準備 | BL20: =IF(IFRS_note!B23="","",IFRS_note!B23) -> 0 | BM20: =IF(IFRS_note!C23="","",IFRS_note!C23) -> 0 | BN20: =IF(IFRS_note!D23="","",IFRS_note!D23) -> 0 | BO20: =IF(IFRS_note!E23="","",IFRS_note!E23) -> 0 | BP20: =IF(IFRS_note!F23="","",IFRS_note!F23) -> 0 | BQ20: =IF(IFRS_note!G23="","",IFRS_note!G23) -> 0
A21: =IF(新聞!C3="","",新聞!C3) -> 2021-03-17 | B21: =IF(新聞!D3="","",新聞!D3) -> 台積電普通股定 110/03/17除息交易，除息參考價 610.50元， 110/03/18為最後過戶日，每股配發現金股利 2.50000 元，現金股息定於 110/04/15開始發放。 | P21: =TEXT(月營收!$A21,"YYYY/MM") -> 2019/08 | Q21: =IF(月營收!$B21="","",月營收!$B21) -> 106117.619 | R21: =IF(月營收!$C21="","",月營收!$C21) -> 650578.287 | S21: =IF(月營收!$D21="","",月營收!$D21) -> 25.2 | T21: =IF(月營收!$E21="","",月營收!$E21) -> 16.54 | U21: =IF(月營收!$F21="Y","合併",IF(月營收!$F21="N","非合併","")) ->  | V21: ='合併財報(累計)'!$A21 -> 商譽及無形資產合計 | W21: =IF('合併財報(累計)'!$B21="","",'合併財報(累計)'!$B21) -> 17002137 | X21: =IF('合併財報(累計)'!$C21="","",'合併財報(累計)'!$C21) -> 20653028 | Y21: =IF('合併財報(累計)'!$D21="","",'合併財報(累計)'!$D21) -> 25768179 | Z21: =IF('合併財報(累計)'!$F21="","",'合併財報(累計)'!$F21) -> 25768179 | AB21: ='合併財報(累計)'!A76 -> 採用權益法認列之關聯企業及合資利益之份額 | AC21: ='合併財報(累計)'!B76 -> 3057781 | AD21: ='合併財報(累計)'!C76 -> 2844222 | AE21: ='合併財報(累計)'!D76 -> 3592818 | AG21: ='合併財報(單季)'!A21 -> 綜合損益歸屬母公司 | AH21: ='合併財報(單季)'!B21 -> 97844981 | AI21: ='合併財報(單季)'!C21 -> 99294825 | AJ21: ='合併財報(單季)'!D21 -> 119634992 | AK21: ='合併財報(單季)'!E21 -> 108937736 | AL21: ='合併財報(單季)'!F21 -> 131874689 | AM21: ='合併財報(單季)'!G21 -> 127116061 | AO21: =IFRS_BS!A21 -> 商譽淨額 | AP21: =IFRS_BS!B21 -> 5795488 | AQ21: =IFRS_BS!C21 -> 5693376 | AR21: =IFRS_BS!D21 -> 5436602 | AS21: =IFRS_BS!F21 -> 5436602 | AU21: =IF('IFRS_IS(Q)'!A21="","",'IFRS_IS(Q)'!A21) -> 不動產、廠房及設備減損迴轉利益 | AV21: =IF('IFRS_IS(Q)'!B21="","",'IFRS_IS(Q)'!B21) -> 0 | AW21: =IF('IFRS_IS(Q)'!C21="","",'IFRS_IS(Q)'!C21) -> 0 | AX21: =IF('IFRS_IS(Q)'!D21="","",'IFRS_IS(Q)'!D21) -> 0 | AY21: =IF('IFRS_IS(Q)'!E21="","",'IFRS_IS(Q)'!E21) -> 0 | AZ21: =IF('IFRS_IS(Q)'!F21="","",'IFRS_IS(Q)'!F21) -> 0 | BA21: =IF('IFRS_IS(Q)'!G21="","",'IFRS_IS(Q)'!G21) -> 0 | BC21: 補充明細_投資性不動產 | BD21: =IF(IFRS_note!B2="","",IFRS_note!B2) -> 2019-09-27 | BE21: =IF(IFRS_note!C2="","",IFRS_note!C2) -> 2019-12-31 | BF21: =IF(IFRS_note!D2="","",IFRS_note!D2) -> 2020-03-31 | BG21: =IF(IFRS_note!E2="","",IFRS_note!E2) -> 2020-06-30 | BH21: =IF(IFRS_note!F2="","",IFRS_note!F2) -> 2020-09-30 | BI21: =IF(IFRS_note!G2="","",IFRS_note!G2) -> 2020-12-31 | BK21: =IF(IFRS_note!A24="","",IFRS_note!A24) -> 除役、復原及修復成本之短期負債準備 | BL21: =IF(IFRS_note!B24="","",IFRS_note!B24) -> 0 | BM21: =IF(IFRS_note!C24="","",IFRS_note!C24) -> 0 | BN21: =IF(IFRS_note!D24="","",IFRS_note!D24) -> 0 | BO21: =IF(IFRS_note!E24="","",IFRS_note!E24) -> 0 | BP21: =IF(IFRS_note!F24="","",IFRS_note!F24) -> 0 | BQ21: =IF(IFRS_note!G24="","",IFRS_note!G24) -> 0
A22: =IF(新聞!C4="","",新聞!C4) -> 2021-03-12 | B22: =IF(新聞!D4="","",新聞!D4) -> 台積電 110/03/12處分采鈺 1,501 千股, 交易金額為 36,000萬元。 | P22: =TEXT(月營收!$A22,"YYYY/MM") -> 2019/07 | Q22: =IF(月營收!$B22="","",月營收!$B22) -> 84757.724 | R22: =IF(月營收!$C22="","",月營收!$C22) -> 544460.668 | S22: =IF(月營收!$D22="","",月營收!$D22) -> -1.29 | T22: =IF(月營收!$E22="","",月營收!$E22) -> 13.97 | U22: =IF(月營收!$F22="Y","合併",IF(月營收!$F22="N","非合併","")) ->  | V22: ='合併財報(累計)'!$A22 -> 遞延所得稅資產 | W22: =IF('合併財報(累計)'!$B22="","",'合併財報(累計)'!$B22) -> 16806387 | X22: =IF('合併財報(累計)'!$C22="","",'合併財報(累計)'!$C22) -> 17928358 | Y22: =IF('合併財報(累計)'!$D22="","",'合併財報(累計)'!$D22) -> 25958184 | Z22: =IF('合併財報(累計)'!$F22="","",'合併財報(累計)'!$F22) -> 25958184 | AB22: ='合併財報(累計)'!A77 -> 預期信用減損（損失）利益 | AC22: ='合併財報(累計)'!B77 -> 2383 | AD22: ='合併財報(累計)'!C77 -> -1714 | AE22: ='合併財報(累計)'!D77 -> -3672 | AG22: ='合併財報(單季)'!A22 -> 綜合損益歸屬非控制權益 | AH22: ='合併財報(單季)'!B22 -> 32598 | AI22: ='合併財報(單季)'!C22 -> 42676 | AJ22: ='合併財報(單季)'!D22 -> 75819 | AK22: ='合併財報(單季)'!E22 -> 71292 | AL22: ='合併財報(單季)'!F22 -> 68060 | AM22: ='合併財報(單季)'!G22 -> 57631 | AO22: =IFRS_BS!A22 -> 遞延所得稅資產 | AP22: =IFRS_BS!B22 -> 16806387 | AQ22: =IFRS_BS!C22 -> 17928358 | AR22: =IFRS_BS!D22 -> 25958184 | AS22: =IFRS_BS!F22 -> 25958184 | AU22: =IF('IFRS_IS(Q)'!A22="","",'IFRS_IS(Q)'!A22) -> 其他減損迴轉利益 | AV22: =IF('IFRS_IS(Q)'!B22="","",'IFRS_IS(Q)'!B22) -> 0 | AW22: =IF('IFRS_IS(Q)'!C22="","",'IFRS_IS(Q)'!C22) -> 0 | AX22: =IF('IFRS_IS(Q)'!D22="","",'IFRS_IS(Q)'!D22) -> 0 | AY22: =IF('IFRS_IS(Q)'!E22="","",'IFRS_IS(Q)'!E22) -> 0 | AZ22: =IF('IFRS_IS(Q)'!F22="","",'IFRS_IS(Q)'!F22) -> 0 | BA22: =IF('IFRS_IS(Q)'!G22="","",'IFRS_IS(Q)'!G22) -> 0 | BK22: =IF(IFRS_note!A25="","",IFRS_note!A25) -> 銷貨退回及折讓之短期負債準備 | BL22: =IF(IFRS_note!B25="","",IFRS_note!B25) -> 0 | BM22: =IF(IFRS_note!C25="","",IFRS_note!C25) -> 0 | BN22: =IF(IFRS_note!D25="","",IFRS_note!D25) -> 0 | BO22: =IF(IFRS_note!E25="","",IFRS_note!E25) -> 0 | BP22: =IF(IFRS_note!F25="","",IFRS_note!F25) -> 0 | BQ22: =IF(IFRS_note!G25="","",IFRS_note!G25) -> 0
A23: =IF(新聞!C5="","",新聞!C5) -> 2021-03-12 | B23: =IF(新聞!D5="","",新聞!D5) -> 台積電子公司TSMC Global, Ltd 110/03/12購買政府機構不動產抵押貸 112 千股, 交易金額為 33,522萬元。 | P23: =TEXT(月營收!$A23,"YYYY/MM") -> 2019/06 | Q23: =IF(月營收!$B23="","",月營收!$B23) -> 85867.929 | R23: =IF(月營收!$C23="","",月營收!$C23) -> 459702.944 | S23: =IF(月營收!$D23="","",月營收!$D23) -> 6.75 | T23: =IF(月營收!$E23="","",月營收!$E23) -> 21.91 | U23: =IF(月營收!$F23="Y","合併",IF(月營收!$F23="N","非合併","")) ->  | V23: ='合併財報(累計)'!$A23 -> 其他非流動資產 | W23: =IF('合併財報(累計)'!$B23="","",'合併財報(累計)'!$B23) -> 3284718 | X23: =IF('合併財報(累計)'!$C23="","",'合併財報(累計)'!$C23) -> 21060288 | Y23: =IF('合併財報(累計)'!$D23="","",'合併財報(累計)'!$D23) -> 33482406 | Z23: =IF('合併財報(累計)'!$F23="","",'合併財報(累計)'!$F23) -> 33482406 | AB23: ='合併財報(累計)'!A78 -> 營業外收入及支出 | AC23: ='合併財報(累計)'!B78 -> 13886739 | AD23: ='合併財報(累計)'!C78 -> 17144246 | AE23: ='合併財報(累計)'!D78 -> 17993482 | AG23: ='合併財報(單季)'!A23 -> 每股盈餘 | AH23: ='合併財報(單季)'!B23 -> 3.9 | AI23: ='合併財報(單季)'!C23 -> 4.47 | AJ23: ='合併財報(單季)'!D23 -> 4.51 | AK23: ='合併財報(單季)'!E23 -> 4.66 | AL23: ='合併財報(單季)'!F23 -> 5.3 | AM23: ='合併財報(單季)'!G23 -> 5.51 | AO23: =IFRS_BS!A23 -> 投資性不動產淨額 | AP23: =IFRS_BS!B23 -> 0 | AQ23: =IFRS_BS!C23 -> 0 | AR23: =IFRS_BS!D23 -> 0 | AS23: =IFRS_BS!F23 -> 0 | AU23: =IF('IFRS_IS(Q)'!A23="","",'IFRS_IS(Q)'!A23) -> 處分不動產、廠房及設備損失 | AV23: =IF('IFRS_IS(Q)'!B23="","",'IFRS_IS(Q)'!B23) -> 0 | AW23: =IF('IFRS_IS(Q)'!C23="","",'IFRS_IS(Q)'!C23) -> 0 | AX23: =IF('IFRS_IS(Q)'!D23="","",'IFRS_IS(Q)'!D23) -> 0 | AY23: =IF('IFRS_IS(Q)'!E23="","",'IFRS_IS(Q)'!E23) -> 0 | AZ23: =IF('IFRS_IS(Q)'!F23="","",'IFRS_IS(Q)'!F23) -> 0 | BA23: =IF('IFRS_IS(Q)'!G23="","",'IFRS_IS(Q)'!G23) -> 0 | BC23: 投資性不動產<主要觀察未來資產增值情形> | BK23: =IF(IFRS_note!A26="","",IFRS_note!A26) -> 保證合約之短期負債準備 | BL23: =IF(IFRS_note!B26="","",IFRS_note!B26) -> 0 | BM23: =IF(IFRS_note!C26="","",IFRS_note!C26) -> 0 | BN23: =IF(IFRS_note!D26="","",IFRS_note!D26) -> 0 | BO23: =IF(IFRS_note!E26="","",IFRS_note!E26) -> 0 | BP23: =IF(IFRS_note!F26="","",IFRS_note!F26) -> 0 | BQ23: =IF(IFRS_note!G26="","",IFRS_note!G26) -> 0
A24: =IF(新聞!C6="","",新聞!C6) -> 2021-03-11 | B24: =IF(新聞!D6="","",新聞!D6) -> 台積電副總經理本人廖德堆於 110/03/11設定 50 千股於元大商業銀行，累計設定質權股數 70 千股，佔持股107.69 %。 | P24: =TEXT(月營收!$A24,"YYYY/MM") -> 2019/05 | Q24: =IF(月營收!$B24="","",月營收!$B24) -> 80436.931 | R24: =IF(月營收!$C24="","",月營收!$C24) -> 373835.015 | S24: =IF(月營收!$D24="","",月營收!$D24) -> 7.69 | T24: =IF(月營收!$E24="","",月營收!$E24) -> -0.66 | U24: =IF(月營收!$F24="Y","合併",IF(月營收!$F24="N","非合併","")) ->  | V24: ='合併財報(累計)'!$A24 -> 非流動資產 | W24: =IF('合併財報(累計)'!$B24="","",'合併財報(累計)'!$B24) -> 1138448317 | X24: =IF('合併財報(累計)'!$C24="","",'合併財報(累計)'!$C24) -> 1442191118 | Y24: =IF('合併財報(累計)'!$D24="","",'合併財報(累計)'!$D24) -> 1668526097 | Z24: =IF('合併財報(累計)'!$F24="","",'合併財報(累計)'!$F24) -> 1668526097 | AB24: ='合併財報(累計)'!A79 -> 稅前淨利 | AC24: ='合併財報(累計)'!B79 -> 397510263 | AD24: ='合併財報(累計)'!C79 -> 389845336 | AE24: ='合併財報(累計)'!D79 -> 584777180 | AG24: ='合併財報(單季)'!A24 -> 每股盈餘－完全稀釋 | AH24: ='合併財報(單季)'!B24 -> 3.9 | AI24: ='合併財報(單季)'!C24 -> 0 | AJ24: ='合併財報(單季)'!D24 -> 4.51 | AK24: ='合併財報(單季)'!E24 -> 4.66 | AL24: ='合併財報(單季)'!F24 -> 5.3 | AM24: ='合併財報(單季)'!G24 -> 0 | AO24: =IFRS_BS!A24 -> 其他非流動資產－其他 | AP24: =IFRS_BS!B24 -> 3284718 | AQ24: =IFRS_BS!C24 -> 3827886 | AR24: =IFRS_BS!D24 -> 5754024 | AS24: =IFRS_BS!F24 -> 5754024 | AU24: =IF('IFRS_IS(Q)'!A24="","",'IFRS_IS(Q)'!A24) -> 處分投資損失 | AV24: =IF('IFRS_IS(Q)'!B24="","",'IFRS_IS(Q)'!B24) -> 0 | AW24: =IF('IFRS_IS(Q)'!C24="","",'IFRS_IS(Q)'!C24) -> 0 | AX24: =IF('IFRS_IS(Q)'!D24="","",'IFRS_IS(Q)'!D24) -> 0 | AY24: =IF('IFRS_IS(Q)'!E24="","",'IFRS_IS(Q)'!E24) -> 0 | AZ24: =IF('IFRS_IS(Q)'!F24="","",'IFRS_IS(Q)'!F24) -> 0 | BA24: =IF('IFRS_IS(Q)'!G24="","",'IFRS_IS(Q)'!G24) -> 0 | BC24: =IF(IFRS_note!A12="","",IFRS_note!A12) -> 投資性不動產淨額 | BD24: =IF(IFRS_note!B12="","",IFRS_note!B12) -> 0 | BE24: =IF(IFRS_note!C12="","",IFRS_note!C12) -> 0 | BF24: =IF(IFRS_note!D12="","",IFRS_note!D12) -> 0 | BG24: =IF(IFRS_note!E12="","",IFRS_note!E12) -> 0 | BH24: =IF(IFRS_note!F12="","",IFRS_note!F12) -> 0 | BI24: =IF(IFRS_note!G12="","",IFRS_note!G12) -> 0 | BK24: =IF(IFRS_note!A27="","",IFRS_note!A27) -> 其他短期負債準備 | BL24: =IF(IFRS_note!B27="","",IFRS_note!B27) -> 0 | BM24: =IF(IFRS_note!C27="","",IFRS_note!C27) -> 0 | BN24: =IF(IFRS_note!D27="","",IFRS_note!D27) -> 0 | BO24: =IF(IFRS_note!E27="","",IFRS_note!E27) -> 0 | BP24: =IF(IFRS_note!F27="","",IFRS_note!F27) -> 0 | BQ24: =IF(IFRS_note!G27="","",IFRS_note!G27) -> 0
A25: =IF(新聞!C7="","",新聞!C7) -> 2021-03-10 | B25: =IF(新聞!D7="","",新聞!D7) -> 台積電 2月份合併營收計 106,533,690千元, 比去年同期成長 14.07 %, 累計110 年 1月至 2月月營收計 233,282,842千元, 比去年同期成長 18.37 %。 | P25: =TEXT(月營收!$A25,"YYYY/MM") -> 2019/04 | Q25: =IF(月營收!$B25="","",月營收!$B25) -> 74693.615 | R25: =IF(月營收!$C25="","",月營收!$C25) -> 293398.084 | S25: =IF(月營收!$D25="","",月營收!$D25) -> -6.31 | T25: =IF(月營收!$E25="","",月營收!$E25) -> -8.77 | U25: =IF(月營收!$F25="Y","合併",IF(月營收!$F25="N","非合併","")) ->  | V25: ='合併財報(累計)'!$A25 -> 資產總額 | W25: =IF('合併財報(累計)'!$B25="","",'合併財報(累計)'!$B25) -> 2090128038 | X25: =IF('合併財報(累計)'!$C25="","",'合併財報(累計)'!$C25) -> 2264805032 | Y25: =IF('合併財報(累計)'!$D25="","",'合併財報(累計)'!$D25) -> 2760711405 | Z25: =IF('合併財報(累計)'!$F25="","",'合併財報(累計)'!$F25) -> 2760711405 | AB25: ='合併財報(累計)'!A80 -> 所得稅費用 | AC25: ='合併財報(累計)'!B80 -> 46325857 | AD25: ='合併財報(累計)'!C80 -> 44501527 | AE25: ='合併財報(累計)'!D80 -> 66619098 | AG25: 以合併為主現金流量表-單季/單半年 | AO25: =IFRS_BS!A25 -> 非流動資產 | AP25: =IFRS_BS!B25 -> 1138448317 | AQ25: =IFRS_BS!C25 -> 1442191118 | AR25: =IFRS_BS!D25 -> 1668526097 | AS25: =IFRS_BS!F25 -> 1668526097 | AU25: =IF('IFRS_IS(Q)'!A25="","",'IFRS_IS(Q)'!A25) -> 外幣兌換損失 | AV25: =IF('IFRS_IS(Q)'!B25="","",'IFRS_IS(Q)'!B25) -> -507929 | AW25: =IF('IFRS_IS(Q)'!C25="","",'IFRS_IS(Q)'!C25) -> 0 | AX25: =IF('IFRS_IS(Q)'!D25="","",'IFRS_IS(Q)'!D25) -> 0 | AY25: =IF('IFRS_IS(Q)'!E25="","",'IFRS_IS(Q)'!E25) -> 0 | AZ25: =IF('IFRS_IS(Q)'!F25="","",'IFRS_IS(Q)'!F25) -> 394836 | BA25: =IF('IFRS_IS(Q)'!G25="","",'IFRS_IS(Q)'!G25) -> 2908462 | BC25: =IF(IFRS_note!A13="","",IFRS_note!A13) -> 投資性不動產─成本 | BD25: =IF(IFRS_note!B13="","",IFRS_note!B13) -> 0 | BE25: =IF(IFRS_note!C13="","",IFRS_note!C13) -> 0 | BF25: =IF(IFRS_note!D13="","",IFRS_note!D13) -> 0 | BG25: =IF(IFRS_note!E13="","",IFRS_note!E13) -> 0 | BH25: =IF(IFRS_note!F13="","",IFRS_note!F13) -> 0 | BI25: =IF(IFRS_note!G13="","",IFRS_note!G13) -> 0
A26: =IF(新聞!C8="","",新聞!C8) -> 2021-03-10 | B26: =IF(新聞!D8="","",新聞!D8) -> 台積電子公司TSMC Global, Ltd 110/02/26購買政府公債91282CBN0 110 千股, 交易金額為 31,086萬元。 | P26: =TEXT(月營收!$A26,"YYYY/MM") -> 2019/03 | Q26: =IF(月營收!$B26="","",月營收!$B26) -> 79721.587 | R26: =IF(月營收!$C26="","",月營收!$C26) -> 218704.469 | S26: =IF(月營收!$D26="","",月營收!$D26) -> 30.93 | T26: =IF(月營收!$E26="","",月營收!$E26) -> -23.12 | U26: =IF(月營收!$F26="Y","合併",IF(月營收!$F26="N","非合併","")) ->  | V26: ='合併財報(累計)'!$A26 -> 短期借款 | W26: =IF('合併財報(累計)'!$B26="","",'合併財報(累計)'!$B26) -> 88754640 | X26: =IF('合併財報(累計)'!$C26="","",'合併財報(累計)'!$C26) -> 118522290 | Y26: =IF('合併財報(累計)'!$D26="","",'合併財報(累計)'!$D26) -> 88559026 | Z26: =IF('合併財報(累計)'!$F26="","",'合併財報(累計)'!$F26) -> 88559026 | AB26: ='合併財報(累計)'!A81 -> 繼續營業單位損益 | AC26: ='合併財報(累計)'!B81 -> 351184406 | AD26: ='合併財報(累計)'!C81 -> 345343809 | AE26: ='合併財報(累計)'!D81 -> 518158082 | AG26: ='合併財報(單季)'!A26 -> 來自營運之現金流量 | AH26: ='合併財報(單季)'!B26 -> 141753021 | AI26: ='合併財報(單季)'!C26 -> 202954417 | AJ26: ='合併財報(單季)'!D26 -> 203029442 | AK26: ='合併財報(單季)'!E26 -> 170334959 | AL26: ='合併財報(單季)'!F26 -> 190171227 | AM26: ='合併財報(單季)'!G26 -> 259130584 | AO26: =IFRS_BS!A26 -> 短期借款 | AP26: =IFRS_BS!B26 -> 88754640 | AQ26: =IFRS_BS!C26 -> 118522290 | AR26: =IFRS_BS!D26 -> 88559026 | AS26: =IFRS_BS!F26 -> 88559026 | AU26: =IF('IFRS_IS(Q)'!A26="","",'IFRS_IS(Q)'!A26) -> 透過損益按公允價值衡量之金融資產（負債）損失 | AV26: =IF('IFRS_IS(Q)'!B26="","",'IFRS_IS(Q)'!B26) -> 940705 | AW26: =IF('IFRS_IS(Q)'!C26="","",'IFRS_IS(Q)'!C26) -> 1063070 | AX26: =IF('IFRS_IS(Q)'!D26="","",'IFRS_IS(Q)'!D26) -> 90963 | AY26: =IF('IFRS_IS(Q)'!E26="","",'IFRS_IS(Q)'!E26) -> 1416828 | AZ26: =IF('IFRS_IS(Q)'!F26="","",'IFRS_IS(Q)'!F26) -> -1503129 | BA26: =IF('IFRS_IS(Q)'!G26="","",'IFRS_IS(Q)'!G26) -> -4662 | BC26: =IF(IFRS_note!A14="","",IFRS_note!A14) -> 投資性不動產─重估增值 | BD26: =IF(IFRS_note!B14="","",IFRS_note!B14) -> 0 | BE26: =IF(IFRS_note!C14="","",IFRS_note!C14) -> 0 | BF26: =IF(IFRS_note!D14="","",IFRS_note!D14) -> 0 | BG26: =IF(IFRS_note!E14="","",IFRS_note!E14) -> 0 | BH26: =IF(IFRS_note!F14="","",IFRS_note!F14) -> 0 | BI26: =IF(IFRS_note!G14="","",IFRS_note!G14) -> 0 | BK26: 補充明細_管理薪酬 | BL26: =IF(IFRS_note!B2="","",IFRS_note!B2) -> 2019-09-27 | BM26: =IF(IFRS_note!C2="","",IFRS_note!C2) -> 2019-12-31 | BN26: =IF(IFRS_note!D2="","",IFRS_note!D2) -> 2020-03-31 | BO26: =IF(IFRS_note!E2="","",IFRS_note!E2) -> 2020-06-30 | BP26: =IF(IFRS_note!F2="","",IFRS_note!F2) -> 2020-09-30 | BQ26: =IF(IFRS_note!G2="","",IFRS_note!G2) -> 2020-12-31
A27: =IF(新聞!C9="","",新聞!C9) -> 2021-03-10 | B27: =IF(新聞!D9="","",新聞!D9) -> 台積電副總經理本人廖德堆於 110/03/10設定 20 千股於元大商業銀行，累計設定質權股數 20 千股，佔持股 30.77 %。 | V27: ='合併財報(累計)'!$A27 -> 透過損益按公允價值衡量之金融負債－流動 | W27: =IF('合併財報(累計)'!$B27="","",'合併財報(累計)'!$B27) -> 40825 | X27: =IF('合併財報(累計)'!$C27="","",'合併財報(累計)'!$C27) -> 982349 | Y27: =IF('合併財報(累計)'!$D27="","",'合併財報(累計)'!$D27) -> 94128 | Z27: =IF('合併財報(累計)'!$F27="","",'合併財報(累計)'!$F27) -> 94128 | AB27: ='合併財報(累計)'!A82 -> 確定福利計畫之再衡量數－不重分類－OCI | AC27: ='合併財報(累計)'!B82 -> -861162 | AD27: ='合併財報(累計)'!C82 -> 253895 | AE27: ='合併財報(累計)'!D82 -> -3516749 | AG27: ='合併財報(單季)'!A27 -> 投資活動之現金流量 | AH27: ='合併財報(單季)'!B27 -> -108290117 | AI27: ='合併財報(單季)'!C27 -> -171605106 | AJ27: ='合併財報(單季)'!D27 -> -188993268 | AK27: ='合併財報(單季)'!E27 -> -129750164 | AL27: ='合併財報(單季)'!F27 -> -96079669 | AM27: ='合併財報(單季)'!G27 -> -90958613 | AO27: =IFRS_BS!A27 -> 透過損益按公允價值衡量之金融負債－流動 | AP27: =IFRS_BS!B27 -> 40825 | AQ27: =IFRS_BS!C27 -> 982349 | AR27: =IFRS_BS!D27 -> 94128 | AS27: =IFRS_BS!F27 -> 94128 | AU27: =IF('IFRS_IS(Q)'!A27="","",'IFRS_IS(Q)'!A27) -> 資產減損損失 | AV27: =IF('IFRS_IS(Q)'!B27="","",'IFRS_IS(Q)'!B27) -> 0 | AW27: =IF('IFRS_IS(Q)'!C27="","",'IFRS_IS(Q)'!C27) -> 0 | AX27: =IF('IFRS_IS(Q)'!D27="","",'IFRS_IS(Q)'!D27) -> 0 | AY27: =IF('IFRS_IS(Q)'!E27="","",'IFRS_IS(Q)'!E27) -> 0 | AZ27: =IF('IFRS_IS(Q)'!F27="","",'IFRS_IS(Q)'!F27) -> 0 | BA27: =IF('IFRS_IS(Q)'!G27="","",'IFRS_IS(Q)'!G27) -> 0 | BC27: =IF(IFRS_note!A15="","",IFRS_note!A15) -> 投資性不動產-累計公允價值變動數 | BD27: =IF(IFRS_note!B15="","",IFRS_note!B15) -> 0 | BE27: =IF(IFRS_note!C15="","",IFRS_note!C15) -> 0 | BF27: =IF(IFRS_note!D15="","",IFRS_note!D15) -> 0 | BG27: =IF(IFRS_note!E15="","",IFRS_note!E15) -> 0 | BH27: =IF(IFRS_note!F15="","",IFRS_note!F15) -> 0 | BI27: =IF(IFRS_note!G15="","",IFRS_note!G15) -> 0
V28: ='合併財報(累計)'!$A28 -> 應付公司債－非流動 | W28: =IF('合併財報(累計)'!$B28="","",'合併財報(累計)'!$B28) -> 56900000 | X28: =IF('合併財報(累計)'!$C28="","",'合併財報(累計)'!$C28) -> 25100000 | Y28: =IF('合併財報(累計)'!$D28="","",'合併財報(累計)'!$D28) -> 254105084 | Z28: =IF('合併財報(累計)'!$F28="","",'合併財報(累計)'!$F28) -> 254105084 | AB28: ='合併財報(累計)'!A83 -> 透過FVOCI衡量權益工具投資未實現評價損益－不重分類－OCI | AC28: ='合併財報(累計)'!B83 -> -3309089 | AD28: ='合併財報(累計)'!C83 -> 334327 | AE28: ='合併財報(累計)'!D83 -> 423697 | AG28: ='合併財報(單季)'!A28 -> 籌資活動之現金流量 | AH28: ='合併財報(單季)'!B28 -> -229112243 | AI28: ='合併財報(單季)'!C28 -> -17182776 | AJ28: ='合併財報(單季)'!D28 -> -40757411 | AK28: ='合併財報(單季)'!E28 -> 5912053 | AL28: ='合併財報(單季)'!F28 -> 47434066 | AM28: ='合併財報(單季)'!G28 -> -101203795 | AO28: =IFRS_BS!A28 -> 避險之金融負債－流動 | AP28: =IFRS_BS!B28 -> 155832 | AQ28: =IFRS_BS!C28 -> 1798 | AR28: =IFRS_BS!D28 -> 1169 | AS28: =IFRS_BS!F28 -> 1169 | AU28: =IF('IFRS_IS(Q)'!A28="","",'IFRS_IS(Q)'!A28) -> 金融資產減損損失 | AV28: =IF('IFRS_IS(Q)'!B28="","",'IFRS_IS(Q)'!B28) -> 0 | AW28: =IF('IFRS_IS(Q)'!C28="","",'IFRS_IS(Q)'!C28) -> 0 | AX28: =IF('IFRS_IS(Q)'!D28="","",'IFRS_IS(Q)'!D28) -> 0 | AY28: =IF('IFRS_IS(Q)'!E28="","",'IFRS_IS(Q)'!E28) -> 0 | AZ28: =IF('IFRS_IS(Q)'!F28="","",'IFRS_IS(Q)'!F28) -> 0 | BA28: =IF('IFRS_IS(Q)'!G28="","",'IFRS_IS(Q)'!G28) -> 0 | BC28: =IFRS_note!A16 -> 投資性不動產─累計折舊 | BD28: =IFRS_note!B16 -> 0 | BE28: =IFRS_note!C16 -> 0 | BF28: =IFRS_note!D16 -> 0 | BG28: =IFRS_note!E16 -> 0 | BH28: =IFRS_note!F16 -> 0 | BI28: =IFRS_note!G16 -> 0 | BK28: 管理階層薪酬<主要觀察公司管理階層薪酬狀況可與公司獲利狀況比較>
V29: ='合併財報(累計)'!$A29 -> 避險之金融負債－流動 | W29: =IF('合併財報(累計)'!$B29="","",'合併財報(累計)'!$B29) -> 155832 | X29: =IF('合併財報(累計)'!$C29="","",'合併財報(累計)'!$C29) -> 1798 | Y29: =IF('合併財報(累計)'!$D29="","",'合併財報(累計)'!$D29) -> 1169 | Z29: =IF('合併財報(累計)'!$F29="","",'合併財報(累計)'!$F29) -> 1169 | AB29: ='合併財報(累計)'!A84 -> 避險工具之損益－不重分類－OCI | AC29: ='合併財報(累計)'!B84 -> 40975 | AD29: ='合併財報(累計)'!C84 -> -109592 | AE29: ='合併財報(累計)'!D84 -> 24085 | AG29: ='合併財報(單季)'!A29 -> 匯率影響數 | AH29: ='合併財報(單季)'!B29 -> -1617623 | AI29: ='合併財報(單季)'!C29 -> -11197499 | AJ29: ='合併財報(單季)'!D29 -> 2099130 | AK29: ='合併財報(單季)'!E29 -> -9660634 | AL29: ='合併財報(單季)'!F29 -> -4943954 | AM29: ='合併財報(單季)'!G29 -> -10992642 | AO29: =IFRS_BS!A29 -> 按攤銷後成本衡量之金融負債－流動 | AP29: =IFRS_BS!B29 -> 0 | AQ29: =IFRS_BS!C29 -> 0 | AR29: =IFRS_BS!D29 -> 0 | AS29: =IFRS_BS!F29 -> 0 | AU29: =IF('IFRS_IS(Q)'!A29="","",'IFRS_IS(Q)'!A29) -> 不動產、廠房及設備減損損失 | AV29: =IF('IFRS_IS(Q)'!B29="","",'IFRS_IS(Q)'!B29) -> 0 | AW29: =IF('IFRS_IS(Q)'!C29="","",'IFRS_IS(Q)'!C29) -> 0 | AX29: =IF('IFRS_IS(Q)'!D29="","",'IFRS_IS(Q)'!D29) -> 0 | AY29: =IF('IFRS_IS(Q)'!E29="","",'IFRS_IS(Q)'!E29) -> 0 | AZ29: =IF('IFRS_IS(Q)'!F29="","",'IFRS_IS(Q)'!F29) -> 0 | BA29: =IF('IFRS_IS(Q)'!G29="","",'IFRS_IS(Q)'!G29) -> 0 | BC29: =IF(IFRS_note!A17="","",IFRS_note!A17) -> 投資性不動產─累計減損 | BD29: =IF(IFRS_note!B17="","",IFRS_note!B17) -> 0 | BE29: =IF(IFRS_note!C17="","",IFRS_note!C17) -> 0 | BF29: =IF(IFRS_note!D17="","",IFRS_note!D17) -> 0 | BG29: =IF(IFRS_note!E17="","",IFRS_note!E17) -> 0 | BH29: =IF(IFRS_note!F17="","",IFRS_note!F17) -> 0 | BI29: =IF(IFRS_note!G17="","",IFRS_note!G17) -> 0 | BK29: =IF(IFRS_note!A37="","",IFRS_note!A37) -> 管理薪酬─薪資獎金等 | BL29: =IF(IFRS_note!B37="","",IFRS_note!B37) -> 0 | BM29: =IF(IFRS_note!C37="","",IFRS_note!C37) -> 0 | BN29: =IF(IFRS_note!D37="","",IFRS_note!D37) -> 0 | BO29: =IF(IFRS_note!E37="","",IFRS_note!E37) -> 0 | BP29: =IF(IFRS_note!F37="","",IFRS_note!F37) -> 0 | BQ29: =IF(IFRS_note!G37="","",IFRS_note!G37) -> 0
V30: ='合併財報(累計)'!$A30 -> 合約負債－流動 | W30: =IF('合併財報(累計)'!$B30="","",'合併財報(累計)'!$B30) -> 4684024 | X30: =IF('合併財報(累計)'!$C30="","",'合併財報(累計)'!$C30) -> 6784323 | Y30: =IF('合併財報(累計)'!$D30="","",'合併財報(累計)'!$D30) -> 13775088 | Z30: =IF('合併財報(累計)'!$F30="","",'合併財報(累計)'!$F30) -> 13775088 | AB30: ='合併財報(累計)'!A85 -> 採權益法認列關聯企業及合資其他綜合損益份額－不重分－OCI | AC30: ='合併財報(累計)'!B85 -> -14217 | AD30: ='合併財報(累計)'!C85 -> -18271 | AE30: ='合併財報(累計)'!D85 -> -11604 | AG30: ='合併財報(單季)'!A30 -> 本期產生現金流量 | AH30: ='合併財報(單季)'!B30 -> -197266962 | AI30: ='合併財報(單季)'!C30 -> 2969036 | AJ30: ='合併財報(單季)'!D30 -> -24622107 | AK30: ='合併財報(單季)'!E30 -> 36836214 | AL30: ='合併財報(單季)'!F30 -> 136581670 | AM30: ='合併財報(單季)'!G30 -> 55975534 | AO30: =IFRS_BS!A30 -> 合約負債－流動 | AP30: =IFRS_BS!B30 -> 4684024 | AQ30: =IFRS_BS!C30 -> 6784323 | AR30: =IFRS_BS!D30 -> 13775088 | AS30: =IFRS_BS!F30 -> 13775088 | AU30: =IF('IFRS_IS(Q)'!A30="","",'IFRS_IS(Q)'!A30) -> 其他利益及損失-其他 | AV30: =IF('IFRS_IS(Q)'!B30="","",'IFRS_IS(Q)'!B30) -> 34846 | AW30: =IF('IFRS_IS(Q)'!C30="","",'IFRS_IS(Q)'!C30) -> 293368 | AX30: =IF('IFRS_IS(Q)'!D30="","",'IFRS_IS(Q)'!D30) -> -132055 | AY30: =IF('IFRS_IS(Q)'!E30="","",'IFRS_IS(Q)'!E30) -> 211282 | AZ30: =IF('IFRS_IS(Q)'!F30="","",'IFRS_IS(Q)'!F30) -> 142133 | BA30: =IF('IFRS_IS(Q)'!G30="","",'IFRS_IS(Q)'!G30) -> 204811 | BC30: =IF(IFRS_note!A18="","",IFRS_note!A18) -> 投資性不動產公允價值 | BD30: =IF(IFRS_note!B18="","",IFRS_note!B18) ->  | BE30: =IF(IFRS_note!C18="","",IFRS_note!C18) ->  | BF30: =IF(IFRS_note!D18="","",IFRS_note!D18) ->  | BG30: =IF(IFRS_note!E18="","",IFRS_note!E18) ->  | BH30: =IF(IFRS_note!F18="","",IFRS_note!F18) ->  | BI30: =IF(IFRS_note!G18="","",IFRS_note!G18) ->  | BK30: =IF(IFRS_note!A38="","",IFRS_note!A38) -> 管理薪酬─業務執行費 | BL30: =IF(IFRS_note!B38="","",IFRS_note!B38) -> 0 | BM30: =IF(IFRS_note!C38="","",IFRS_note!C38) -> 0 | BN30: =IF(IFRS_note!D38="","",IFRS_note!D38) -> 0 | BO30: =IF(IFRS_note!E38="","",IFRS_note!E38) -> 0 | BP30: =IF(IFRS_note!F38="","",IFRS_note!F38) -> 0 | BQ30: =IF(IFRS_note!G38="","",IFRS_note!G38) -> 0
V31: ='合併財報(累計)'!$A31 -> 應付帳款及票據 | W31: =IF('合併財報(累計)'!$B31="","",'合併財報(累計)'!$B31) -> 34357432 | X31: =IF('合併財報(累計)'!$C31="","",'合併財報(累計)'!$C31) -> 40205966 | Y31: =IF('合併財報(累計)'!$D31="","",'合併財報(累計)'!$D31) -> 41095002 | Z31: =IF('合併財報(累計)'!$F31="","",'合併財報(累計)'!$F31) -> 41095002 | AB31: ='合併財報(累計)'!A86 -> 與其他綜合損益組成部分相關之所得稅－可重分類－OCI | AC31: ='合併財報(累計)'!B86 -> 0 | AD31: ='合併財報(累計)'!C86 -> 0 | AE31: ='合併財報(累計)'!D86 -> 0 | AG31: ='合併財報(單季)'!A31 -> 期初現金及約當現金 | AH31: ='合併財報(單季)'!B31 -> 649697262 | AI31: ='合併財報(單季)'!C31 -> 452430300 | AJ31: ='合併財報(單季)'!D31 -> 455399336 | AK31: ='合併財報(單季)'!E31 -> 430777229 | AL31: ='合併財報(單季)'!F31 -> 467613443 | AM31: ='合併財報(單季)'!G31 -> 604195113 | AO31: =IFRS_BS!A31 -> 應付帳款及票據 | AP31: =IFRS_BS!B31 -> 34357432 | AQ31: =IFRS_BS!C31 -> 40205966 | AR31: =IFRS_BS!D31 -> 41095002 | AS31: =IFRS_BS!F31 -> 41095002 | AU31: =IF('IFRS_IS(Q)'!A31="","",'IFRS_IS(Q)'!A31) -> 其他利益及損失 | AV31: =IF('IFRS_IS(Q)'!B31="","",'IFRS_IS(Q)'!B31) -> 459563 | AW31: =IF('IFRS_IS(Q)'!C31="","",'IFRS_IS(Q)'!C31) -> 828657 | AX31: =IF('IFRS_IS(Q)'!D31="","",'IFRS_IS(Q)'!D31) -> 332185 | AY31: =IF('IFRS_IS(Q)'!E31="","",'IFRS_IS(Q)'!E31) -> 2321273 | AZ31: =IF('IFRS_IS(Q)'!F31="","",'IFRS_IS(Q)'!F31) -> 2600868 | BA31: =IF('IFRS_IS(Q)'!G31="","",'IFRS_IS(Q)'!G31) -> 1552458 | BK31: =IF(IFRS_note!A39="","",IFRS_note!A39) -> 管理薪酬─酬勞 (盈餘分 | BL31: =IF(IFRS_note!B39="","",IFRS_note!B39) -> 0 | BM31: =IF(IFRS_note!C39="","",IFRS_note!C39) -> 0 | BN31: =IF(IFRS_note!D39="","",IFRS_note!D39) -> 0 | BO31: =IF(IFRS_note!E39="","",IFRS_note!E39) -> 0 | BP31: =IF(IFRS_note!F39="","",IFRS_note!F39) -> 0 | BQ31: =IF(IFRS_note!G39="","",IFRS_note!G39) -> 0
V32: ='合併財報(累計)'!$A32 -> 其他應付款 | W32: =IF('合併財報(累計)'!$B32="","",'合併財報(累計)'!$B32) -> 81586185 | X32: =IF('合併財報(累計)'!$C32="","",'合併財報(累計)'!$C32) -> 310383861 | Y32: =IF('合併財報(累計)'!$D32="","",'合併財報(累計)'!$D32) -> 343209150 | Z32: =IF('合併財報(累計)'!$F32="","",'合併財報(累計)'!$F32) -> 343209150 | AB32: ='合併財報(累計)'!A87 -> 後續可能重分類至損益之項目－OCI | AC32: ='合併財報(累計)'!B87 -> 13784740 | AD32: ='合併財報(累計)'!C87 -> -12262929 | AE32: ='合併財報(累計)'!D87 -> -27663894 | AG32: 財務比率分析-單季/單半年 | AO32: =IFRS_BS!A32 -> 其他應付款 | AP32: =IFRS_BS!B32 -> 81586185 | AQ32: =IFRS_BS!C32 -> 310383861 | AR32: =IFRS_BS!D32 -> 343209150 | AS32: =IFRS_BS!F32 -> 343209150 | AU32: =IF('IFRS_IS(Q)'!A32="","",'IFRS_IS(Q)'!A32) -> 財務成本 | AV32: =IF('IFRS_IS(Q)'!B32="","",'IFRS_IS(Q)'!B32) -> 843434 | AW32: =IF('IFRS_IS(Q)'!C32="","",'IFRS_IS(Q)'!C32) -> 643597 | AX32: =IF('IFRS_IS(Q)'!D32="","",'IFRS_IS(Q)'!D32) -> 530564 | AY32: =IF('IFRS_IS(Q)'!E32="","",'IFRS_IS(Q)'!E32) -> 409145 | AZ32: =IF('IFRS_IS(Q)'!F32="","",'IFRS_IS(Q)'!F32) -> 373164 | BA32: =IF('IFRS_IS(Q)'!G32="","",'IFRS_IS(Q)'!G32) -> 768582 | BC32: 補充明細_借款明細 | BD32: =IF(IFRS_note!B2="","",IFRS_note!B2) -> 2019-09-27 | BE32: =IF(IFRS_note!C2="","",IFRS_note!C2) -> 2019-12-31 | BF32: =IF(IFRS_note!D2="","",IFRS_note!D2) -> 2020-03-31 | BG32: =IF(IFRS_note!E2="","",IFRS_note!E2) -> 2020-06-30 | BH32: =IF(IFRS_note!F2="","",IFRS_note!F2) -> 2020-09-30 | BI32: =IF(IFRS_note!G2="","",IFRS_note!G2) -> 2020-12-31 | BK32: =IF(IFRS_note!A40="","",IFRS_note!A40) -> 管理薪酬─紅利 | BL32: =IF(IFRS_note!B40="","",IFRS_note!B40) -> 0 | BM32: =IF(IFRS_note!C40="","",IFRS_note!C40) -> 0 | BN32: =IF(IFRS_note!D40="","",IFRS_note!D40) -> 0 | BO32: =IF(IFRS_note!E40="","",IFRS_note!E40) -> 0 | BP32: =IF(IFRS_note!F40="","",IFRS_note!F40) -> 0 | BQ32: =IF(IFRS_note!G40="","",IFRS_note!G40) -> 0
V33: ='合併財報(累計)'!$A33 -> 當期所得稅負債 | W33: =IF('合併財報(累計)'!$B33="","",'合併財報(累計)'!$B33) -> 38987053 | X33: =IF('合併財報(累計)'!$C33="","",'合併財報(累計)'!$C33) -> 32466156 | Y33: =IF('合併財報(累計)'!$D33="","",'合併財報(累計)'!$D33) -> 53909313 | Z33: =IF('合併財報(累計)'!$F33="","",'合併財報(累計)'!$F33) -> 53909313 | AB33: ='合併財報(累計)'!A88 -> 國外營運機構財務報表換算之兌換差額－可重分類－OCI | AC33: ='合併財報(累計)'!B88 -> 14562386 | AD33: ='合併財報(累計)'!C88 -> -14689107 | AE33: ='合併財報(累計)'!D88 -> -29847196 | AG33: ='合併財報(單季)'!A33 -> 營收成長率 | AH33: ='合併財報(單季)'!B33 -> 12.56 | AI33: ='合併財報(單季)'!C33 -> 9.48 | AJ33: ='合併財報(單季)'!D33 -> 42.02 | AK33: ='合併財報(單季)'!E33 -> 28.92 | AL33: ='合併財報(單季)'!F33 -> 21.63 | AM33: ='合併財報(單季)'!G33 -> 13.96 | AO33: =IFRS_BS!A33 -> 負債準備－流動 | AP33: =IFRS_BS!B33 -> 0 | AQ33: =IFRS_BS!C33 -> 0 | AR33: =IFRS_BS!D33 -> 0 | AS33: =IFRS_BS!F33 -> 0 | AU33: =IF('IFRS_IS(Q)'!A33="","",'IFRS_IS(Q)'!A33) -> 採權益法之關聯企業及合資損益 | AV33: =IF('IFRS_IS(Q)'!B33="","",'IFRS_IS(Q)'!B33) -> 915714 | AW33: =IF('IFRS_IS(Q)'!C33="","",'IFRS_IS(Q)'!C33) -> 866482 | AX33: =IF('IFRS_IS(Q)'!D33="","",'IFRS_IS(Q)'!D33) -> 725968 | AY33: =IF('IFRS_IS(Q)'!E33="","",'IFRS_IS(Q)'!E33) -> 678757 | AZ33: =IF('IFRS_IS(Q)'!F33="","",'IFRS_IS(Q)'!F33) -> 833165 | BA33: =IF('IFRS_IS(Q)'!G33="","",'IFRS_IS(Q)'!G33) -> 1354928 | BK33: =IF(IFRS_note!A41="","",IFRS_note!A41) -> 管理薪酬─其他 | BL33: =IF(IFRS_note!B41="","",IFRS_note!B41) -> 0 | BM33: =IF(IFRS_note!C41="","",IFRS_note!C41) -> 0 | BN33: =IF(IFRS_note!D41="","",IFRS_note!D41) ->  | BO33: =IF(IFRS_note!E41="","",IFRS_note!E41) ->  | BP33: =IF(IFRS_note!F41="","",IFRS_note!F41) ->  | BQ33: =IF(IFRS_note!G41="","",IFRS_note!G41) -> 
V34: ='合併財報(累計)'!$A34 -> 負債準備－流動 | W34: =IF('合併財報(累計)'!$B34="","",'合併財報(累計)'!$B34) -> 0 | X34: =IF('合併財報(累計)'!$C34="","",'合併財報(累計)'!$C34) -> 0 | Y34: =IF('合併財報(累計)'!$D34="","",'合併財報(累計)'!$D34) -> 0 | Z34: =IF('合併財報(累計)'!$F34="","",'合併財報(累計)'!$F34) -> 0 | AB34: ='合併財報(累計)'!A89 -> 與其他綜合損益組成部分相關之所得稅－可重分類－OCI_1 | AC34: ='合併財報(累計)'!B89 -> 0 | AD34: ='合併財報(累計)'!C89 -> 0 | AE34: ='合併財報(累計)'!D89 -> 0 | AG34: ='合併財報(單季)'!A34 -> 營業毛利成長率 | AH34: ='合併財報(單季)'!B34 -> 13.01 | AI34: ='合併財報(單季)'!C34 -> 15.36 | AJ34: ='合併財報(單季)'!D34 -> 77.95 | AK34: ='合併財報(單季)'!E34 -> 58.86 | AL34: ='合併財報(單季)'!F34 -> 36.61 | AM34: ='合併財報(單季)'!G34 -> 22.57 | AO34: =IFRS_BS!A34 -> 其他金融負債－流動 | AP34: =IFRS_BS!B34 -> 0 | AQ34: =IFRS_BS!C34 -> 0 | AR34: =IFRS_BS!D34 -> 0 | AS34: =IFRS_BS!F34 -> 0 | AU34: =IF('IFRS_IS(Q)'!A34="","",'IFRS_IS(Q)'!A34) -> 營業外收入及支出 | AV34: =IF('IFRS_IS(Q)'!B34="","",'IFRS_IS(Q)'!B34) -> 4448979 | AW34: =IF('IFRS_IS(Q)'!C34="","",'IFRS_IS(Q)'!C34) -> 4538251 | AX34: =IF('IFRS_IS(Q)'!D34="","",'IFRS_IS(Q)'!D34) -> 3625541 | AY34: =IF('IFRS_IS(Q)'!E34="","",'IFRS_IS(Q)'!E34) -> 5304100 | AZ34: =IF('IFRS_IS(Q)'!F34="","",'IFRS_IS(Q)'!F34) -> 5076654 | BA34: =IF('IFRS_IS(Q)'!G34="","",'IFRS_IS(Q)'!G34) -> 3987187 | BC34: 借款明細<主要觀察舉債來源> | BK34: =IF(IFRS_note!A42="","",IFRS_note!A42) -> 管理階層薪酬總額 | BL34: =IF(IFRS_note!B42="","",IFRS_note!B42) -> 1249780 | BM34: =IF(IFRS_note!C42="","",IFRS_note!C42) -> 1924877 | BN34: =IF(IFRS_note!D42="","",IFRS_note!D42) ->  | BO34: =IF(IFRS_note!E42="","",IFRS_note!E42) ->  | BP34: =IF(IFRS_note!F42="","",IFRS_note!F42) ->  | BQ34: =IF(IFRS_note!G42="","",IFRS_note!G42) -> 2669030
V35: ='合併財報(累計)'!$A35 -> 一年內到期長期負債 | W35: =IF('合併財報(累計)'!$B35="","",'合併財報(累計)'!$B35) -> 34900000 | X35: =IF('合併財報(累計)'!$C35="","",'合併財報(累計)'!$C35) -> 31800000 | Y35: =IF('合併財報(累計)'!$D35="","",'合併財報(累計)'!$D35) -> 2600000 | Z35: =IF('合併財報(累計)'!$F35="","",'合併財報(累計)'!$F35) -> 2600000 | AB35: ='合併財報(累計)'!A91 -> 其他綜合損益－OCI | AC35: ='合併財報(累計)'!B91 -> 9836976 | AD35: ='合併財報(累計)'!C91 -> -11823562 | AE35: ='合併財報(累計)'!D91 -> -30321802 | AG35: ='合併財報(單季)'!A35 -> 營業利益成長率 | AH35: ='合併財報(單季)'!B35 -> 13.27 | AI35: ='合併財報(單季)'!C35 -> 15.98 | AJ35: ='合併財報(單季)'!D35 -> 99.98 | AK35: ='合併財報(單季)'!E35 -> 71.81 | AL35: ='合併財報(單季)'!F35 -> 39.08 | AM35: ='合併財報(單季)'!G35 -> 26.46 | AO35: =IFRS_BS!A35 -> 一年內到期長期負債 | AP35: =IFRS_BS!B35 -> 34900000 | AQ35: =IFRS_BS!C35 -> 31800000 | AR35: =IFRS_BS!D35 -> 2600000 | AS35: =IFRS_BS!F35 -> 2600000 | AU35: =IF('IFRS_IS(Q)'!A35="","",'IFRS_IS(Q)'!A35) -> 稅前淨利 | AV35: =IF('IFRS_IS(Q)'!B35="","",'IFRS_IS(Q)'!B35) -> 112336271 | AW35: =IF('IFRS_IS(Q)'!C35="","",'IFRS_IS(Q)'!C35) -> 128781973 | AX35: =IF('IFRS_IS(Q)'!D35="","",'IFRS_IS(Q)'!D35) -> 132147178 | AY35: =IF('IFRS_IS(Q)'!E35="","",'IFRS_IS(Q)'!E35) -> 136398638 | AZ35: =IF('IFRS_IS(Q)'!F35="","",'IFRS_IS(Q)'!F35) -> 155124003 | BA35: =IF('IFRS_IS(Q)'!G35="","",'IFRS_IS(Q)'!G35) -> 161107361 | BC35: =IF(IFRS_note!A28="","",IFRS_note!A28) -> 長期借款─銀行借款 | BD35: =IF(IFRS_note!B28="","",IFRS_note!B28) -> 0 | BE35: =IF(IFRS_note!C28="","",IFRS_note!C28) -> 0 | BF35: =IF(IFRS_note!D28="","",IFRS_note!D28) -> 0 | BG35: =IF(IFRS_note!E28="","",IFRS_note!E28) -> 0 | BH35: =IF(IFRS_note!F28="","",IFRS_note!F28) -> 0 | BI35: =IF(IFRS_note!G28="","",IFRS_note!G28) -> 0
V36: ='合併財報(累計)'!$A36 -> 其他流動負債 | W36: =IF('合併財報(累計)'!$B36="","",'合併財報(累計)'!$B36) -> 57076595 | X36: =IF('合併財報(累計)'!$C36="","",'合併財報(累計)'!$C36) -> 47313874 | Y36: =IF('合併財報(累計)'!$D36="","",'合併財報(累計)'!$D36) -> 72080147 | Z36: =IF('合併財報(累計)'!$F36="","",'合併財報(累計)'!$F36) -> 72080147 | AB36: ='合併財報(累計)'!A92 -> 本期綜合損益總額 | AC36: ='合併財報(累計)'!B92 -> 361021382 | AD36: ='合併財報(累計)'!C92 -> 333520247 | AE36: ='合併財報(累計)'!D92 -> 487836280 | AG36: ='合併財報(單季)'!A36 -> 稅前淨利成長率 | AH36: ='合併財報(單季)'!B36 -> 13.59 | AI36: ='合併財報(單季)'!C36 -> 15.93 | AJ36: ='合併財報(單季)'!D36 -> 93.82 | AK36: ='合併財報(單季)'!E36 -> 69.34 | AL36: ='合併財報(單季)'!F36 -> 38.09 | AM36: ='合併財報(單季)'!G36 -> 25.1 | AO36: =IFRS_BS!A36 -> 其他流動負債 | AP36: =IFRS_BS!B36 -> 57076595 | AQ36: =IFRS_BS!C36 -> 47313874 | AR36: =IFRS_BS!D36 -> 72080147 | AS36: =IFRS_BS!F36 -> 72080147 | AU36: =IF('IFRS_IS(Q)'!A36="","",'IFRS_IS(Q)'!A36) -> 所得稅費用 | AV36: =IF('IFRS_IS(Q)'!B36="","",'IFRS_IS(Q)'!B36) -> 11233817 | AW36: =IF('IFRS_IS(Q)'!C36="","",'IFRS_IS(Q)'!C36) -> 12703779 | AX36: =IF('IFRS_IS(Q)'!D36="","",'IFRS_IS(Q)'!D36) -> 15084285 | AY36: =IF('IFRS_IS(Q)'!E36="","",'IFRS_IS(Q)'!E36) -> 15506124 | AZ36: =IF('IFRS_IS(Q)'!F36="","",'IFRS_IS(Q)'!F36) -> 17745852 | BA36: =IF('IFRS_IS(Q)'!G36="","",'IFRS_IS(Q)'!G36) -> 18282837 | BC36: =IF(IFRS_note!A29="","",IFRS_note!A29) -> 長期負債─債券 | BD36: =IF(IFRS_note!B29="","",IFRS_note!B29) -> 56900000 | BE36: =IF(IFRS_note!C29="","",IFRS_note!C29) -> 56900000 | BF36: =IF(IFRS_note!D29="","",IFRS_note!D29) -> 59275148 | BG36: =IF(IFRS_note!E29="","",IFRS_note!E29) -> 95239681 | BH36: =IF(IFRS_note!F29="","",IFRS_note!F29) -> 229645434 | BI36: =IF(IFRS_note!G29="","",IFRS_note!G29) -> 256705084
V37: ='合併財報(累計)'!$A37 -> 流動負債 | W37: =IF('合併財報(累計)'!$B37="","",'合併財報(累計)'!$B37) -> 340542586 | X37: =IF('合併財報(累計)'!$C37="","",'合併財報(累計)'!$C37) -> 590735701 | Y37: =IF('合併財報(累計)'!$D37="","",'合併財報(累計)'!$D37) -> 617151048 | Z37: =IF('合併財報(累計)'!$F37="","",'合併財報(累計)'!$F37) -> 617151048 | AB37: ='合併財報(累計)'!A93 -> 歸屬母公司淨利（損） | AC37: ='合併財報(累計)'!B93 -> 351130884 | AD37: ='合併財報(累計)'!C93 -> 345263668 | AE37: ='合併財報(累計)'!D93 -> 517885387 | AG37: ='合併財報(單季)'!A37 -> 稅後淨利成長率 | AH37: ='合併財報(單季)'!B37 -> 13.47 | AI37: ='合併財報(單季)'!C37 -> 16.07 | AJ37: ='合併財報(單季)'!D37 -> 90.7 | AK37: ='合併財報(單季)'!E37 -> 81.04 | AL37: ='合併財報(單季)'!F37 -> 35.88 | AM37: ='合併財報(單季)'!G37 -> 23.04 | AO37: =IFRS_BS!A37 -> 透過損益按公允價值衡量之金融負債－非流動 | AP37: =IFRS_BS!B37 -> 0 | AQ37: =IFRS_BS!C37 -> 0 | AR37: =IFRS_BS!D37 -> 0 | AS37: =IFRS_BS!F37 -> 0 | AU37: =IF('IFRS_IS(Q)'!A37="","",'IFRS_IS(Q)'!A37) -> 合併總損益 | AV37: =IF('IFRS_IS(Q)'!B37="","",'IFRS_IS(Q)'!B37) -> 101102454 | AW37: =IF('IFRS_IS(Q)'!C37="","",'IFRS_IS(Q)'!C37) -> 116078194 | AX37: =IF('IFRS_IS(Q)'!D37="","",'IFRS_IS(Q)'!D37) -> 117062893 | AY37: =IF('IFRS_IS(Q)'!E37="","",'IFRS_IS(Q)'!E37) -> 120892514 | AZ37: =IF('IFRS_IS(Q)'!F37="","",'IFRS_IS(Q)'!F37) -> 137378151 | BA37: =IF('IFRS_IS(Q)'!G37="","",'IFRS_IS(Q)'!G37) -> 142824524 | BC37: =IF(IFRS_note!A30="","",IFRS_note!A30) -> 公司債─不可轉換債 | BD37: =IF(IFRS_note!B30="","",IFRS_note!B30) -> 56900000 | BE37: =IF(IFRS_note!C30="","",IFRS_note!C30) -> 56900000 | BF37: =IF(IFRS_note!D30="","",IFRS_note!D30) -> 59275148 | BG37: =IF(IFRS_note!E30="","",IFRS_note!E30) -> 95239681 | BH37: =IF(IFRS_note!F30="","",IFRS_note!F30) -> 229645434 | BI37: =IF(IFRS_note!G30="","",IFRS_note!G30) -> 256705084
V38: ='合併財報(累計)'!$A39 -> 應付公司債－非流動 | W38: =IF('合併財報(累計)'!$B39="","",'合併財報(累計)'!$B39) -> 56900000 | X38: =IF('合併財報(累計)'!$C39="","",'合併財報(累計)'!$C39) -> 25100000 | Y38: =IF('合併財報(累計)'!$D39="","",'合併財報(累計)'!$D39) -> 254105084 | Z38: =IF('合併財報(累計)'!$F39="","",'合併財報(累計)'!$F39) -> 227045434 | AB38: ='合併財報(累計)'!A94 -> 歸屬非控制權益淨利（損） | AC38: ='合併財報(累計)'!B94 -> 53522 | AD38: ='合併財報(累計)'!C94 -> 80141 | AE38: ='合併財報(累計)'!D94 -> 272695 | AG38: ='合併財報(單季)'!A38 -> 營業毛利率 | AH38: ='合併財報(單季)'!B38 -> 47.58 | AI38: ='合併財報(單季)'!C38 -> 50.2 | AJ38: ='合併財報(單季)'!D38 -> 51.77 | AK38: ='合併財報(單季)'!E38 -> 53.01 | AL38: ='合併財報(單季)'!F38 -> 53.44 | AM38: ='合併財報(單季)'!G38 -> 53.99 | AO38: =IFRS_BS!A38 -> 避險之金融負債－非流動 | AP38: =IFRS_BS!B38 -> 0 | AQ38: =IFRS_BS!C38 -> 0 | AR38: =IFRS_BS!D38 -> 0 | AS38: =IFRS_BS!F38 -> 0 | AU38: =IF('IFRS_IS(Q)'!A38="","",'IFRS_IS(Q)'!A38) -> 國外機構財務報表換算之兌換差額─OCI | AV38: =IF('IFRS_IS(Q)'!B38="","",'IFRS_IS(Q)'!B38) -> -3286794 | AW38: =IF('IFRS_IS(Q)'!C38="","",'IFRS_IS(Q)'!C38) -> -16910375 | AX38: =IF('IFRS_IS(Q)'!D38="","",'IFRS_IS(Q)'!D38) -> 3035024 | AY38: =IF('IFRS_IS(Q)'!E38="","",'IFRS_IS(Q)'!E38) -> -14725220 | AZ38: =IF('IFRS_IS(Q)'!F38="","",'IFRS_IS(Q)'!F38) -> -5473167 | BA38: =IF('IFRS_IS(Q)'!G38="","",'IFRS_IS(Q)'!G38) -> -12683833 | BC38: =IF(IFRS_note!A31="","",IFRS_note!A31) -> 公司債─可轉換債 | BD38: =IF(IFRS_note!B31="","",IFRS_note!B31) -> 0 | BE38: =IF(IFRS_note!C31="","",IFRS_note!C31) -> 0 | BF38: =IF(IFRS_note!D31="","",IFRS_note!D31) -> 0 | BG38: =IF(IFRS_note!E31="","",IFRS_note!E31) -> 0 | BH38: =IF(IFRS_note!F31="","",IFRS_note!F31) -> 0 | BI38: =IF(IFRS_note!G31="","",IFRS_note!G31) -> 0
V39: ='合併財報(累計)'!$A40 -> 銀行借款－非流動 | W39: =IF('合併財報(累計)'!$B40="","",'合併財報(累計)'!$B40) -> 0 | X39: =IF('合併財報(累計)'!$C40="","",'合併財報(累計)'!$C40) -> 0 | Y39: =IF('合併財報(累計)'!$D40="","",'合併財報(累計)'!$D40) -> 1967611 | Z39: =IF('合併財報(累計)'!$F40="","",'合併財報(累計)'!$F40) -> 982449 | AB39: ='合併財報(累計)'!A95 -> 綜合損益歸屬母公司 | AC39: ='合併財報(累計)'!B95 -> 360965015 | AD39: ='合併財報(累計)'!C95 -> 333440460 | AE39: ='合併財報(累計)'!D95 -> 487563478 | AG39: ='合併財報(單季)'!A39 -> 營業利益率 | AH39: ='合併財報(單季)'!B39 -> 36.82 | AI39: ='合併財報(單季)'!C39 -> 39.16 | AJ39: ='合併財報(單季)'!D39 -> 41.38 | AK39: ='合併財報(單季)'!E39 -> 42.19 | AL39: ='合併財報(單季)'!F39 -> 42.1 | AM39: ='合併財報(單季)'!G39 -> 43.46 | AO39: =IFRS_BS!A39 -> 按攤銷後成本衡量之金融負債－非流動 | AP39: =IFRS_BS!B39 -> 0 | AQ39: =IFRS_BS!C39 -> 0 | AR39: =IFRS_BS!D39 -> 0 | AS39: =IFRS_BS!F39 -> 0 | AU39: =IF('IFRS_IS(Q)'!A39="","",'IFRS_IS(Q)'!A39) -> 權益工具投資之利益〈損失〉─OCI | AV39: =IF('IFRS_IS(Q)'!B39="","",'IFRS_IS(Q)'!B39) -> -9015 | AW39: =IF('IFRS_IS(Q)'!C39="","",'IFRS_IS(Q)'!C39) -> 114543 | AX39: =IF('IFRS_IS(Q)'!D39="","",'IFRS_IS(Q)'!D39) -> -44047 | AY39: =IF('IFRS_IS(Q)'!E39="","",'IFRS_IS(Q)'!E39) -> 22337 | AZ39: =IF('IFRS_IS(Q)'!F39="","",'IFRS_IS(Q)'!F39) -> 100021 | BA39: =IF('IFRS_IS(Q)'!G39="","",'IFRS_IS(Q)'!G39) -> 345386 | BC39: =IF(IFRS_note!A32="","",IFRS_note!A32) -> 長期借款─應付租賃及分期 | BD39: =IF(IFRS_note!B32="","",IFRS_note!B32) -> 0 | BE39: =IF(IFRS_note!C32="","",IFRS_note!C32) -> 0 | BF39: =IF(IFRS_note!D32="","",IFRS_note!D32) -> 0 | BG39: =IF(IFRS_note!E32="","",IFRS_note!E32) -> 0 | BH39: =IF(IFRS_note!F32="","",IFRS_note!F32) -> 0 | BI39: =IF(IFRS_note!G32="","",IFRS_note!G32) -> 0
V40: ='合併財報(累計)'!$A42 -> 其他非流動負債 | W40: =IF('合併財報(累計)'!$B42="","",'合併財報(累計)'!$B42) -> 5304367 | X40: =IF('合併財報(累計)'!$C42="","",'合併財報(累計)'!$C42) -> 2305183 | Y40: =IF('合併財報(累計)'!$D42="","",'合併財報(累計)'!$D42) -> 2660999 | Z40: =IF('合併財報(累計)'!$D42="","",'合併財報(累計)'!$D42) -> 2660999 | AB40: ='合併財報(累計)'!A96 -> 綜合損益歸屬非控制權益 | AC40: ='合併財報(累計)'!B96 -> 56367 | AD40: ='合併財報(累計)'!C96 -> 79787 | AE40: ='合併財報(累計)'!D96 -> 272802 | AG40: ='合併財報(單季)'!A40 -> 稅前淨利率 | AH40: ='合併財報(單季)'!B40 -> 38.33 | AI40: ='合併財報(單季)'!C40 -> 40.59 | AJ40: ='合併財報(單季)'!D40 -> 42.55 | AK40: ='合併財報(單季)'!E40 -> 43.9 | AL40: ='合併財報(單季)'!F40 -> 43.52 | AM40: ='合併財報(單季)'!G40 -> 44.56 | AO40: =IFRS_BS!A40 -> 應付公司債－非流動 | AP40: =IFRS_BS!B40 -> 56900000 | AQ40: =IFRS_BS!C40 -> 25100000 | AR40: =IFRS_BS!D40 -> 254105084 | AS40: =IFRS_BS!F40 -> 254105084 | AU40: =IF('IFRS_IS(Q)'!A40="","",'IFRS_IS(Q)'!A40) -> 備供出售金融資產未實現評價損益─OCI | AV40: =IF('IFRS_IS(Q)'!B40="","",'IFRS_IS(Q)'!B40) -> 192177 | AW40: =IF('IFRS_IS(Q)'!C40="","",'IFRS_IS(Q)'!C40) -> -10088 | AX40: =IF('IFRS_IS(Q)'!D40="","",'IFRS_IS(Q)'!D40) -> -210748 | AY40: =IF('IFRS_IS(Q)'!E40="","",'IFRS_IS(Q)'!E40) -> 2909147 | AZ40: =IF('IFRS_IS(Q)'!F40="","",'IFRS_IS(Q)'!F40) -> -97724 | BA40: =IF('IFRS_IS(Q)'!G40="","",'IFRS_IS(Q)'!G40) -> -133964 | BC40: =IF(IFRS_note!A33="","",IFRS_note!A33) -> 長期借款─政策性借款 | BD40: =IF(IFRS_note!B33="","",IFRS_note!B33) -> 0 | BE40: =IF(IFRS_note!C33="","",IFRS_note!C33) -> 0 | BF40: =IF(IFRS_note!D33="","",IFRS_note!D33) -> 0 | BG40: =IF(IFRS_note!E33="","",IFRS_note!E33) -> 0 | BH40: =IF(IFRS_note!F33="","",IFRS_note!F33) -> 982449 | BI40: =IF(IFRS_note!G33="","",IFRS_note!G33) -> 1967611
V41: ='合併財報(累計)'!$A43 -> 非流動負債 | W41: =IF('合併財報(累計)'!$B43="","",'合併財報(累計)'!$B43) -> 72089056 | X41: =IF('合併財報(累計)'!$C43="","",'合併財報(累計)'!$C43) -> 51973905 | Y41: =IF('合併財報(累計)'!$D43="","",'合併財報(累計)'!$D43) -> 292938358 | Z41: =IF('合併財報(累計)'!$D43="","",'合併財報(累計)'!$D43) -> 292938358 | AB41: ='合併財報(累計)'!A97 -> 每股盈餘 | AC41: ='合併財報(累計)'!B97 -> 13.54 | AD41: ='合併財報(累計)'!C97 -> 13.32 | AE41: ='合併財報(累計)'!D97 -> 19.97 | AG41: ='合併財報(單季)'!A41 -> 稅後淨利率 | AH41: ='合併財報(單季)'!B41 -> 34.5 | AI41: ='合併財報(單季)'!C41 -> 36.59 | AJ41: ='合併財報(單季)'!D41 -> 37.69 | AK41: ='合併財報(單季)'!E41 -> 38.91 | AL41: ='合併財報(單季)'!F41 -> 38.54 | AM41: ='合併財報(單季)'!G41 -> 39.51 | AO41: =IFRS_BS!A41 -> 銀行借款－非流動 | AP41: =IFRS_BS!B41 -> 0 | AQ41: =IFRS_BS!C41 -> 0 | AR41: =IFRS_BS!D41 -> 1967611 | AS41: =IFRS_BS!F41 -> 1967611 | AU41: =IF('IFRS_IS(Q)'!A41="","",'IFRS_IS(Q)'!A41) -> 現金流量避險─OCI | AV41: =IF('IFRS_IS(Q)'!B41="","",'IFRS_IS(Q)'!B41) ->  | AW41: =IF('IFRS_IS(Q)'!C41="","",'IFRS_IS(Q)'!C41) ->  | AX41: =IF('IFRS_IS(Q)'!D41="","",'IFRS_IS(Q)'!D41) ->  | AY41: =IF('IFRS_IS(Q)'!E41="","",'IFRS_IS(Q)'!E41) ->  | AZ41: =IF('IFRS_IS(Q)'!F41="","",'IFRS_IS(Q)'!F41) ->  | BA41: =IF('IFRS_IS(Q)'!G41="","",'IFRS_IS(Q)'!G41) ->  | BC41: =IF(IFRS_note!A34="","",IFRS_note!A34) -> 長期借款─重整債權 | BD41: =IF(IFRS_note!B34="","",IFRS_note!B34) -> 0 | BE41: =IF(IFRS_note!C34="","",IFRS_note!C34) -> 0 | BF41: =IF(IFRS_note!D34="","",IFRS_note!D34) -> 0 | BG41: =IF(IFRS_note!E34="","",IFRS_note!E34) -> 0 | BH41: =IF(IFRS_note!F34="","",IFRS_note!F34) -> 0 | BI41: =IF(IFRS_note!G34="","",IFRS_note!G34) -> 0
V42: ='合併財報(累計)'!$A44 -> 負債總額 | W42: =IF('合併財報(累計)'!$B44="","",'合併財報(累計)'!$B44) -> 412631642 | X42: =IF('合併財報(累計)'!$C44="","",'合併財報(累計)'!$C44) -> 642709606 | Y42: =IF('合併財報(累計)'!$D44="","",'合併財報(累計)'!$D44) -> 910089406 | Z42: =IF('合併財報(累計)'!$D44="","",'合併財報(累計)'!$D44) -> 910089406 | AB42: ='合併財報(累計)'!A98 -> 每股盈餘－完全稀釋 | AC42: ='合併財報(累計)'!B98 -> 13.54 | AD42: ='合併財報(累計)'!C98 -> 13.32 | AE42: ='合併財報(累計)'!D98 -> 19.97 | AO42: =IFRS_BS!A42 -> 其他長期借款－非流動 | AP42: =IFRS_BS!B42 -> 0 | AQ42: =IFRS_BS!C42 -> 0 | AR42: =IFRS_BS!D42 -> 0 | AS42: =IFRS_BS!F42 -> 0 | AU42: =IF('IFRS_IS(Q)'!A42="","",'IFRS_IS(Q)'!A42) -> 國外營運機構淨投資避險─OCI | AV42: =IF('IFRS_IS(Q)'!B42="","",'IFRS_IS(Q)'!B42) ->  | AW42: =IF('IFRS_IS(Q)'!C42="","",'IFRS_IS(Q)'!C42) ->  | AX42: =IF('IFRS_IS(Q)'!D42="","",'IFRS_IS(Q)'!D42) ->  | AY42: =IF('IFRS_IS(Q)'!E42="","",'IFRS_IS(Q)'!E42) ->  | AZ42: =IF('IFRS_IS(Q)'!F42="","",'IFRS_IS(Q)'!F42) ->  | BA42: =IF('IFRS_IS(Q)'!G42="","",'IFRS_IS(Q)'!G42) ->  | BC42: =IF(IFRS_note!A35="","",IFRS_note!A35) -> 長期借款─其他借款 | BD42: =IF(IFRS_note!B35="","",IFRS_note!B35) -> 0 | BE42: =IF(IFRS_note!C35="","",IFRS_note!C35) -> 0 | BF42: =IF(IFRS_note!D35="","",IFRS_note!D35) -> 0 | BG42: =IF(IFRS_note!E35="","",IFRS_note!E35) -> 0 | BH42: =IF(IFRS_note!F35="","",IFRS_note!F35) -> 0 | BI42: =IF(IFRS_note!G35="","",IFRS_note!G35) -> 0
V43: ='合併財報(累計)'!$A45 -> 普通股股本 | W43: =IF('合併財報(累計)'!$B45="","",'合併財報(累計)'!$B45) -> 259303805 | X43: =IF('合併財報(累計)'!$C45="","",'合併財報(累計)'!$C45) -> 259303805 | Y43: =IF('合併財報(累計)'!$D45="","",'合併財報(累計)'!$D45) -> 259303805 | Z43: =IF('合併財報(累計)'!$D45="","",'合併財報(累計)'!$D45) -> 259303805 | AB43: =IFRS說明!C3 -> IFRS對淨值無重大影響 | AO43: =IFRS_BS!A43 -> 負債準備－非流動 | AP43: =IFRS_BS!B43 -> 0 | AQ43: =IFRS_BS!C43 -> 0 | AR43: =IFRS_BS!D43 -> 0 | AS43: =IFRS_BS!F43 -> 0 | AU43: =IF('IFRS_IS(Q)'!A43="","",'IFRS_IS(Q)'!A43) -> 重估價之利益〈損失〉─OCI | AV43: =IF('IFRS_IS(Q)'!B43="","",'IFRS_IS(Q)'!B43) -> 0 | AW43: =IF('IFRS_IS(Q)'!C43="","",'IFRS_IS(Q)'!C43) -> 0 | AX43: =IF('IFRS_IS(Q)'!D43="","",'IFRS_IS(Q)'!D43) -> 0 | AY43: =IF('IFRS_IS(Q)'!E43="","",'IFRS_IS(Q)'!E43) -> 0 | AZ43: =IF('IFRS_IS(Q)'!F43="","",'IFRS_IS(Q)'!F43) -> 0 | BA43: =IF('IFRS_IS(Q)'!G43="","",'IFRS_IS(Q)'!G43) -> 0 | BC43: =IF(IFRS_note!A36="","",IFRS_note!A36) -> 特別股負債 | BD43: =IF(IFRS_note!B36="","",IFRS_note!B36) -> 0 | BE43: =IF(IFRS_note!C36="","",IFRS_note!C36) -> 0 | BF43: =IF(IFRS_note!D36="","",IFRS_note!D36) -> 0 | BG43: =IF(IFRS_note!E36="","",IFRS_note!E36) -> 0 | BH43: =IF(IFRS_note!F36="","",IFRS_note!F36) -> 0 | BI43: =IF(IFRS_note!G36="","",IFRS_note!G36) -> 0
V44: ='合併財報(累計)'!$A46 -> 特別股股本 | W44: =IF('合併財報(累計)'!$B46="","",'合併財報(累計)'!$B46) -> 0 | X44: =IF('合併財報(累計)'!$C46="","",'合併財報(累計)'!$C46) -> 0 | Y44: =IF('合併財報(累計)'!$D46="","",'合併財報(累計)'!$D46) -> 0 | Z44: =IF('合併財報(累計)'!$D46="","",'合併財報(累計)'!$D46) -> 0 | AB44: =IF(IFRS說明!C3="","",IFRS說明!C3) -> IFRS對淨值無重大影響 | AO44: =IFRS_BS!A44 -> 應計退休金負債 | AP44: =IFRS_BS!B44 -> 9651405 | AQ44: =IFRS_BS!C44 -> 9182496 | AR44: =IFRS_BS!D44 -> 11914074 | AS44: =IFRS_BS!F44 -> 11914074 | AU44: =IF('IFRS_IS(Q)'!A44="","",'IFRS_IS(Q)'!A44) -> 確定福利計畫精算利益〈損失〉─OCI | AV44: =IF('IFRS_IS(Q)'!B44="","",'IFRS_IS(Q)'!B44) -> 0 | AW44: =IF('IFRS_IS(Q)'!C44="","",'IFRS_IS(Q)'!C44) -> 253895 | AX44: =IF('IFRS_IS(Q)'!D44="","",'IFRS_IS(Q)'!D44) -> 0 | AY44: =IF('IFRS_IS(Q)'!E44="","",'IFRS_IS(Q)'!E44) -> 0 | AZ44: =IF('IFRS_IS(Q)'!F44="","",'IFRS_IS(Q)'!F44) -> 0 | BA44: =IF('IFRS_IS(Q)'!G44="","",'IFRS_IS(Q)'!G44) -> -3516749
V45: ='合併財報(累計)'!$A47 -> 股本 | W45: =IF('合併財報(累計)'!$B47="","",'合併財報(累計)'!$B47) -> 259303805 | X45: =IF('合併財報(累計)'!$C47="","",'合併財報(累計)'!$C47) -> 259303805 | Y45: =IF('合併財報(累計)'!$D47="","",'合併財報(累計)'!$D47) -> 259303805 | Z45: =IF('合併財報(累計)'!$D47="","",'合併財報(累計)'!$D47) -> 259303805 | AB45: =IF(IFRS說明!C4="","",IFRS說明!C4) ->  | AO45: =IFRS_BS!A45 -> 遞延所得稅 | AP45: =IFRS_BS!B45 -> 233284 | AQ45: =IFRS_BS!C45 -> 344393 | AR45: =IFRS_BS!D45 -> 1729941 | AS45: =IFRS_BS!F45 -> 1729941 | AU45: =IF('IFRS_IS(Q)'!A45="","",'IFRS_IS(Q)'!A45) -> 採用權益法認列之關聯企業及合資之其他綜合損益之份額─OCI | AV45: =IF('IFRS_IS(Q)'!B45="","",'IFRS_IS(Q)'!B45) ->  | AW45: =IF('IFRS_IS(Q)'!C45="","",'IFRS_IS(Q)'!C45) ->  | AX45: =IF('IFRS_IS(Q)'!D45="","",'IFRS_IS(Q)'!D45) ->  | AY45: =IF('IFRS_IS(Q)'!E45="","",'IFRS_IS(Q)'!E45) ->  | AZ45: =IF('IFRS_IS(Q)'!F45="","",'IFRS_IS(Q)'!F45) ->  | BA45: =IF('IFRS_IS(Q)'!G45="","",'IFRS_IS(Q)'!G45) -> 
V46: ='合併財報(累計)'!$A48 -> 資本公積合計 | W46: =IF('合併財報(累計)'!$B48="","",'合併財報(累計)'!$B48) -> 56315932 | X46: =IF('合併財報(累計)'!$C48="","",'合併財報(累計)'!$C48) -> 56339709 | Y46: =IF('合併財報(累計)'!$D48="","",'合併財報(累計)'!$D48) -> 56347243 | Z46: =IF('合併財報(累計)'!$D48="","",'合併財報(累計)'!$D48) -> 56347243 | AB46: =IF(IFRS說明!C5="","",IFRS說明!C5) ->  | AO46: =IFRS_BS!A46 -> 其他非流動負債 | AP46: =IFRS_BS!B46 -> 5304367 | AQ46: =IFRS_BS!C46 -> 2305183 | AR46: =IFRS_BS!D46 -> 2660999 | AS46: =IFRS_BS!F46 -> 2660999 | AU46: =IF('IFRS_IS(Q)'!A46="","",'IFRS_IS(Q)'!A46) -> 其他綜合損益─其他─OCI | AV46: =IF('IFRS_IS(Q)'!B46="","",'IFRS_IS(Q)'!B46) ->  | AW46: =IF('IFRS_IS(Q)'!C46="","",'IFRS_IS(Q)'!C46) ->  | AX46: =IF('IFRS_IS(Q)'!D46="","",'IFRS_IS(Q)'!D46) ->  | AY46: =IF('IFRS_IS(Q)'!E46="","",'IFRS_IS(Q)'!E46) ->  | AZ46: =IF('IFRS_IS(Q)'!F46="","",'IFRS_IS(Q)'!F46) ->  | BA46: =IF('IFRS_IS(Q)'!G46="","",'IFRS_IS(Q)'!G46) -> 
A47: 十大股東 | D47: 身份別 | F47: 持股數(張) | G47: 持股率% | H47: 選任持股% | I47: 質押/持股比 | J47: 排名 | V47: ='合併財報(累計)'!$A49 -> 法定盈餘公積 | W47: =IF('合併財報(累計)'!$B49="","",'合併財報(累計)'!$B49) -> 276033811 | X47: =IF('合併財報(累計)'!$C49="","",'合併財報(累計)'!$C49) -> 311146899 | Y47: =IF('合併財報(累計)'!$D49="","",'合併財報(累計)'!$D49) -> 311146899 | Z47: =IF('合併財報(累計)'!$D49="","",'合併財報(累計)'!$D49) -> 311146899 | AB47: =IF(IFRS說明!C10="","",IFRS說明!C10) ->  | AO47: =IFRS_BS!A47 -> 普通股股本 | AP47: =IFRS_BS!B47 -> 259303805 | AQ47: =IFRS_BS!C47 -> 259303805 | AR47: =IFRS_BS!D47 -> 259303805 | AS47: =IFRS_BS!F47 -> 259303805 | AU47: =IF('IFRS_IS(Q)'!A47="","",'IFRS_IS(Q)'!A47) -> 與其他綜合損益組成部分相關之所得稅─OCI | AV47: =IF('IFRS_IS(Q)'!B47="","",'IFRS_IS(Q)'!B47) ->  | AW47: =IF('IFRS_IS(Q)'!C47="","",'IFRS_IS(Q)'!C47) ->  | AX47: =IF('IFRS_IS(Q)'!D47="","",'IFRS_IS(Q)'!D47) ->  | AY47: =IF('IFRS_IS(Q)'!E47="","",'IFRS_IS(Q)'!E47) ->  | AZ47: =IF('IFRS_IS(Q)'!F47="","",'IFRS_IS(Q)'!F47) ->  | BA47: =IF('IFRS_IS(Q)'!G47="","",'IFRS_IS(Q)'!G47) -> 
A48: =IF(OR(十大股東!$H3="",十大股東!$H3="-"),"",十大股東!B3) -> 高權投資(股) 高秀玲 | D48: =IF(ISERROR(IF(OR(十大股東!$H3="",十大股東!$H3="-"),"", IF(LEFT(十大股東!C3,3)="大股東",LEFT(十大股東!C3,4)&MID(十大股東!C3,FIND("(",十大股東!C3)+1,7),十大股東!C3))),十大股東!C3,IF(OR(十大股東!$H3="",十大股東!$H3="-"),"", IF(LEFT(十大股東!C3,3)="大股東",LEFT(十大股東!C3,4)&MID(十大股東!C3,FIND("(",十大股東!C3)+1,7),十大股東!C3))) -> 董事 | F48: =IF(OR(十大股東!$H3="",十大股東!$H3="-"),"",十大股東!D3) -> 284331 | G48: =IF(OR(十大股東!$H3="",十大股東!$H3="-"),"",十大股東!E3) -> 5 | H48: =IF(OR(十大股東!$H3="",十大股東!$H3="-"),"",十大股東!F3) -> 4.93 | I48: =IF(OR(十大股東!$H3="",十大股東!$H3="-"),"",十大股東!G3) -> 28.15 | J48: =IF(OR(十大股東!$H3="",十大股東!$H3="-"),"",十大股東!H3) -> 1 | V48: ='合併財報(累計)'!$A50 -> 特別盈餘公積 | W48: =IF('合併財報(累計)'!$B50="","",'合併財報(累計)'!$B50) -> 26907527 | X48: =IF('合併財報(累計)'!$C50="","",'合併財報(累計)'!$C50) -> 10675106 | Y48: =IF('合併財報(累計)'!$D50="","",'合併財報(累計)'!$D50) -> 42259146 | Z48: =IF('合併財報(累計)'!$D50="","",'合併財報(累計)'!$D50) -> 42259146 | AB48: =IF(IFRS說明!C11="","",IFRS說明!C11) ->  | AO48: =IFRS_BS!A48 -> 特別股股本 | AP48: =IFRS_BS!B48 -> 0 | AQ48: =IFRS_BS!C48 -> 0 | AR48: =IFRS_BS!D48 -> 0 | AS48: =IFRS_BS!F48 -> 0 | AU48: =IF('IFRS_IS(Q)'!A48="","",'IFRS_IS(Q)'!A48) -> 其他綜合損益─OCI | AV48: =IF('IFRS_IS(Q)'!B48="","",'IFRS_IS(Q)'!B48) -> -3224875 | AW48: =IF('IFRS_IS(Q)'!C48="","",'IFRS_IS(Q)'!C48) -> -16740693 | AX48: =IF('IFRS_IS(Q)'!D48="","",'IFRS_IS(Q)'!D48) -> 2647918 | AY48: =IF('IFRS_IS(Q)'!E48="","",'IFRS_IS(Q)'!E48) -> -11883486 | AZ48: =IF('IFRS_IS(Q)'!F48="","",'IFRS_IS(Q)'!F48) -> -5435402 | BA48: =IF('IFRS_IS(Q)'!G48="","",'IFRS_IS(Q)'!G48) -> -15650832
A49: =IF(OR(十大股東!$H4="",十大股東!$H4="-"),"",十大股東!B4) -> 高權投資(股) 陳瑞堂 | D49: =IF(ISERROR(IF(OR(十大股東!$H4="",十大股東!$H4="-"),"", IF(LEFT(十大股東!C4,3)="大股東",LEFT(十大股東!C4,4)&MID(十大股東!C4,FIND("(",十大股東!C4)+1,7),十大股東!C4))),十大股東!C4,IF(OR(十大股東!$H4="",十大股東!$H4="-"),"", IF(LEFT(十大股東!C4,3)="大股東",LEFT(十大股東!C4,4)&MID(十大股東!C4,FIND("(",十大股東!C4)+1,7),十大股東!C4))) -> 董事 | F49: =IF(OR(十大股東!$H4="",十大股東!$H4="-"),"",十大股東!D4) -> 284331 | G49: =IF(OR(十大股東!$H4="",十大股東!$H4="-"),"",十大股東!E4) -> 5 | H49: =IF(OR(十大股東!$H4="",十大股東!$H4="-"),"",十大股東!F4) -> 4.93 | I49: =IF(OR(十大股東!$H4="",十大股東!$H4="-"),"",十大股東!G4) -> 28.15 | J49: =IF(OR(十大股東!$H4="",十大股東!$H4="-"),"",十大股東!H4) -> 1 | V49: ='合併財報(累計)'!$A51 -> 未分配盈餘 | W49: =IF('合併財報(累計)'!$B51="","",'合併財報(累計)'!$B51) -> 1073706503 | X49: =IF('合併財報(累計)'!$C51="","",'合併財報(累計)'!$C51) -> 1011512974 | Y49: =IF('合併財報(累計)'!$D51="","",'合併財報(累計)'!$D51) -> 1235280036 | Z49: =IF('合併財報(累計)'!$D51="","",'合併財報(累計)'!$D51) -> 1235280036 | AB49: =IF(IFRS說明!C12="","",IFRS說明!C12) ->  | AO49: =IFRS_BS!A49 -> 資本公積－發行溢價 | AP49: =IFRS_BS!B49 -> 33077786 | AQ49: =IFRS_BS!C49 -> 33077786 | AR49: =IFRS_BS!D49 -> 33077786 | AS49: =IFRS_BS!F49 -> 33077786 | AU49: =IF('IFRS_IS(Q)'!A49="","",'IFRS_IS(Q)'!A49) -> 本期綜合損益總額 | AV49: =IF('IFRS_IS(Q)'!B49="","",'IFRS_IS(Q)'!B49) -> 97877579 | AW49: =IF('IFRS_IS(Q)'!C49="","",'IFRS_IS(Q)'!C49) -> 99337501 | AX49: =IF('IFRS_IS(Q)'!D49="","",'IFRS_IS(Q)'!D49) -> 119710811 | AY49: =IF('IFRS_IS(Q)'!E49="","",'IFRS_IS(Q)'!E49) -> 109009028 | AZ49: =IF('IFRS_IS(Q)'!F49="","",'IFRS_IS(Q)'!F49) -> 131942749 | BA49: =IF('IFRS_IS(Q)'!G49="","",'IFRS_IS(Q)'!G49) -> 127173692
A50: =IF(OR(十大股東!$H5="",十大股東!$H5="-"),"",十大股東!B5) -> 高權投資(股) 羅智先 | D50: =IF(ISERROR(IF(OR(十大股東!$H5="",十大股東!$H5="-"),"", IF(LEFT(十大股東!C5,3)="大股東",LEFT(十大股東!C5,4)&MID(十大股東!C5,FIND("(",十大股東!C5)+1,7),十大股東!C5))),十大股東!C5,IF(OR(十大股東!$H5="",十大股東!$H5="-"),"", IF(LEFT(十大股東!C5,3)="大股東",LEFT(十大股東!C5,4)&MID(十大股東!C5,FIND("(",十大股東!C5)+1,7),十大股東!C5))) -> 董事長/總經理 | F50: =IF(OR(十大股東!$H5="",十大股東!$H5="-"),"",十大股東!D5) -> 284331 | G50: =IF(OR(十大股東!$H5="",十大股東!$H5="-"),"",十大股東!E5) -> 5 | H50: =IF(OR(十大股東!$H5="",十大股東!$H5="-"),"",十大股東!F5) -> 4.93 | I50: =IF(OR(十大股東!$H5="",十大股東!$H5="-"),"",十大股東!G5) -> 28.15 | J50: =IF(OR(十大股東!$H5="",十大股東!$H5="-"),"",十大股東!H5) -> 1 | V50: ='合併財報(累計)'!$A52 -> 保留盈餘 | W50: =IF('合併財報(累計)'!$B52="","",'合併財報(累計)'!$B52) -> 1376647841 | X50: =IF('合併財報(累計)'!$C52="","",'合併財報(累計)'!$C52) -> 1333334979 | Y50: =IF('合併財報(累計)'!$D52="","",'合併財報(累計)'!$D52) -> 1588686081 | Z50: =IF('合併財報(累計)'!$D52="","",'合併財報(累計)'!$D52) -> 1588686081 | AB50: =IF(IFRS說明!C13="","",IFRS說明!C13) ->  | AO50: =IFRS_BS!A50 -> 法定盈餘公積 | AP50: =IFRS_BS!B50 -> 276033811 | AQ50: =IFRS_BS!C50 -> 311146899 | AR50: =IFRS_BS!D50 -> 311146899 | AS50: =IFRS_BS!F50 -> 311146899 | AU50: =IF('IFRS_IS(Q)'!A50="","",'IFRS_IS(Q)'!A50) -> 本期稅後淨利〈歸屬母公司股東〉 | AV50: =IF('IFRS_IS(Q)'!B50="","",'IFRS_IS(Q)'!B50) -> 101069886 | AW50: =IF('IFRS_IS(Q)'!C50="","",'IFRS_IS(Q)'!C50) -> 116035081 | AX50: =IF('IFRS_IS(Q)'!D50="","",'IFRS_IS(Q)'!D50) -> 116986720 | AY50: =IF('IFRS_IS(Q)'!E50="","",'IFRS_IS(Q)'!E50) -> 120822193 | AZ50: =IF('IFRS_IS(Q)'!F50="","",'IFRS_IS(Q)'!F50) -> 137310040 | BA50: =IF('IFRS_IS(Q)'!G50="","",'IFRS_IS(Q)'!G50) -> 142766434
A51: =IF(OR(十大股東!$H6="",十大股東!$H6="-"),"",十大股東!B6) -> 摩根梵市場股 摩根梵市場股 | D51: =IF(ISERROR(IF(OR(十大股東!$H6="",十大股東!$H6="-"),"", IF(LEFT(十大股東!C6,3)="大股東",LEFT(十大股東!C6,4)&MID(十大股東!C6,FIND("(",十大股東!C6)+1,7),十大股東!C6))),十大股東!C6,IF(OR(十大股東!$H6="",十大股東!$H6="-"),"", IF(LEFT(十大股東!C6,3)="大股東",LEFT(十大股東!C6,4)&MID(十大股東!C6,FIND("(",十大股東!C6)+1,7),十大股東!C6))) -> 大股東 | F51: =IF(OR(十大股東!$H6="",十大股東!$H6="-"),"",十大股東!D6) -> 73991 | G51: =IF(OR(十大股東!$H6="",十大股東!$H6="-"),"",十大股東!E6) -> 1.3 | H51: =IF(OR(十大股東!$H6="",十大股東!$H6="-"),"",十大股東!F6) -> 0 | I51: =IF(OR(十大股東!$H6="",十大股東!$H6="-"),"",十大股東!G6) -> 0 | J51: =IF(OR(十大股東!$H6="",十大股東!$H6="-"),"",十大股東!H6) -> 10 | V51: ='合併財報(累計)'!$A53 -> 其他權益 | W51: =IF('合併財報(累計)'!$B53="","",'合併財報(累計)'!$B53) -> -15449913 | X51: =IF('合併財報(累計)'!$C53="","",'合併財報(累計)'!$C53) -> -27568369 | Y51: =IF('合併財報(累計)'!$D53="","",'合併財報(累計)'!$D53) -> -54679873 | Z51: =IF('合併財報(累計)'!$D53="","",'合併財報(累計)'!$D53) -> -54679873 | AB51: =IF(IFRS說明!C14="","",IFRS說明!C14) ->  | AO51: =IFRS_BS!A51 -> 特別盈餘公積 | AP51: =IFRS_BS!B51 -> 26907527 | AQ51: =IFRS_BS!C51 -> 10675106 | AR51: =IFRS_BS!D51 -> 42259146 | AS51: =IFRS_BS!F51 -> 42259146 | AU51: =IF('IFRS_IS(Q)'!A51="","",'IFRS_IS(Q)'!A51) -> 每股盈餘 | AV51: =IF('IFRS_IS(Q)'!B51="","",'IFRS_IS(Q)'!B51) -> 3.9 | AW51: =IF('IFRS_IS(Q)'!C51="","",'IFRS_IS(Q)'!C51) -> 4.47 | AX51: =IF('IFRS_IS(Q)'!D51="","",'IFRS_IS(Q)'!D51) -> 4.51 | AY51: =IF('IFRS_IS(Q)'!E51="","",'IFRS_IS(Q)'!E51) -> 4.66 | AZ51: =IF('IFRS_IS(Q)'!F51="","",'IFRS_IS(Q)'!F51) -> 5.3 | BA51: =IF('IFRS_IS(Q)'!G51="","",'IFRS_IS(Q)'!G51) -> 5.51
A52: =IF(OR(十大股東!$H7="",十大股東!$H7="-"),"",十大股東!B7) -> 匯豐巴黎財香 匯豐巴黎財香 | D52: =IF(ISERROR(IF(OR(十大股東!$H7="",十大股東!$H7="-"),"", IF(LEFT(十大股東!C7,3)="大股東",LEFT(十大股東!C7,4)&MID(十大股東!C7,FIND("(",十大股東!C7)+1,7),十大股東!C7))),十大股東!C7,IF(OR(十大股東!$H7="",十大股東!$H7="-"),"", IF(LEFT(十大股東!C7,3)="大股東",LEFT(十大股東!C7,4)&MID(十大股東!C7,FIND("(",十大股東!C7)+1,7),十大股東!C7))) -> 大股東 | F52: =IF(OR(十大股東!$H7="",十大股東!$H7="-"),"",十大股東!D7) -> 172709 | G52: =IF(OR(十大股東!$H7="",十大股東!$H7="-"),"",十大股東!E7) -> 3.04 | H52: =IF(OR(十大股東!$H7="",十大股東!$H7="-"),"",十大股東!F7) -> 0 | I52: =IF(OR(十大股東!$H7="",十大股東!$H7="-"),"",十大股東!G7) -> 0 | J52: =IF(OR(十大股東!$H7="",十大股東!$H7="-"),"",十大股東!H7) -> 2 | V52: ='合併財報(累計)'!$A54 -> 母公司股東權益合計 | W52: =IF('合併財報(累計)'!$B54="","",'合併財報(累計)'!$B54) -> 1676817665 | X52: =IF('合併財報(累計)'!$C54="","",'合併財報(累計)'!$C54) -> 1621410124 | Y52: =IF('合併財報(累計)'!$D54="","",'合併財報(累計)'!$D54) -> 1849657256 | Z52: =IF('合併財報(累計)'!$D54="","",'合併財報(累計)'!$D54) -> 1849657256 | AB52: =IF(IFRS說明!C15="","",IFRS說明!C15) ->  | AO52: =IFRS_BS!A52 -> 國外營運機構財務報表換算之兌換差額 | AP52: =IFRS_BS!B52 -> -12042347 | AQ52: =IFRS_BS!C52 -> -26871400 | AR52: =IFRS_BS!D52 -> -57001627 | AS52: =IFRS_BS!F52 -> -57001627 | AU52: 財務比率
A53: =IF(OR(十大股東!$H8="",十大股東!$H8="-"),"",十大股東!B8) -> 侯博明 侯博明 | D53: =IF(ISERROR(IF(OR(十大股東!$H8="",十大股東!$H8="-"),"", IF(LEFT(十大股東!C8,3)="大股東",LEFT(十大股東!C8,4)&MID(十大股東!C8,FIND("(",十大股東!C8)+1,7),十大股東!C8))),十大股東!C8,IF(OR(十大股東!$H8="",十大股東!$H8="-"),"", IF(LEFT(十大股東!C8,3)="大股東",LEFT(十大股東!C8,4)&MID(十大股東!C8,FIND("(",十大股東!C8)+1,7),十大股東!C8))) -> 法人代表(董事) | F53: =IF(OR(十大股東!$H8="",十大股東!$H8="-"),"",十大股東!D8) -> 147751 | G53: =IF(OR(十大股東!$H8="",十大股東!$H8="-"),"",十大股東!E8) -> 2.6 | H53: =IF(OR(十大股東!$H8="",十大股東!$H8="-"),"",十大股東!F8) -> 0 | I53: =IF(OR(十大股東!$H8="",十大股東!$H8="-"),"",十大股東!G8) -> 0 | J53: =IF(OR(十大股東!$H8="",十大股東!$H8="-"),"",十大股東!H8) -> 3 | V53: ='合併財報(累計)'!$A55 -> 非控制權益 | W53: =IF('合併財報(累計)'!$B55="","",'合併財報(累計)'!$B55) -> 678731 | X53: =IF('合併財報(累計)'!$C55="","",'合併財報(累計)'!$C55) -> 685302 | Y53: =IF('合併財報(累計)'!$D55="","",'合併財報(累計)'!$D55) -> 964743 | Z53: =IF('合併財報(累計)'!$D55="","",'合併財報(累計)'!$D55) -> 964743 | AB53: =IF(IFRS說明!C16="","",IFRS說明!C16) ->  | AO53: =IFRS_BS!A53 -> 透過其他綜合損益按公允價值衡量之金融資產未實現損益 | AP53: =IFRS_BS!B53 -> -3429324 | AQ53: =IFRS_BS!C53 -> -692959 | AR53: =IFRS_BS!D53 -> 2321754 | AS53: =IFRS_BS!F53 -> 2321754 | AU53: =IF('IFRS_IS(Q)'!A52="","",'IFRS_IS(Q)'!A52) -> 營業毛利率 | AV53: =IF('IFRS_IS(Q)'!B52="","",'IFRS_IS(Q)'!B52) -> 47.58 | AW53: =IF('IFRS_IS(Q)'!C52="","",'IFRS_IS(Q)'!C52) -> 50.2 | AX53: =IF('IFRS_IS(Q)'!D52="","",'IFRS_IS(Q)'!D52) -> 51.77 | AY53: =IF('IFRS_IS(Q)'!E52="","",'IFRS_IS(Q)'!E52) -> 53.01 | AZ53: =IF('IFRS_IS(Q)'!F52="","",'IFRS_IS(Q)'!F52) -> 53.44 | BA53: =IF('IFRS_IS(Q)'!G52="","",'IFRS_IS(Q)'!G52) -> 53.99
A54: =IF(OR(十大股東!$H9="",十大股東!$H9="-"),"",十大股東!B9) -> 侯博裕 侯博裕 | D54: =IF(ISERROR(IF(OR(十大股東!$H9="",十大股東!$H9="-"),"", IF(LEFT(十大股東!C9,3)="大股東",LEFT(十大股東!C9,4)&MID(十大股東!C9,FIND("(",十大股東!C9)+1,7),十大股東!C9))),十大股東!C9,IF(OR(十大股東!$H9="",十大股東!$H9="-"),"", IF(LEFT(十大股東!C9,3)="大股東",LEFT(十大股東!C9,4)&MID(十大股東!C9,FIND("(",十大股東!C9)+1,7),十大股東!C9))) -> 董事 | F54: =IF(OR(十大股東!$H9="",十大股東!$H9="-"),"",十大股東!D9) -> 128917 | G54: =IF(OR(十大股東!$H9="",十大股東!$H9="-"),"",十大股東!E9) -> 2.27 | H54: =IF(OR(十大股東!$H9="",十大股東!$H9="-"),"",十大股東!F9) -> 2.27 | I54: =IF(OR(十大股東!$H9="",十大股東!$H9="-"),"",十大股東!G9) -> 0 | J54: =IF(OR(十大股東!$H9="",十大股東!$H9="-"),"",十大股東!H9) -> 4 | V54: ='合併財報(累計)'!$A56 -> 股東權益總額 | W54: =IF('合併財報(累計)'!$B56="","",'合併財報(累計)'!$B56) -> 1677496396 | X54: =IF('合併財報(累計)'!$C56="","",'合併財報(累計)'!$C56) -> 1622095426 | Y54: =IF('合併財報(累計)'!$D56="","",'合併財報(累計)'!$D56) -> 1850621999 | Z54: =IF('合併財報(累計)'!$D56="","",'合併財報(累計)'!$D56) -> 1850621999 | AB54: =IF(IFRS說明!C17="","",IFRS說明!C17) ->  | AO54: =IFRS_BS!A54 -> 指定按公允價值衡量之金融負債信用風險變動影響數 | AP54: =IFRS_BS!B54 -> 0 | AQ54: =IFRS_BS!C54 -> 0 | AR54: =IFRS_BS!D54 -> 0 | AS54: =IFRS_BS!F54 -> 0 | AU54: =IF('IFRS_IS(Q)'!A53="","",'IFRS_IS(Q)'!A53) -> 營業利益率 | AV54: =IF('IFRS_IS(Q)'!B53="","",'IFRS_IS(Q)'!B53) -> 36.82 | AW54: =IF('IFRS_IS(Q)'!C53="","",'IFRS_IS(Q)'!C53) -> 39.16 | AX54: =IF('IFRS_IS(Q)'!D53="","",'IFRS_IS(Q)'!D53) -> 41.38 | AY54: =IF('IFRS_IS(Q)'!E53="","",'IFRS_IS(Q)'!E53) -> 42.19 | AZ54: =IF('IFRS_IS(Q)'!F53="","",'IFRS_IS(Q)'!F53) -> 42.1 | BA54: =IF('IFRS_IS(Q)'!G53="","",'IFRS_IS(Q)'!G53) -> 43.46
A55: =IF(OR(十大股東!$H10="",十大股東!$H10="-"),"",十大股東!B10) -> 花旗託管新加 花旗託管新加 | D55: =IF(ISERROR(IF(OR(十大股東!$H10="",十大股東!$H10="-"),"", IF(LEFT(十大股東!C10,3)="大股東",LEFT(十大股東!C10,4)&MID(十大股東!C10,FIND("(",十大股東!C10)+1,7),十大股東!C10))),十大股東!C10,IF(OR(十大股東!$H10="",十大股東!$H10="-"),"", IF(LEFT(十大股東!C10,3)="大股東",LEFT(十大股東!C10,4)&MID(十大股東!C10,FIND("(",十大股東!C10)+1,7),十大股東!C10))) -> 大股東 | F55: =IF(OR(十大股東!$H10="",十大股東!$H10="-"),"",十大股東!D10) -> 117118 | G55: =IF(OR(十大股東!$H10="",十大股東!$H10="-"),"",十大股東!E10) -> 2.06 | H55: =IF(OR(十大股東!$H10="",十大股東!$H10="-"),"",十大股東!F10) -> 0 | I55: =IF(OR(十大股東!$H10="",十大股東!$H10="-"),"",十大股東!G10) -> 0 | J55: =IF(OR(十大股東!$H10="",十大股東!$H10="-"),"",十大股東!H10) -> 5 | V55: ='合併財報(累計)'!$A57 -> 負債及股東權益總額 | W55: =IF('合併財報(累計)'!$B57="","",'合併財報(累計)'!$B57) -> 2090128038 | X55: =IF('合併財報(累計)'!$C57="","",'合併財報(累計)'!$C57) -> 2264805032 | Y55: =IF('合併財報(累計)'!$D57="","",'合併財報(累計)'!$D57) -> 2760711405 | Z55: =IF('合併財報(累計)'!$D57="","",'合併財報(累計)'!$D57) -> 2760711405 | AB55: =IF(IFRS說明!C18="","",IFRS說明!C18) ->  | AO55: =IFRS_BS!A55 -> 確定福利計畫再衡量數 | AP55: =IFRS_BS!B55 -> 0 | AQ55: =IFRS_BS!C55 -> 0 | AR55: =IFRS_BS!D55 -> 0 | AS55: =IFRS_BS!F55 -> 0 | AU55: =IF('IFRS_IS(Q)'!A54="","",'IFRS_IS(Q)'!A54) -> 稅後淨利率 | AV55: =IF('IFRS_IS(Q)'!B54="","",'IFRS_IS(Q)'!B54) -> 34.5 | AW55: =IF('IFRS_IS(Q)'!C54="","",'IFRS_IS(Q)'!C54) -> 36.59 | AX55: =IF('IFRS_IS(Q)'!D54="","",'IFRS_IS(Q)'!D54) -> 37.69 | AY55: =IF('IFRS_IS(Q)'!E54="","",'IFRS_IS(Q)'!E54) -> 38.91 | AZ55: =IF('IFRS_IS(Q)'!F54="","",'IFRS_IS(Q)'!F54) -> 38.54 | BA55: =IF('IFRS_IS(Q)'!G54="","",'IFRS_IS(Q)'!G54) -> 39.51
A56: =IF(OR(十大股東!$H11="",十大股東!$H11="-"),"",十大股東!B11) -> 高秀玲 高秀玲 | D56: =IF(ISERROR(IF(OR(十大股東!$H11="",十大股東!$H11="-"),"", IF(LEFT(十大股東!C11,3)="大股東",LEFT(十大股東!C11,4)&MID(十大股東!C11,FIND("(",十大股東!C11)+1,7),十大股東!C11))),十大股東!C11,IF(OR(十大股東!$H11="",十大股東!$H11="-"),"", IF(LEFT(十大股東!C11,3)="大股東",LEFT(十大股東!C11,4)&MID(十大股東!C11,FIND("(",十大股東!C11)+1,7),十大股東!C11))) -> 法人代表(董事) | F56: =IF(OR(十大股東!$H11="",十大股東!$H11="-"),"",十大股東!D11) -> 93402 | G56: =IF(OR(十大股東!$H11="",十大股東!$H11="-"),"",十大股東!E11) -> 1.64 | H56: =IF(OR(十大股東!$H11="",十大股東!$H11="-"),"",十大股東!F11) -> 0 | I56: =IF(OR(十大股東!$H11="",十大股東!$H11="-"),"",十大股東!G11) -> 37.47 | J56: =IF(OR(十大股東!$H11="",十大股東!$H11="-"),"",十大股東!H11) -> 6 | AB56: =IF(IFRS說明!C20="","",IFRS說明!C20) ->  | AO56: =IFRS_BS!A56 -> 避險工具損益 | AP56: =IFRS_BS!B56 -> 23601 | AQ56: =IFRS_BS!C56 -> -3820 | AR56: =IFRS_BS!D56 -> 0 | AS56: =IFRS_BS!F56 -> 0 | AU56: =IF('IFRS_IS(Q)'!A55="","",'IFRS_IS(Q)'!A55) -> 營收成長率 | AV56: =IF('IFRS_IS(Q)'!B55="","",'IFRS_IS(Q)'!B55) -> 12.56 | AW56: =IF('IFRS_IS(Q)'!C55="","",'IFRS_IS(Q)'!C55) -> 9.48 | AX56: =IF('IFRS_IS(Q)'!D55="","",'IFRS_IS(Q)'!D55) -> 42.02 | AY56: =IF('IFRS_IS(Q)'!E55="","",'IFRS_IS(Q)'!E55) -> 28.92 | AZ56: =IF('IFRS_IS(Q)'!F55="","",'IFRS_IS(Q)'!F55) -> 21.63 | BA56: =IF('IFRS_IS(Q)'!G55="","",'IFRS_IS(Q)'!G55) -> 13.96
A57: =IF(OR(十大股東!$H12="",十大股東!$H12="-"),"",十大股東!B12) -> 大通託阿拉伯 大通託阿拉伯 | D57: =IF(ISERROR(IF(OR(十大股東!$H12="",十大股東!$H12="-"),"", IF(LEFT(十大股東!C12,3)="大股東",LEFT(十大股東!C12,4)&MID(十大股東!C12,FIND("(",十大股東!C12)+1,7),十大股東!C12))),十大股東!C12,IF(OR(十大股東!$H12="",十大股東!$H12="-"),"", IF(LEFT(十大股東!C12,3)="大股東",LEFT(十大股東!C12,4)&MID(十大股東!C12,FIND("(",十大股東!C12)+1,7),十大股東!C12))) -> 大股東 | F57: =IF(OR(十大股東!$H12="",十大股東!$H12="-"),"",十大股東!D12) -> 87614 | G57: =IF(OR(十大股東!$H12="",十大股東!$H12="-"),"",十大股東!E12) -> 1.54 | H57: =IF(OR(十大股東!$H12="",十大股東!$H12="-"),"",十大股東!F12) -> 0 | I57: =IF(OR(十大股東!$H12="",十大股東!$H12="-"),"",十大股東!G12) -> 0 | J57: =IF(OR(十大股東!$H12="",十大股東!$H12="-"),"",十大股東!H12) -> 7 | AO57: =IFRS_BS!A57 -> 非控制權益 | AP57: =IFRS_BS!B57 -> 678731 | AQ57: =IFRS_BS!C57 -> 685302 | AR57: =IFRS_BS!D57 -> 964743 | AS57: =IFRS_BS!F57 -> 964743 | AU57: =IF('IFRS_IS(Q)'!A56="","",'IFRS_IS(Q)'!A56) -> 稅後淨利成長率 | AV57: =IF('IFRS_IS(Q)'!B56="","",'IFRS_IS(Q)'!B56) -> 13.47 | AW57: =IF('IFRS_IS(Q)'!C56="","",'IFRS_IS(Q)'!C56) -> 16.07 | AX57: =IF('IFRS_IS(Q)'!D56="","",'IFRS_IS(Q)'!D56) -> 90.7 | AY57: =IF('IFRS_IS(Q)'!E56="","",'IFRS_IS(Q)'!E56) -> 81.04 | AZ57: =IF('IFRS_IS(Q)'!F56="","",'IFRS_IS(Q)'!F56) -> 35.88 | BA57: =IF('IFRS_IS(Q)'!G56="","",'IFRS_IS(Q)'!G56) -> 23.04
A58: =IF(OR(十大股東!$H13="",十大股東!$H13="-"),"",十大股東!B13) -> 匯豐託斯圖爾 匯豐託斯圖爾 | D58: =IF(ISERROR(IF(OR(十大股東!$H13="",十大股東!$H13="-"),"", IF(LEFT(十大股東!C13,3)="大股東",LEFT(十大股東!C13,4)&MID(十大股東!C13,FIND("(",十大股東!C13)+1,7),十大股東!C13))),十大股東!C13,IF(OR(十大股東!$H13="",十大股東!$H13="-"),"", IF(LEFT(十大股東!C13,3)="大股東",LEFT(十大股東!C13,4)&MID(十大股東!C13,FIND("(",十大股東!C13)+1,7),十大股東!C13))) -> 大股東 | F58: =IF(OR(十大股東!$H13="",十大股東!$H13="-"),"",十大股東!D13) -> 86197 | G58: =IF(OR(十大股東!$H13="",十大股東!$H13="-"),"",十大股東!E13) -> 1.52 | H58: =IF(OR(十大股東!$H13="",十大股東!$H13="-"),"",十大股東!F13) -> 0 | I58: =IF(OR(十大股東!$H13="",十大股東!$H13="-"),"",十大股東!G13) -> 0 | J58: =IF(OR(十大股東!$H13="",十大股東!$H13="-"),"",十大股東!H13) -> 8 | AO58: =IFRS_BS!A58 -> 股東權益總額 | AP58: =IFRS_BS!B58 -> 1677496396 | AQ58: =IFRS_BS!C58 -> 1622095426 | AR58: =IFRS_BS!D58 -> 1850621999 | AS58: =IFRS_BS!F58 -> 1850621999
A59: =IF(OR(十大股東!$H14="",十大股東!$H14="-"),"",十大股東!B14) -> 大通先進星光 大通先進星光 | D59: =IF(ISERROR(IF(OR(十大股東!$H14="",十大股東!$H14="-"),"", IF(LEFT(十大股東!C14,3)="大股東",LEFT(十大股東!C14,4)&MID(十大股東!C14,FIND("(",十大股東!C14)+1,7),十大股東!C14))),十大股東!C14,IF(OR(十大股東!$H14="",十大股東!$H14="-"),"", IF(LEFT(十大股東!C14,3)="大股東",LEFT(十大股東!C14,4)&MID(十大股東!C14,FIND("(",十大股東!C14)+1,7),十大股東!C14))) -> 大股東 | F59: =IF(OR(十大股東!$H14="",十大股東!$H14="-"),"",十大股東!D14) -> 75985 | G59: =IF(OR(十大股東!$H14="",十大股東!$H14="-"),"",十大股東!E14) -> 1.34 | H59: =IF(OR(十大股東!$H14="",十大股東!$H14="-"),"",十大股東!F14) -> 0 | I59: =IF(OR(十大股東!$H14="",十大股東!$H14="-"),"",十大股東!G14) -> 0 | J59: =IF(OR(十大股東!$H14="",十大股東!$H14="-"),"",十大股東!H14) -> 9
A60: =IF(OR(十大股東!$H15="",十大股東!$H15="-"),"",十大股東!B15) ->  | D60: =IF(ISERROR(IF(OR(十大股東!$H15="",十大股東!$H15="-"),"", IF(LEFT(十大股東!C15,3)="大股東",LEFT(十大股東!C15,4)&MID(十大股東!C15,FIND("(",十大股東!C15)+1,7),十大股東!C15))),十大股東!C15,IF(OR(十大股東!$H15="",十大股東!$H15="-"),"", IF(LEFT(十大股東!C15,3)="大股東",LEFT(十大股東!C15,4)&MID(十大股東!C15,FIND("(",十大股東!C15)+1,7),十大股東!C15))) ->  | F60: =IF(OR(十大股東!$H15="",十大股東!$H15="-"),"",十大股東!D15) ->  | G60: =IF(OR(十大股東!$H15="",十大股東!$H15="-"),"",十大股東!E15) ->  | H60: =IF(OR(十大股東!$H15="",十大股東!$H15="-"),"",十大股東!F15) ->  | I60: =IF(OR(十大股東!$H15="",十大股東!$H15="-"),"",十大股東!G15) ->  | J60: =IF(OR(十大股東!$H15="",十大股東!$H15="-"),"",十大股東!H15) -> 

Sheet 基本資料
A1: 2330 台積電
A2: 上市別 | B2: 發言人 | C2: 實收資本額(元) | D2: 上市日期 | E2: 上櫃日期 | F2: 興櫃日期 | G2: 電話 | H2: 公司地址 | I2: TSE新產業名 | J2: 主要產品比重 | K2: 員工人數
A3: TSE | B3: 黃仁昭(副總經理暨財務長) | C3: 259303804580 | D3: 1994-09-05 | G3: 03-5636688 | H3: 新竹科學工業園區新竹市力行六路8 號 | I3: M2324 半導體 | J3: 2019/12:晶圓(86.7%),其他(13.3%) | K3: 51297

Sheet 法人動向
A1: 2330 台積電
A2: 年月日 | B2: 外資買賣超日數 | C2: 投信買賣超日數 | D2: 自營買賣超日數 | E2: 合計買賣超(張)
A3: 2021-03-19 | B3: -5 | C3: -2 | D3: -1 | E3: -24283
A4: 2021-03-18 | B4: -4 | C4: -1 | D4: 1 | E4: -3629
A5: 2021-03-17 | B5: -3 | C5: 2 | D5: -1 | E5: -19764
A6: 2021-03-16 | B6: -2 | C6: 1 | D6: 1 | E6: -5100
A7: 2021-03-15 | B7: -1 | C7: -1 | D7: -2 | E7: -3168
A8: 2021-03-12 | B8: 1 | C8: 11 | D8: -1 | E8: 2077
A9: 2021-03-11 | B9: -9 | C9: 10 | D9: 1 | E9: -115
A10: 2021-03-10 | B10: -8 | C10: 9 | D10: -1 | E10: -3289
A11: 2021-03-09 | B11: -7 | C11: 8 | D11: 1 | E11: -16946
A12: 2021-03-08 | B12: -6 | C12: 7 | D12: -2 | E12: -10278
A13: 2021-03-05 | B13: -5 | C13: 6 | D13: -1 | E13: -21368
A14: 2021-03-04 | B14: -4 | C14: 5 | D14: 2 | E14: -34267
A15: 2021-03-03 | B15: -3 | C15: 4 | D15: 1 | E15: 644
A16: 2021-03-02 | B16: -2 | C16: 3 | D16: -7 | E16: -2797
A17: 2021-02-26 | B17: -1 | C17: 2 | D17: -6 | E17: -62736
A18: 2021-02-25 | B18: 1 | C18: 1 | D18: -5 | E18: 1359
A19: 2021-02-24 | B19: -5 | C19: -1 | D19: -4 | E19: -18131
A20: 2021-02-23 | B20: -4 | C20: 7 | D20: -3 | E20: -8594
A21: 2021-02-22 | B21: -3 | C21: 6 | D21: -2 | E21: -2802
A22: 2021-02-19 | B22: -2 | C22: 5 | D22: -1 | E22: -11421
A23: 2021-02-18 | B23: -1 | C23: 4 | D23: 3 | E23: -7381
A24: 2021-02-17 | B24: 1 | C24: 3 | D24: 2 | E24: 12134
A25: 2021-02-05 | B25: -3 | C25: 2 | D25: 1 | E25: -6940

Sheet 股息股利
A1: 2330 台積電
A2: 股東會年度 | B2: 股東會日期 | C2: 現金股利(元) | D2: 無償配股合計(元) | E2: 除權日(配股) | F2: 除息日
A3: 2020-12-31 | C3: 10 | D3: 0 | F3: 2021-06-17
A4: 2019-12-31 | C4: 9.5 | D4: 0 | F4: 2020-06-18
A5: 2018-12-28 | C5: 8 | D5: 0 | F5: 2019-06-24
A6: 2017-12-29 | C6: 8 | D6: 0 | F6: 2018-06-25
A7: 2016-12-30 | C7: 7 | D7: 0 | F7: 2017-06-26

Sheet 新聞
A1: 2330 台積電
A2: 年月 | B2: 則次 | C2: 日期 | D2: 新聞標題
A3: 2021-03-31 | B3: 1 | C3: 2021-03-17 | D3: 台積電普通股定 110/03/17除息交易，除息參考價 610.50元， 110/03/18為最後過戶日，每股配發現金股利 2.50000 元，現金股息定於 110/04/15開始發放。
A4: 2021-03-31 | B4: 2 | C4: 2021-03-12 | D4: 台積電 110/03/12處分采鈺 1,501 千股, 交易金額為 36,000萬元。
A5: 2021-03-31 | B5: 3 | C5: 2021-03-12 | D5: 台積電子公司TSMC Global, Ltd 110/03/12購買政府機構不動產抵押貸 112 千股, 交易金額為 33,522萬元。
A6: 2021-03-31 | B6: 4 | C6: 2021-03-11 | D6: 台積電副總經理本人廖德堆於 110/03/11設定 50 千股於元大商業銀行，累計設定質權股數 70 千股，佔持股107.69 %。
A7: 2021-03-31 | B7: 5 | C7: 2021-03-10 | D7: 台積電 2月份合併營收計 106,533,690千元, 比去年同期成長 14.07 %, 累計110 年 1月至 2月月營收計 233,282,842千元, 比去年同期成長 18.37 %。
A8: 2021-03-31 | B8: 6 | C8: 2021-03-10 | D8: 台積電子公司TSMC Global, Ltd 110/02/26購買政府公債91282CBN0 110 千股, 交易金額為 31,086萬元。
A9: 2021-03-31 | B9: 7 | C9: 2021-03-10 | D9: 台積電副總經理本人廖德堆於 110/03/10設定 20 千股於元大商業銀行，累計設定質權股數 20 千股，佔持股 30.77 %。
A10: 2021-03-31 | B10: 8 | C10: 2021-03-09 | D10: 台積電子公司TSMC Global, Ltd 110/01/04處分政府公債91282CAZ4 132 千股, 交易金額為 36,738萬元，處分損失為 -20萬元。
A11: 2021-03-31 | B11: 9 | C11: 2021-03-09 | D11: 台積電子公司TSMC Global, Ltd 110/03/09購買政府機構不動產抵押貸 116 千股, 交易金額為 34,477萬元。
A12: 2021-03-31 | B12: 10 | C12: 2021-03-08 | D12: 台積電子公司TSMC Global, Ltd 110/03/08購買政府機構不動產抵押貸 241 千股, 交易金額為 70,750萬元。
A13: 2021-03-31 | B13: 11 | C13: 2021-03-05 | D13: 台積電子公司TSMC Global, Ltd 110/02/25購買政府公債91282CBL4 122 千股, 交易金額為 32,981萬元。
A14: 2021-03-31 | B14: 12 | C14: 2021-03-05 | D14: 台積電子公司TSMC Global, Ltd 110/03/02處分政府機構不動產抵押貸 184 千股, 交易金額為 53,105萬元。
A15: 2021-03-31 | B15: 13 | C15: 2021-03-05 | D15: 台積電子公司TSMC Global, Ltd 110/03/02處分政府機構不動產抵押貸 241 千股, 交易金額為 67,919萬元，處分損失為 -80萬元。
A16: 2021-03-31 | B16: 14 | C16: 2021-03-04 | D16: 台積電財務公告累計 109/01 至 109 /12稅前盈餘58,261,894萬元，比去年同期成長 49.87%。 累計 109/01 至 109 /12稅後盈餘51,788,539萬元，每股稅前盈餘 22.47元，每股稅後盈餘 19.97元。
A17: 2021-03-31 | B17: 15 | C17: 2021-03-02 | D17: 台積電子公司TSMC Global, Ltd 110/03/02處分政府機構不動產抵押貸 259 千股, 交易金額為 72,132萬元，處分損失為 -90萬元。
A18: 2021-02-26 | B18: 1 | C18: 2021-02-26 | D18: 台積電2奈米廠寶山用地 環委批：不該設置國家重要工程
A19: 2021-02-26 | B19: 2 | C19: 2021-02-26 | D19: 台積電子公司TSMC Global, Ltd 110/01/27購買政府公債91282CBH3 144 千股, 交易金額為 39,868萬元。
A20: 2021-02-26 | B20: 3 | C20: 2021-02-26 | D20: 台積電子公司TSMC Global, Ltd 110/02/26處分政府機構不動產抵押貸 229 千股, 交易金額為 64,403萬元，處分損失為 -40萬元。
A21: 2021-02-26 | B21: 4 | C21: 2021-02-26 | D21: 台積電財務公告累計 109/01 至 109 /12合併稅前盈餘58,477,718萬元，比去年同期成長 50.00%。 累計 109/01 至 109 /12稅後盈餘51,788,539萬元，每股合併稅前盈餘 22.55元，每股稅後盈餘 19.97元。
A22: 2021-02-26 | B22: 5 | C22: 2021-02-25 | D22: 台積電子公司TSMC Global, Ltd 110/01/06處分政府公債912828ZT0 119 千股, 交易金額為 33,177萬元，處分損失為 -4萬元。
A23: 2021-02-26 | B23: 6 | C23: 2021-02-24 | D23: 台積電子公司TSMC Global, Ltd 110/02/24處分政府公債91282CBL4 130 千股, 交易金額為 35,344萬元，處分損失為 -20萬元。
A24: 2021-02-26 | B24: 7 | C24: 2021-02-24 | D24: 台積電子公司TSMC Global, Ltd 110/02/24購買政府公債91282CBJ9 180 千股, 交易金額為 49,259萬元。
A25: 2021-02-26 | B25: 8 | C25: 2021-02-23 | D25: 台積電 110/02/23處分采鈺 38,000 千股, 交易金額為 912,000萬元。
A26: 2021-02-26 | B26: 9 | C26: 2021-02-23 | D26: 台積電子公司TSMC Global, Ltd 110/02/05購買政府公債91282CBE0 129 千股, 交易金額為 35,648萬元。
A27: 2021-02-26 | B27: 10 | C27: 2021-02-22 | D27: 台積電子公司TSMC Global, Ltd 110/02/16購買政府公債91282CBJ9 130 千股, 交易金額為 35,712萬元。
A28: 2021-02-26 | B28: 11 | C28: 2021-02-17 | D28: 台積電子公司TSMC Global, Ltd 110/02/10處分政府公債91282CBG5 424 千股, 交易金額為 118,678萬元，處分損失為 -3萬元。
A29: 2021-02-26 | B29: 12 | C29: 2021-02-17 | D29: 台積電子公司TSMC Global, Ltd 110/02/10處分政府機構不動產抵押貸 136 千股, 交易金額為 40,026萬元。
A30: 2021-02-26 | B30: 13 | C30: 2021-02-17 | D30: 台積電子公司TSMC Global, Ltd 110/02/10處分政府機構不動產抵押貸 137 千股, 交易金額為 39,746萬元。
A31: 2021-02-26 | B31: 14 | C31: 2021-02-17 | D31: 台積電子公司TSMC Global, Ltd 110/02/10處分政府機構不動產抵押貸 163 千股, 交易金額為 47,303萬元。
A32: 2021-02-26 | B32: 15 | C32: 2021-02-17 | D32: 台積電子公司TSMC Global, Ltd 110/02/10購買公司債91282CBM2 475 千股, 交易金額為 132,673萬元。
A33: 2021-02-26 | B33: 16 | C33: 2021-02-17 | D33: 台積電子公司TSMC Global, Ltd 110/02/10購買政府公債91282CBL4 130 千股, 交易金額為 36,107萬元。
A34: 2021-02-26 | B34: 17 | C34: 2021-02-17 | D34: 台積電子公司TSMC Global, Ltd 110/02/10購買政府機構不動產抵押貸 102 千股, 交易金額為 30,509萬元。
A35: 2021-02-26 | B35: 18 | C35: 2021-02-17 | D35: 台積電子公司TSMC Global, Ltd 110/02/10購買政府機構不動產抵押貸 300 千股, 交易金額為 87,049萬元。
A36: 2021-02-26 | B36: 19 | C36: 2021-02-10 | D36: 台積電更強大了！傳與蘋果在龍潭秘密開發Micro OLED面板
A37: 2021-02-26 | B37: 20 | C37: 2021-02-09 | D37: 台積電 1月份合併營收計 126,749,152千元, 比去年同期成長 22.25 %, 累計110 年 1月至 1月月營收計 126,749,152千元, 比去年同期成長 22.25 %。
A38: 2021-02-26 | B38: 21 | C38: 2021-02-09 | D38: 台積電子公司TSMC Global, Ltd 109/02/25處分政府機構不動產抵押貸 144 千股, 交易金額為 42,265萬元，處分利益為 10萬元。
A39: 2021-02-26 | B39: 22 | C39: 2021-02-09 | D39: 台積電子公司TSMC Global, Ltd 110/02/09購買政府機構不動產抵押貸 187 千股, 交易金額為 55,140萬元。
A40: 2021-02-26 | B40: 23 | C40: 2021-02-09 | D40: 台積電普通股定 110/06/17除息交易， 110/06/18為最後過戶日，每股配發現金股利 2.5000元，現金股息定於 110/07/15開始發放。
A41: 2021-02-26 | B41: 24 | C41: 2021-02-08 | D41: 日經：台積電擬斥資1.89億美元在東京設研發中心
A42: 2021-02-26 | B42: 25 | C42: 2021-02-08 | D42: 台積電子公司TSMC Global, Ltd 110/02/08購買政府機構不動產抵押貸 302 千股, 交易金額為 89,040萬元。
A43: 2021-02-26 | B43: 26 | C43: 2021-02-08 | D43: 竹科寶山工地傳工安意外台積電：發生原因待釐清
A44: 2021-02-26 | B44: 27 | C44: 2021-02-05 | D44: 台積電子公司TSMC Global, Ltd 110/02/05處分抵押債券31418CFJ8 138 千股, 交易金額為 40,865萬元，處分利益為 60萬元。
A45: 2021-02-26 | B45: 28 | C45: 2021-02-05 | D45: 台積電子公司TSMC Global, Ltd 110/02/05購買政府機構不動產抵押貸 229 千股, 交易金額為 65,777萬元。
A46: 2021-02-26 | B46: 29 | C46: 2021-02-03 | D46: 台積產能緊 超微擬轉單三星
A47: 2021-02-26 | B47: 30 | C47: 2021-02-03 | D47: 台積電減供面板驅動IC業者：影響估5月浮現
A48: 2021-02-26 | B48: 31 | C48: 2021-02-02 | D48: 台積電子公司TSMC Global, Ltd 110/02/02處分政府機構不動產抵押貸 267 千股, 交易金額為 77,981萬元，處分利益為 20萬元。
A49: 2021-02-26 | B49: 32 | C49: 2021-02-02 | D49: 台積電子公司TSMC Global, Ltd 110/02/02購買政府機構不動產抵押貸 267 千股, 交易金額為 77,981萬元。
A50: 2021-02-26 | B50: 33 | C50: 2021-02-01 | D50: 台積電子公司TSMC Global, Ltd 109/12/15購買政府公債91282CBA8 274 千股, 交易金額為 76,467萬元。
A51: 2021-02-26 | B51: 34 | C51: 2021-02-01 | D51: 台積電子公司TSMC Global, Ltd 109/12/15購買政府公債91282CBE0 395 千股, 交易金額為 110,359萬元。
A52: 2021-02-26 | B52: 35 | C52: 2021-02-01 | D52: 台積電子公司TSMC Global, Ltd 109/12/15購買政府公債91282CBG5 264 千股, 交易金額為 73,946萬元。
A53: 2021-02-26 | B53: 36 | C53: 2021-02-01 | D53: 台積電子公司TSMC Global, Ltd 110/01/20處分政府公債91282CBD2 287 千股, 交易金額為 80,389萬元，處分利益為 1萬元。

Sheet 圖-籌碼分佈
A1: 2330 台積電 | E1: 籌碼分布圖
A2: Data Field | B2: 2021-03-19 | C2: 2021-03-18 | E2: 持股 | F2: 比例
A3: 外資總持股率％ | B3: 74.79 | C3: 74.87 | E3: 外資 | F3: =IF(B3="",C3,B3) -> 74.79
A4: 投信持股率％ | B4: 0.76 | C4: 0.77 | E4: 投信 | F4: =IF(B4="",C4,B4) -> 0.76
A5: 自營持股率％ | B5: 0 | C5: 0 | E5: 自營 | F5: =IF(B5="",C5,B5) -> 0
A6: 董監持股％ | B6: 6.59 | C6: 6.59 | E6: 董監 | F6: =IF(B6="",C6,B6) -> 6.59
E7: 其他 | F7: =100-SUM(F3:F6) -> 17.86

Sheet 累積報酬率
A1: 2330 台積電 | C1: Y9999 加權指數 | E1: =A1 -> 2330 台積電 | F1: =C1 -> Y9999 加權指數 | G1: =A1 -> 2330 台積電 | H1: =C1 -> Y9999 加權指數
A2: 年月日 | B2: 日報酬率 % | C2: 年月日 | D2: 日報酬率 % | E2: 計算過程 | F2: 計算過程 | G2: 累計報酬率 | H2: 累計報酬率
A3: 2020-03-12 | B3: -2.649 | C3: 2020-03-12 | D3: -4.3275 | E3: =1+B3/100 -> 0.97351 | F3: =1+D3/100 -> 0.956725 | G3: 0 | H3: 0
A4: 2020-03-13 | B4: -1.3605 | C4: 2020-03-13 | D4: -2.8156 | E4: =1+B4/100 -> 0.986395 | F4: =1+D4/100 -> 0.971844 | G4: =PRODUCT($E$4:E4)-1 -> -0.013605 | H4: =PRODUCT($F$4:F4)-1 -> -0.028156
A5: 2020-03-16 | B5: -4.6552 | C5: 2020-03-16 | D5: -4.0587 | E5: 0.953448 | F5: 0.959413 | G5: =PRODUCT($E$4:E5)-1 -> -0.05952366004 | H5: =PRODUCT($F$4:F5)-1 -> -0.06760023243
A6: 2020-03-17 | B6: -3.0741 | C6: 2020-03-17 | D6: -2.8622 | E6: 0.969259 | F6: 0.971378 | G6: =PRODUCT($E$4:E6)-1 -> -0.08843484321 | H6: =PRODUCT($F$4:F6)-1 -> -0.09428737858
A7: 2020-03-18 | B7: -2.9851 | C7: 2020-03-18 | D7: -2.3408 | E7: 0.970149 | F7: 0.976592 | G7: =PRODUCT($E$4:E7)-1 -> -0.1156459747 | H7: =PRODUCT($F$4:F7)-1 -> -0.1154882996
A8: 2020-03-19 | B8: -3.6538 | C8: 2020-03-19 | D8: -5.8287 | E8: 0.963462 | F8: 0.941713 | G8: =PRODUCT($E$4:E8)-1 -> -0.1479585021 | H8: =PRODUCT($F$4:F8)-1 -> -0.1670438331
A9: 2020-03-20 | B9: 8.871 | C9: 2020-03-20 | D9: 6.3671 | E9: 1.08871 | F9: 1.063671 | G9: =PRODUCT($E$4:E9)-1 -> -0.0723739008 | H9: =PRODUCT($F$4:F9)-1 -> -0.114008681
A10: 2020-03-23 | B10: -5.5556 | C10: 2020-03-23 | D10: -3.726 | E10: 0.944444 | F10: 0.96274 | G10: =PRODUCT($E$4:E10)-1 -> -0.1239090964 | H10: =PRODUCT($F$4:F10)-1 -> -0.1470207175
A11: 2020-03-24 | B11: 4.902 | C11: 2020-03-24 | D11: 4.4498 | E11: 1.04902 | F11: 1.044498 | G11: =PRODUCT($E$4:E11)-1 -> -0.08096312027 | H11: =PRODUCT($F$4:F11)-1 -> -0.1090648454
A12: 2020-03-25 | B12: 3.5514 | C12: 2020-03-25 | D12: 3.8676 | E12: 1.035514 | F12: 1.038676 | G12: =PRODUCT($E$4:E12)-1 -> -0.04832444452 | H12: =PRODUCT($F$4:F12)-1 -> -0.07460703739
A13: 2020-03-26 | B13: 1.083 | C13: 2020-03-26 | D13: 0.9498 | E13: 1.01083 | F13: 1.009498 | G13: =PRODUCT($E$4:E13)-1 -> -0.03801779826 | H13: =PRODUCT($F$4:F13)-1 -> -0.06581765503
A14: 2020-03-27 | B14: -2.5 | C14: 2020-03-27 | D14: -0.3845 | E14: 0.975 | F14: 0.996155 | G14: =PRODUCT($E$4:E14)-1 -> -0.0620673533 | H14: =PRODUCT($F$4:F14)-1 -> -0.06940958615
A15: 2020-03-30 | B15: -2.0147 | C15: 2020-03-30 | D15: -0.7165 | E15: 0.979853 | F15: 0.992835 | G15: =PRODUCT($E$4:E15)-1 -> -0.08096388233 | H15: =PRODUCT($F$4:F15)-1 -> -0.07607726647
A16: 2020-03-31 | B16: 2.4299 | C16: 2020-03-31 | D16: 0.8166 | E16: 1.024299 | F16: 1.008166 | G16: =PRODUCT($E$4:E16)-1 -> -0.05863222371 | H16: =PRODUCT($F$4:F16)-1 -> -0.06853251342
A17: 2020-04-01 | B17: -0.9124 | C17: 2020-04-01 | D17: -0.4577 | E17: 0.990876 | F17: 0.995423 | G17: =PRODUCT($E$4:E17)-1 -> -0.0672212633 | H17: =PRODUCT($F$4:F17)-1 -> -0.07279584011
A18: 2020-04-06 | B18: 1.4733 | C18: 2020-04-06 | D18: 1.6051 | E18: 1.014733 | F18: 1.016051 | G18: =PRODUCT($E$4:E18)-1 -> -0.05347863417 | H18: =PRODUCT($F$4:F18)-1 -> -0.05791328614
A19: 2020-04-07 | B19: 2.7223 | C19: 2020-04-07 | D19: 1.8093 | E19: 1.027223 | F19: 1.018093 | G19: =PRODUCT($E$4:E19)-1 -> -0.02771148303 | H19: =PRODUCT($F$4:F19)-1 -> -0.04086811122
A20: 2020-04-08 | B20: 0.7067 | C20: 2020-04-08 | D20: 1.4113 | E20: 1.007067 | F20: 1.014113 | G20: =PRODUCT($E$4:E20)-1 -> -0.02084032008 | H20: =PRODUCT($F$4:F20)-1 -> -0.02733188288
A21: 2020-04-09 | B21: -0.7018 | C21: 2020-04-09 | D21: -0.178 | E21: 0.992982 | F21: 0.99822 | G21: =PRODUCT($E$4:E21)-1 -> -0.02771206272 | H21: =PRODUCT($F$4:F21)-1 -> -0.02906323213
A22: 2020-04-10 | B22: -1.2367 | C22: 2020-04-10 | D22: 0.3773 | E22: 0.987633 | F22: 1.003773 | G22: =PRODUCT($E$4:E22)-1 -> -0.03973634764 | H22: =PRODUCT($F$4:F22)-1 -> -0.0253998877
A23: 2020-04-13 | B23: -0.3578 | C23: 2020-04-13 | D23: -0.5748 | E23: 0.996422 | F23: 0.994252 | G23: =PRODUCT($E$4:E23)-1 -> -0.04317217098 | H23: =PRODUCT($F$4:F23)-1 -> -0.03100188915
A24: 2020-04-14 | B24: 2.3339 | C24: 2020-04-14 | D24: 2.3142 | E24: 1.023339 | F24: 1.023142 | G24: =PRODUCT($E$4:E24)-1 -> -0.02084076628 | H24: =PRODUCT($F$4:F24)-1 -> -0.008577334866
A25: 2020-04-15 | B25: 0.8772 | C25: 2020-04-15 | D25: 1.1059 | E25: 1.008772 | F25: 1.011059 | G25: =PRODUCT($E$4:E25)-1 -> -0.01225158148 | H25: =PRODUCT($F$4:F25)-1 -> 0.002386808388
A26: 2020-04-16 | B26: -0.3478 | C26: 2020-04-16 | D26: -0.6866 | E26: 0.996522 | F26: 0.993134 | G26: =PRODUCT($E$4:E26)-1 -> -0.01568697048 | H26: =PRODUCT($F$4:F26)-1 -> -0.004495579439
A27: 2020-04-17 | B27: 6.9808 | C27: 2020-04-17 | D27: 2.1354 | E27: 1.069808 | F27: 1.021354 | G27: =PRODUCT($E$4:E27)-1 -> 0.05302595348 | H27: =PRODUCT($F$4:F27)-1 -> 0.01676242196
A28: 2020-04-20 | B28: -0.8157 | C28: 2020-04-20 | D28: -0.0975 | E28: 0.991843 | F28: 0.999025 | G28: =PRODUCT($E$4:E28)-1 -> 0.04443642078 | H28: =PRODUCT($F$4:F28)-1 -> 0.0157710786
A29: 2020-04-21 | B29: -2.9605 | C29: 2020-04-21 | D29: -2.8176 | E29: 0.970395 | F29: 0.971824 | G29: =PRODUCT($E$4:E29)-1 -> 0.01351588054 | H29: =PRODUCT($F$4:F29)-1 -> -0.01284928731
A30: 2020-04-22 | B30: -0.339 | C30: 2020-04-22 | D30: 0.1878 | E30: 0.99661 | F30: 1.001878 | G30: =PRODUCT($E$4:E30)-1 -> 0.01008006171 | H30: =PRODUCT($F$4:F30)-1 -> -0.01099541828
A31: 2020-04-23 | B31: 0.5102 | C31: 2020-04-23 | D31: 0.5702 | E31: 1.005102 | F31: 1.005702 | G31: =PRODUCT($E$4:E31)-1 -> 0.01523349018 | H31: =PRODUCT($F$4:F31)-1 -> -0.00535611415
A32: 2020-04-24 | B32: -0.5076 | C32: 2020-04-24 | D32: -0.1847 | E32: 0.994924 | F32: 0.998153 | G32: =PRODUCT($E$4:E32)-1 -> 0.01008016498 | H32: =PRODUCT($F$4:F32)-1 -> -0.007193221408
A33: 2020-04-27 | B33: 1.3605 | C33: 2020-04-27 | D33: 2.1253 | E33: 1.013605 | F33: 1.021253 | G33: =PRODUCT($E$4:E33)-1 -> 0.02382230563 | H33: =PRODUCT($F$4:F33)-1 -> 0.01390690106
A34: 2020-04-28 | B34: -0.5034 | C34: 2020-04-28 | D34: 0.4617 | E34: 0.994966 | F34: 1.004617 | G34: =PRODUCT($E$4:E34)-1 -> 0.01866838414 | H34: =PRODUCT($F$4:F34)-1 -> 0.01858810922
A35: 2020-04-29 | B35: 0.8432 | C35: 2020-04-29 | D35: 1.471 | E35: 1.008432 | F35: 1.01471 | G35: =PRODUCT($E$4:E35)-1 -> 0.02725779596 | H35: =PRODUCT($F$4:F35)-1 -> 0.03357154031
A36: 2020-04-30 | B36: 1.8395 | C36: 2020-04-30 | D36: 2.0415 | E36: 1.018395 | F36: 1.020415 | G36: =PRODUCT($E$4:E36)-1 -> 0.04615420311 | H36: =PRODUCT($F$4:F36)-1 -> 0.0546719033
A37: 2020-05-04 | B37: -3.1199 | C37: 2020-05-04 | D37: -2.4714 | E37: 0.968801 | F37: 0.975286 | G37: =PRODUCT($E$4:E37)-1 -> 0.01351523813 | H37: =PRODUCT($F$4:F37)-1 -> 0.02860674188
A38: 2020-05-05 | B38: 0.1695 | C38: 2020-05-05 | D38: 0.5049 | E38: 1.001695 | F38: 1.005049 | G38: =PRODUCT($E$4:E38)-1 -> 0.01523314646 | H38: =PRODUCT($F$4:F38)-1 -> 0.03380017732
A39: 2020-05-06 | B39: 0.1692 | C39: 2020-05-06 | D39: 0.0034 | E39: 1.001692 | F39: 1.000034 | G39: =PRODUCT($E$4:E39)-1 -> 0.01695092094 | H39: =PRODUCT($F$4:F39)-1 -> 0.03383532653
A40: 2020-05-07 | B40: 0.5068 | C40: 2020-05-07 | D40: 0.6305 | E40: 1.005068 | F40: 1.006305 | G40: =PRODUCT($E$4:E40)-1 -> 0.02210482821 | H40: =PRODUCT($F$4:F40)-1 -> 0.04035365826
A41: 2020-05-08 | B41: 0 | C41: 2020-05-08 | D41: 0.5395 | E41: 1 | F41: 1.005395 | G41: =PRODUCT($E$4:E41)-1 -> 0.02210482821 | H41: =PRODUCT($F$4:F41)-1 -> 0.04596636625
A42: 2020-05-11 | B42: 1.1765 | C42: 2020-05-11 | D42: 1.0259 | E42: 1.011765 | F42: 1.010259 | G42: =PRODUCT($E$4:E42)-1 -> 0.03412989152 | H42: =PRODUCT($F$4:F42)-1 -> 0.0566969352
A43: 2020-05-12 | B43: -1.9934 | C43: 2020-05-12 | D43: -1.2148 | E43: 0.980066 | F43: 0.987852 | G43: =PRODUCT($E$4:E43)-1 -> 0.01351554626 | H43: =PRODUCT($F$4:F43)-1 -> 0.04386018083
A44: 2020-05-13 | B44: 0.678 | C44: 2020-05-13 | D44: 0.5405 | E44: 1.00678 | F44: 1.005405 | G44: =PRODUCT($E$4:E44)-1 -> 0.02038718166 | H44: =PRODUCT($F$4:F44)-1 -> 0.04950224511
A45: 2020-05-14 | B45: -1.3468 | C45: 2020-05-14 | D45: -1.4389 | E45: 0.986532 | F45: 0.985611 | G45: =PRODUCT($E$4:E45)-1 -> 0.006644607099 | H45: =PRODUCT($F$4:F45)-1 -> 0.0344009573
A46: 2020-05-15 | B46: 1.7065 | C46: 2020-05-15 | D46: 0.3157 | E46: 1.017065 | F46: 1.003157 | G46: =PRODUCT($E$4:E46)-1 -> 0.02382299732 | H46: =PRODUCT($F$4:F46)-1 -> 0.03766656113
A47: 2020-05-18 | B47: -2.6846 | C47: 2020-05-18 | D47: -0.6877 | E47: 0.973154 | F47: 0.993123 | G47: =PRODUCT($E$4:E47)-1 -> -0.003662554867 | H47: =PRODUCT($F$4:F47)-1 -> 0.03053052819
A48: 2020-05-19 | B48: 0.5172 | C48: 2020-05-19 | D48: 1.1162 | E48: 1.005172 | F48: 1.011162 | G48: =PRODUCT($E$4:E48)-1 -> 0.001490502399 | H48: =PRODUCT($F$4:F48)-1 -> 0.04203330994
A49: 2020-05-20 | B49: 0.8576 | C49: 2020-05-20 | D49: 0.4361 | E49: 1.008576 | F49: 1.004361 | G49: =PRODUCT($E$4:E49)-1 -> 0.01007928495 | H49: =PRODUCT($F$4:F49)-1 -> 0.04657761721
A50: 2020-05-21 | B50: 1.1905 | C50: 2020-05-21 | D50: 0.9215 | E50: 1.011905 | F50: 1.009215 | G50: =PRODUCT($E$4:E50)-1 -> 0.02210427883 | H50: =PRODUCT($F$4:F50)-1 -> 0.05622182995
A51: 2020-05-22 | B51: -1.8487 | C51: 2020-05-22 | D51: -1.791 | E51: 0.981513 | F51: 0.98209 | G51: =PRODUCT($E$4:E51)-1 -> 0.003208637032 | H51: =PRODUCT($F$4:F51)-1 -> 0.03730489697
A52: 2020-05-25 | B52: 0 | C52: 2020-05-25 | D52: 0.5553 | E52: 1 | F52: 1.005553 | G52: =PRODUCT($E$4:E52)-1 -> 0.003208637032 | H52: =PRODUCT($F$4:F52)-1 -> 0.04306505107
A53: 2020-05-26 | B53: 1.1986 | C53: 2020-05-26 | D53: 1.1593 | E53: 1.011986 | F53: 1.011593 | G53: =PRODUCT($E$4:E53)-1 -> 0.01523309576 | H53: =PRODUCT($F$4:F53)-1 -> 0.0551573042
A54: 2020-05-27 | B54: 0.3384 | C54: 2020-05-27 | D54: 0.1587 | E54: 1.003384 | F54: 1.001587 | G54: =PRODUCT($E$4:E54)-1 -> 0.01866864455 | H54: =PRODUCT($F$4:F54)-1 -> 0.05683183885
A55: 2020-05-28 | B55: -0.8432 | C55: 2020-05-28 | D55: -0.6398 | E55: 0.991568 | F55: 0.993602 | G55: =PRODUCT($E$4:E55)-1 -> 0.01007923054 | H55: =PRODUCT($F$4:F55)-1 -> 0.05007022874
A56: 2020-05-29 | B56: -0.6803 | C56: 2020-05-29 | D56: -0.0185 | E56: 0.993197 | F56: 0.999815 | G56: =PRODUCT($E$4:E56)-1 -> 0.003207661535 | H56: =PRODUCT($F$4:F56)-1 -> 0.04987596575
A57: 2020-06-01 | B57: 1.1986 | C57: 2020-06-01 | D57: 1.2508 | E57: 1.011986 | F57: 1.012508 | G57: =PRODUCT($E$4:E57)-1 -> 0.01523210857 | H57: =PRODUCT($F$4:F57)-1 -> 0.06300781433
A58: 2020-06-02 | B58: 0.3384 | C58: 2020-06-02 | D58: 0.4415 | E58: 1.003384 | F58: 1.004415 | G58: =PRODUCT($E$4:E58)-1 -> 0.01866765402 | H58: =PRODUCT($F$4:F58)-1 -> 0.06770099383
A59: 2020-06-03 | B59: 1.5177 | C59: 2020-06-03 | D59: 1.7275 | E59: 1.015177 | F59: 1.017275 | G59: =PRODUCT($E$4:E59)-1 -> 0.03412797301 | H59: =PRODUCT($F$4:F59)-1 -> 0.0861455285
A60: 2020-06-04 | B60: 1.6611 | C60: 2020-06-04 | D60: 0.6455 | E60: 1.016611 | F60: 1.006455 | G60: =PRODUCT($E$4:E60)-1 -> 0.05130587277 | H60: =PRODUCT($F$4:F60)-1 -> 0.09315659788
A61: 2020-06-05 | B61: 1.7974 | C61: 2020-06-05 | D61: 0.7563 | E61: 1.017974 | F61: 1.007563 | G61: =PRODUCT($E$4:E61)-1 -> 0.07020204452 | H61: =PRODUCT($F$4:F61)-1 -> 0.1014241412
A62: 2020-06-08 | B62: 2.0867 | C62: 2020-06-08 | D62: 1.1405 | E62: 1.020867 | F62: 1.011405 | G62: =PRODUCT($E$4:E62)-1 -> 0.09253395059 | H62: =PRODUCT($F$4:F62)-1 -> 0.1139858836
A63: 2020-06-09 | B63: 0.3145 | C63: 2020-06-09 | D63: 0.2307 | E63: 1.003145 | F63: 1.002307 | G63: =PRODUCT($E$4:E63)-1 -> 0.09596996986 | H63: =PRODUCT($F$4:F63)-1 -> 0.116555849
A64: 2020-06-10 | B64: 1.0972 | C64: 2020-06-10 | D64: 0.7137 | E64: 1.010972 | F64: 1.007137 | G64: =PRODUCT($E$4:E64)-1 -> 0.1079949524 | H64: =PRODUCT($F$4:F64)-1 -> 0.1245247081
A65: 2020-06-11 | B65: -0.6202 | C65: 2020-06-11 | D65: -1.5733 | E65: 0.993798 | F65: 0.984267 | G65: =PRODUCT($E$4:E65)-1 -> 0.1011231677 | H65: =PRODUCT($F$4:F65)-1 -> 0.1068325609
A66: 2020-06-12 | B66: -1.4041 | C66: 2020-06-12 | D66: -0.9174 | E66: 0.985959 | F66: 0.990826 | G66: =PRODUCT($E$4:E66)-1 -> 0.08566229728 | H66: =PRODUCT($F$4:F66)-1 -> 0.09667847895
A67: 2020-06-15 | B67: -2.057 | C67: 2020-06-15 | D67: -1.0821 | E67: 0.97943 | F67: 0.989179 | G67: =PRODUCT($E$4:E67)-1 -> 0.06333022382 | H67: =PRODUCT($F$4:F67)-1 -> 0.08481132113
A68: 2020-06-16 | B68: 1.7771 | C68: 2020-06-16 | D68: 1.8165 | E68: =1+B68/100 -> 1.017771 | F68: =1+D68/100 -> 1.018165 | G68: =PRODUCT($E$4:E68)-1 -> 0.08222666523 | H68: =PRODUCT($F$4:F68)-1 -> 0.1045169188
A69: 2020-06-17 | B69: 0 | C69: 2020-06-17 | D69: 0.1994 | E69: 1 | F69: 1.001994 | G69: =PRODUCT($E$4:E69)-1 -> 0.08222666523 | H69: =PRODUCT($F$4:F69)-1 -> 0.1067193255
A70: 2020-06-18 | B70: 0.6349 | C70: 2020-06-18 | D70: 0.1191 | E70: 1.006349 | F70: 1.001191 | G70: =PRODUCT($E$4:E70)-1 -> 0.08909772233 | H70: =PRODUCT($F$4:F70)-1 -> 0.1080374282
A71: 2020-06-19 | B71: 0 | C71: 2020-06-19 | D71: 0.0132 | E71: 1 | F71: 1.000132 | G71: =PRODUCT($E$4:E71)-1 -> 0.08909772233 | H71: =PRODUCT($F$4:F71)-1 -> 0.1081836892
A72: 2020-06-22 | B72: -0.7949 | C72: 2020-06-22 | D72: 0.1997 | E72: 0.992051 | F72: 1.001997 | G72: =PRODUCT($E$4:E72)-1 -> 0.08044048453 | H72: =PRODUCT($F$4:F72)-1 -> 0.110396732
A73: 2020-06-23 | B73: 0.9615 | C73: 2020-06-23 | D73: 0.3407 | E73: 1.009615 | F73: 1.003407 | G73: =PRODUCT($E$4:E73)-1 -> 0.09082891979 | H73: =PRODUCT($F$4:F73)-1 -> 0.1141798537
A74: 2020-06-24 | B74: 0.7937 | C74: 2020-06-24 | D74: 0.416 | E74: 1.007937 | F74: 1.00416 | G74: =PRODUCT($E$4:E74)-1 -> 0.09948682893 | H74: =PRODUCT($F$4:F74)-1 -> 0.1188148419
A75: 2020-06-29 | B75: -1.7323 | C75: 2020-06-29 | D75: -1.0124 | E75: 0.982677 | F75: 0.989876 | G75: =PRODUCT($E$4:E75)-1 -> 0.08044041859 | H75: =PRODUCT($F$4:F75)-1 -> 0.1074879604
A76: 2020-06-30 | B76: 0.3205 | C76: 2020-06-30 | D76: 0.6811 | E76: 1.003205 | F76: 1.006811 | G76: =PRODUCT($E$4:E76)-1 -> 0.08390323013 | H76: =PRODUCT($F$4:F76)-1 -> 0.1150310609
A77: 2020-07-01 | B77: 1.4377 | C77: 2020-07-01 | D77: 0.7072 | E77: 1.014377 | F77: 1.007072 | G77: =PRODUCT($E$4:E77)-1 -> 0.09948650687 | H77: =PRODUCT($F$4:F77)-1 -> 0.1229165606
A78: 2020-07-02 | B78: 1.4173 | C78: 2020-07-02 | D78: 0.8691 | E78: 1.014173 | F78: 1.008691 | G78: =PRODUCT($E$4:E78)-1 -> 0.1150695291 | H78: =PRODUCT($F$4:F78)-1 -> 0.1326758284
A79: 2020-07-03 | B79: 2.3292 | C79: 2020-07-03 | D79: 0.8811 | E79: 1.023292 | F79: 1.008811 | G79: =PRODUCT($E$4:E79)-1 -> 0.1410417286 | H79: =PRODUCT($F$4:F79)-1 -> 0.1426558351
A80: 2020-07-06 | B80: 2.5797 | C80: 2020-07-06 | D80: 1.7427 | E80: 1.025797 | F80: 1.017427 | G80: =PRODUCT($E$4:E80)-1 -> 0.1704771821 | H80: =PRODUCT($F$4:F80)-1 -> 0.1625688983
A81: 2020-07-07 | B81: 0.1479 | C81: 2020-07-07 | D81: -0.1958 | E81: 1.001479 | F81: 0.998042 | G81: =PRODUCT($E$4:E81)-1 -> 0.1722083178 | H81: =PRODUCT($F$4:F81)-1 -> 0.1602925884
A82: 2020-07-08 | B82: 0.7386 | C82: 2020-07-08 | D82: 0.6386 | E82: 1.007386 | F82: 1.006386 | G82: =PRODUCT($E$4:E82)-1 -> 0.1808662485 | H82: =PRODUCT($F$4:F82)-1 -> 0.1677022169
A83: 2020-07-09 | B83: 1.173 | C83: 2020-07-09 | D83: 0.1849 | E83: 1.01173 | F83: 1.001849 | G83: =PRODUCT($E$4:E83)-1 -> 0.1947178096 | H83: =PRODUCT($F$4:F83)-1 -> 0.1698612983
A84: 2020-07-10 | B84: 1.0145 | C84: 2020-07-10 | D84: -0.9761 | E84: 1.010145 | F84: 0.990239 | G84: =PRODUCT($E$4:E84)-1 -> 0.2068382217 | H84: =PRODUCT($F$4:F84)-1 -> 0.1584422822
A85: 2020-07-13 | B85: 1.7217 | C85: 2020-07-13 | D85: 1.142 | E85: 1.017217 | F85: 1.01142 | G85: =PRODUCT($E$4:E85)-1 -> 0.2276163554 | H85: =PRODUCT($F$4:F85)-1 -> 0.171671693
A86: 2020-07-14 | B86: 2.5388 | C86: 2020-07-14 | D86: -0.0209 | E86: 1.025388 | F86: 0.999791 | G86: =PRODUCT($E$4:E86)-1 -> 0.2587830794 | H86: =PRODUCT($F$4:F86)-1 -> 0.1714268137
A87: 2020-07-15 | B87: -0.1376 | C87: 2020-07-15 | D87: -0.0505 | E87: 0.998624 | F87: 0.999495 | G87: =PRODUCT($E$4:E87)-1 -> 0.2570509939 | H87: =PRODUCT($F$4:F87)-1 -> 0.1708352431
A88: 2020-07-16 | B88: -1.5152 | C88: 2020-07-16 | D88: -0.3697 | E88: 0.984848 | F88: 0.996303 | G88: =PRODUCT($E$4:E88)-1 -> 0.2380041573 | H88: =PRODUCT($F$4:F88)-1 -> 0.1665066652
A89: 2020-07-17 | B89: 2.6573 | C89: 2020-07-17 | D89: 0.1959 | E89: 1.026573 | F89: 1.001959 | G89: =PRODUCT($E$4:E89)-1 -> 0.2709016417 | H89: =PRODUCT($F$4:F89)-1 -> 0.1687918518
A90: 2020-07-20 | B90: -0.2725 | C90: 2020-07-20 | D90: -0.0576 | E90: 0.997275 | F90: 0.999424 | G90: =PRODUCT($E$4:E90)-1 -> 0.2674384348 | H90: =PRODUCT($F$4:F90)-1 -> 0.1681186277
A91: 2020-07-21 | B91: 4.6448 | C91: 2020-07-21 | D91: 1.8318 | E91: 1.046448 | F91: 1.018318 | G91: =PRODUCT($E$4:E91)-1 -> 0.3263084152 | H91: =PRODUCT($F$4:F91)-1 -> 0.1895162247
A92: 2020-07-22 | B92: 0.2611 | C92: 2020-07-22 | D92: 0.6108 | E92: 1.002611 | F92: 1.006108 | G92: =PRODUCT($E$4:E92)-1 -> 0.3297714064 | H92: =PRODUCT($F$4:F92)-1 -> 0.1967817898
A93: 2020-07-23 | B93: -0.651 | C93: 2020-07-23 | D93: -0.4829 | E93: 0.99349 | F93: 0.995171 | G93: =PRODUCT($E$4:E93)-1 -> 0.3211145946 | H93: =PRODUCT($F$4:F93)-1 -> 0.1910025305
A94: 2020-07-24 | B94: 1.1796 | C94: 2020-07-24 | D94: -0.8781 | E94: 1.011796 | F94: 0.991219 | G94: =PRODUCT($E$4:E94)-1 -> 0.3366984623 | H94: =PRODUCT($F$4:F94)-1 -> 0.1805443373
A95: 2020-07-27 | B95: 9.9741 | C95: 2020-07-27 | D95: 2.3103 | E95: 1.099741 | F95: 1.023103 | G95: =PRODUCT($E$4:E95)-1 -> 0.4700221037 | H95: =PRODUCT($F$4:F95)-1 -> 0.2078184531
A96: 2020-07-28 | B96: 2.4735 | C96: 2020-07-28 | D96: -0.0125 | E96: 1.024735 | F96: 0.999875 | G96: =PRODUCT($E$4:E96)-1 -> 0.5063831004 | H96: =PRODUCT($F$4:F96)-1 -> 0.2076674758
A97: 2020-07-29 | B97: -2.9885 | C97: 2020-07-29 | D97: -0.3636 | E97: 0.970115 | F97: 0.996364 | G97: =PRODUCT($E$4:E97)-1 -> 0.4613648415 | H97: =PRODUCT($F$4:F97)-1 -> 0.2032763969
A98: 2020-07-30 | B98: 2.8436 | C98: 2020-07-30 | D98: 1.4508 | E98: 1.028436 | F98: 1.014508 | G98: =PRODUCT($E$4:E98)-1 -> 0.5029202121 | H98: =PRODUCT($F$4:F98)-1 -> 0.2207335309
A99: 2020-07-31 | B99: -1.9585 | C99: 2020-07-31 | D99: -0.4568 | E99: 0.980415 | F99: 0.995432 | G99: =PRODUCT($E$4:E99)-1 -> 0.4734855197 | H99: =PRODUCT($F$4:F99)-1 -> 0.2151572201
A100: 2020-08-03 | B100: -2.2327 | C100: 2020-08-03 | D100: -1.1984 | E100: 0.977673 | F100: 0.988016 | G100: =PRODUCT($E$4:E100)-1 -> 0.4405870085 | H100: =PRODUCT($F$4:F100)-1 -> 0.200594776
A101: 2020-08-04 | B101: 2.2837 | C101: 2020-08-04 | D101: 1.5735 | E101: 1.022837 | F101: 1.015735 | G101: =PRODUCT($E$4:E101)-1 -> 0.4734856941 | H101: =PRODUCT($F$4:F101)-1 -> 0.2194861348
A102: 2020-08-05 | B102: 0.8226 | C102: 2020-08-05 | D102: 0.7268 | E102: 1.008226 | F102: 1.007268 | G102: =PRODUCT($E$4:E102)-1 -> 0.4856065874 | H102: =PRODUCT($F$4:F102)-1 -> 0.22834936
A103: 2020-08-06 | B103: 1.3986 | C103: 2020-08-06 | D103: 0.8686 | E103: 1.013986 | F103: 1.008686 | G103: =PRODUCT($E$4:E103)-1 -> 0.5063842811 | H103: =PRODUCT($F$4:F103)-1 -> 0.2390188025
A104: 2020-08-07 | B104: -0.4598 | C104: 2020-08-07 | D104: -0.6554 | E104: 0.995402 | F104: 0.993446 | G104: =PRODUCT($E$4:E104)-1 -> 0.4994579262 | H104: =PRODUCT($F$4:F104)-1 -> 0.2308982733
A105: 2020-08-10 | B105: 0.5774 | C105: 2020-08-10 | D105: 0.5077 | E105: 1.005774 | F105: 1.005077 | G105: =PRODUCT($E$4:E105)-1 -> 0.5081157962 | H105: =PRODUCT($F$4:F105)-1 -> 0.2371475438
A106: 2020-08-11 | B106: -1.4925 | C106: 2020-08-11 | D106: -0.8827 | E106: 0.985075 | F106: 0.991173 | G106: =PRODUCT($E$4:E106)-1 -> 0.485607168 | H106: =PRODUCT($F$4:F106)-1 -> 0.2262272425
A107: 2020-08-12 | B107: -2.331 | C107: 2020-08-12 | D107: -0.8595 | E107: 0.97669 | F107: 0.991405 | G107: =PRODUCT($E$4:E107)-1 -> 0.4509776649 | H107: =PRODUCT($F$4:F107)-1 -> 0.2156878193
A108: 2020-08-13 | B108: 2.3866 | C108: 2020-08-13 | D108: 0.7323 | E108: 1.023866 | F108: 1.007323 | G108: =PRODUCT($E$4:E108)-1 -> 0.4856066978 | H108: =PRODUCT($F$4:F108)-1 -> 0.2245903012
A109: 2020-08-14 | B109: -0.4662 | C109: 2020-08-14 | D109: 0.2533 | E109: 0.995338 | F109: 1.002533 | G109: =PRODUCT($E$4:E109)-1 -> 0.4786807994 | H109: =PRODUCT($F$4:F109)-1 -> 0.2276921884
A110: 2020-08-17 | B110: 1.8735 | C110: 2020-08-17 | D110: 1.2555 | E110: 1.018735 | F110: 1.012555 | G110: =PRODUCT($E$4:E110)-1 -> 0.5063838842 | H110: =PRODUCT($F$4:F110)-1 -> 0.2431058639
A111: 2020-08-18 | B111: -0.4598 | C111: 2020-08-18 | D111: -0.6481 | E111: 0.995402 | F111: 0.993519 | G111: =PRODUCT($E$4:E111)-1 -> 0.4994575311 | H111: =PRODUCT($F$4:F111)-1 -> 0.2350492948
A112: 2020-08-19 | B112: -1.2702 | C112: 2020-08-19 | D112: -0.7264 | E112: 0.987298 | F112: 0.992736 | G112: =PRODUCT($E$4:E112)-1 -> 0.4804114215 | H112: =PRODUCT($F$4:F112)-1 -> 0.2260778967
A113: 2020-08-20 | B113: -2.924 | C113: 2020-08-20 | D113: -3.2554 | E113: 0.97076 | F113: 0.967446 | G113: =PRODUCT($E$4:E113)-1 -> 0.4371241916 | H113: =PRODUCT($F$4:F113)-1 -> 0.1861641568
A114: 2020-08-21 | B114: 2.2892 | C114: 2020-08-21 | D114: 1.9834 | E114: 1.022892 | F114: 1.019834 | G114: =PRODUCT($E$4:E114)-1 -> 0.4700228386 | H114: =PRODUCT($F$4:F114)-1 -> 0.2096905367
A115: 2020-08-24 | B115: 0.8245 | C115: 2020-08-24 | D115: 0.3116 | E115: 1.008245 | F115: 1.003116 | G115: =PRODUCT($E$4:E115)-1 -> 0.4821431769 | H115: =PRODUCT($F$4:F115)-1 -> 0.2134599324
A116: 2020-08-25 | B116: 1.5187 | C116: 2020-08-25 | D116: 0.8786 | E116: 1.015187 | F116: 1.008786 | G116: =PRODUCT($E$4:E116)-1 -> 0.5046524853 | H116: =PRODUCT($F$4:F116)-1 -> 0.2241213914
A117: 2020-08-26 | B117: 1.7261 | C117: 2020-08-26 | D117: 0.5882 | E117: 1.017261 | F117: 1.005882 | G117: =PRODUCT($E$4:E117)-1 -> 0.5306242918 | H117: =PRODUCT($F$4:F117)-1 -> 0.2313216734
A118: 2020-08-27 | B118: 0.4525 | C118: 2020-08-27 | D118: -0.2804 | E118: 1.004525 | F118: 0.997196 | G118: =PRODUCT($E$4:E118)-1 -> 0.5375503668 | H118: =PRODUCT($F$4:F118)-1 -> 0.2278690475
A119: 2020-08-28 | B119: -2.027 | C119: 2020-08-28 | D119: -0.535 | E119: 0.97973 | F119: 0.99465 | G119: =PRODUCT($E$4:E119)-1 -> 0.5063842208 | H119: =PRODUCT($F$4:F119)-1 -> 0.2212999481
A120: 2020-08-31 | B120: -1.954 | C120: 2020-08-31 | D120: -1.0794 | E120: 0.98046 | F120: 0.989206 | G120: =PRODUCT($E$4:E120)-1 -> 0.4769494732 | H120: =PRODUCT($F$4:F120)-1 -> 0.2081172364
A121: 2020-09-01 | B121: 1.993 | C121: 2020-09-01 | D121: 0.8881 | E121: 1.01993 | F121: 1.008881 | G121: =PRODUCT($E$4:E121)-1 -> 0.5063850762 | H121: =PRODUCT($F$4:F121)-1 -> 0.2188465256
A122: 2020-09-02 | B122: -0.4598 | C122: 2020-09-02 | D122: -0.0298 | E122: 0.995402 | F122: 0.999702 | G122: =PRODUCT($E$4:E122)-1 -> 0.4994587176 | H122: =PRODUCT($F$4:F122)-1 -> 0.2184833093
A123: 2020-09-03 | B123: 0.6928 | C123: 2020-09-03 | D123: 0.4604 | E123: 1.006928 | F123: 1.004604 | G123: =PRODUCT($E$4:E123)-1 -> 0.5098469676 | H123: =PRODUCT($F$4:F123)-1 -> 0.2240932065
A124: 2020-09-04 | B124: -1.6055 | C124: 2020-09-04 | D124: -0.9407 | E124: 0.983945 | F124: 0.990593 | G124: =PRODUCT($E$4:E124)-1 -> 0.4856063745 | H124: =PRODUCT($F$4:F124)-1 -> 0.2125781617
A125: 2020-09-07 | B125: -0.6993 | C125: 2020-09-07 | D125: -0.2892 | E125: 0.993007 | F125: 0.997108 | G125: =PRODUCT($E$4:E125)-1 -> 0.4752175291 | H125: =PRODUCT($F$4:F125)-1 -> 0.2090713856
A126: 2020-09-08 | B126: 1.1737 | C126: 2020-09-08 | D126: 0.4933 | E126: 1.011737 | F126: 1.004933 | G126: =PRODUCT($E$4:E126)-1 -> 0.4925321573 | H126: =PRODUCT($F$4:F126)-1 -> 0.2150357348
A127: 2020-09-09 | B127: -0.9281 | C127: 2020-09-09 | D127: -0.4342 | E127: 0.990719 | F127: 0.995658 | G127: =PRODUCT($E$4:E127)-1 -> 0.4786799663 | H127: =PRODUCT($F$4:F127)-1 -> 0.2097600496
A128: 2020-09-10 | B128: 1.8735 | C128: 2020-09-10 | D128: 0.6596 | E128: 1.018735 | F128: 1.006596 | G128: =PRODUCT($E$4:E128)-1 -> 0.5063830355 | H128: =PRODUCT($F$4:F128)-1 -> 0.2177396269
A129: 2020-09-11 | B129: 0.3448 | C129: 2020-09-11 | D129: -0.1245 | E129: 1.003448 | F129: 0.998755 | G129: =PRODUCT($E$4:E129)-1 -> 0.5115770442 | H129: =PRODUCT($F$4:F129)-1 -> 0.2162235411
A130: 2020-09-14 | B130: 1.0309 | C130: 2020-09-14 | D130: 0.8825 | E130: 1.010309 | F130: 1.008825 | G130: =PRODUCT($E$4:E130)-1 -> 0.5271598919 | H130: =PRODUCT($F$4:F130)-1 -> 0.2269567138
A131: 2020-09-15 | B131: 0.907 | C131: 2020-09-15 | D131: 0.4522 | E131: 1.00907 | F131: 1.004522 | G131: =PRODUCT($E$4:E131)-1 -> 0.5410112322 | H131: =PRODUCT($F$4:F131)-1 -> 0.2325050121
A132: 2020-09-16 | B132: 2.9213 | C132: 2020-09-16 | D132: 1.0207 | E132: =1+B132/100 -> 1.029213 | F132: =1+D132/100 -> 1.010207 | G132: =PRODUCT($E$4:E132)-1 -> 0.5860287933 | H132: =PRODUCT($F$4:F132)-1 -> 0.2450851907
A133: 2020-09-17 | B133: -1.5284 | C133: 2020-09-17 | D133: -0.8016 | E133: 0.984716 | F133: 0.991984 | G133: =PRODUCT($E$4:E133)-1 -> 0.5617879292 | H133: =PRODUCT($F$4:F133)-1 -> 0.2351045879
A134: 2020-09-18 | B134: -1.0033 | C134: 2020-09-18 | D134: 0.0224 | E134: 0.989967 | F134: 1.000224 | G134: =PRODUCT($E$4:E134)-1 -> 0.5461185109 | H134: =PRODUCT($F$4:F134)-1 -> 0.2353812513
A135: 2020-09-21 | B135: -0.9009 | C135: 2020-09-21 | D135: -0.6252 | E135: 0.990991 | F135: 0.993748 | G135: =PRODUCT($E$4:E135)-1 -> 0.5321895293 | H135: =PRODUCT($F$4:F135)-1 -> 0.2276576477
A136: 2020-09-22 | B136: -0.6818 | C136: 2020-09-22 | D136: -1.1693 | E136: 0.993182 | F136: 0.988307 | G136: =PRODUCT($E$4:E136)-1 -> 0.521743061 | H136: =PRODUCT($F$4:F136)-1 -> 0.2133026468
A137: 2020-09-23 | B137: -0.8009 | C137: 2020-09-23 | D137: -0.4874 | E137: 0.991991 | F137: 0.995126 | G137: =PRODUCT($E$4:E137)-1 -> 0.5095554209 | H137: =PRODUCT($F$4:F137)-1 -> 0.2073890097
A138: 2020-09-24 | B138: -2.4221 | C138: 2020-09-24 | D138: -2.539 | E138: 0.975779 | F138: 0.97461 | G138: =PRODUCT($E$4:E138)-1 -> 0.472992479 | H138: =PRODUCT($F$4:F138)-1 -> 0.1767334028
A139: 2020-09-25 | B139: 0.2364 | C139: 2020-09-25 | D139: -0.2566 | E139: 1.002364 | F139: 0.997434 | G139: =PRODUCT($E$4:E139)-1 -> 0.4764746332 | H139: =PRODUCT($F$4:F139)-1 -> 0.1737139049
A140: 2020-09-28 | B140: 1.7689 | C140: 2020-09-28 | D140: 1.8789 | E140: 1.017689 | F140: 1.018789 | G140: =PRODUCT($E$4:E140)-1 -> 0.502591993 | H140: =PRODUCT($F$4:F140)-1 -> 0.1957668154
A141: 2020-09-29 | B141: -0.1159 | C141: 2020-09-29 | D141: 0.0399 | E141: 0.998841 | F141: 1.000399 | G141: =PRODUCT($E$4:E141)-1 -> 0.5008504889 | H141: =PRODUCT($F$4:F141)-1 -> 0.1962439264
A142: 2020-09-30 | B142: 0.464 | C142: 2020-09-30 | D142: 0.384 | E142: 1.00464 | F142: 1.00384 | G142: =PRODUCT($E$4:E142)-1 -> 0.5078144352 | H142: =PRODUCT($F$4:F142)-1 -> 0.2008375031
A143: 2020-10-05 | B143: -0.1155 | C143: 2020-10-05 | D143: 0.261 | E143: 0.998845 | F143: 1.00261 | G143: =PRODUCT($E$4:E143)-1 -> 0.5060729095 | H143: =PRODUCT($F$4:F143)-1 -> 0.2039716889
A144: 2020-10-06 | B144: 1.6185 | C144: 2020-10-06 | D144: 1.2428 | E144: 1.016185 | F144: 1.012428 | G144: =PRODUCT($E$4:E144)-1 -> 0.5304486995 | H144: =PRODUCT($F$4:F144)-1 -> 0.2189346491
A145: 2020-10-07 | B145: 0.7964 | C145: 2020-10-07 | D145: 0.3317 | E145: 1.007964 | F145: 1.003317 | G145: =PRODUCT($E$4:E145)-1 -> 0.542637193 | H145: =PRODUCT($F$4:F145)-1 -> 0.2229778553
A146: 2020-10-08 | B146: 2.2573 | C146: 2020-10-08 | D146: 1.1048 | E146: 1.022573 | F146: 1.011048 | G146: =PRODUCT($E$4:E146)-1 -> 0.5774591423 | H146: =PRODUCT($F$4:F146)-1 -> 0.2364893147
A147: 2020-10-12 | B147: 1.5453 | C147: 2020-10-12 | D147: 0.5332 | E147: 1.015453 | F147: 1.005332 | G147: =PRODUCT($E$4:E147)-1 -> 0.6018356185 | H147: =PRODUCT($F$4:F147)-1 -> 0.2430822757
A148: 2020-10-13 | B148: 0.4348 | C148: 2020-10-13 | D148: -0.0678 | E148: 1.004348 | F148: 0.999322 | G148: =PRODUCT($E$4:E148)-1 -> 0.6088003997 | H148: =PRODUCT($F$4:F148)-1 -> 0.2422394659
A149: 2020-10-14 | B149: -0.6494 | C149: 2020-10-14 | D149: -0.2149 | E149: 0.993506 | F149: 0.997851 | G149: =PRODUCT($E$4:E149)-1 -> 0.5983528499 | H149: =PRODUCT($F$4:F149)-1 -> 0.2395698933
A150: 2020-10-15 | B150: -1.3072 | C150: 2020-10-15 | D150: -0.7082 | E150: 0.986928 | F150: 0.992918 | G150: =PRODUCT($E$4:E150)-1 -> 0.5774591815 | H150: =PRODUCT($F$4:F150)-1 -> 0.2307912593
A151: 2020-10-16 | B151: -0.883 | C151: 2020-10-16 | D151: -0.6038 | E151: 0.99117 | F151: 0.993962 | G151: =PRODUCT($E$4:E151)-1 -> 0.5635302169 | H151: =PRODUCT($F$4:F151)-1 -> 0.2233597417
A152: 2020-10-19 | B152: 1.8931 | C152: 2020-10-19 | D152: 1.2389 | E152: 1.018931 | F152: 1.012389 | G152: =PRODUCT($E$4:E152)-1 -> 0.5931294075 | H152: =PRODUCT($F$4:F152)-1 -> 0.2385159455
A153: 2020-10-20 | B153: -1.4208 | C153: 2020-10-20 | D153: -0.3561 | E153: 0.985792 | F153: 0.996439 | G153: =PRODUCT($E$4:E153)-1 -> 0.5704942248 | H153: =PRODUCT($F$4:F153)-1 -> 0.2341055902
A154: 2020-10-21 | B154: 0.4435 | C154: 2020-10-21 | D154: 0.1157 | E154: 1.004435 | F154: 1.001157 | G154: =PRODUCT($E$4:E154)-1 -> 0.5774593667 | H154: =PRODUCT($F$4:F154)-1 -> 0.2355334504
A155: 2020-10-22 | B155: 0.4415 | C155: 2020-10-22 | D155: 0.3089 | E155: 1.004415 | F155: 1.003089 | G155: =PRODUCT($E$4:E155)-1 -> 0.5844238498 | H155: =PRODUCT($F$4:F155)-1 -> 0.2393500132
A156: 2020-10-23 | B156: -0.6593 | C156: 2020-10-23 | D156: -0.141 | E156: 0.993407 | F156: 0.99859 | G156: =PRODUCT($E$4:E156)-1 -> 0.5739777434 | H156: =PRODUCT($F$4:F156)-1 -> 0.2376025297
A157: 2020-10-26 | B157: -0.4425 | C157: 2020-10-26 | D157: 0.0792 | E157: 0.995575 | F157: 1.000792 | G157: =PRODUCT($E$4:E157)-1 -> 0.5670128919 | H157: =PRODUCT($F$4:F157)-1 -> 0.2385827109
A158: 2020-10-27 | B158: -0.6667 | C158: 2020-10-27 | D158: -0.2635 | E158: 0.993333 | F158: 0.997365 | G158: =PRODUCT($E$4:E158)-1 -> 0.5565656169 | H158: =PRODUCT($F$4:F158)-1 -> 0.2353190455
A159: 2020-10-28 | B159: -0.6711 | C159: 2020-10-28 | D159: -0.6311 | E159: 0.993289 | F159: 0.993689 | G159: =PRODUCT($E$4:E159)-1 -> 0.5461195051 | H159: =PRODUCT($F$4:F159)-1 -> 0.227522947
A160: 2020-10-29 | B160: -1.5766 | C160: 2020-10-29 | D160: -1.0227 | E160: 0.984234 | F160: 0.989773 | G160: =PRODUCT($E$4:E160)-1 -> 0.5217433849 | H160: =PRODUCT($F$4:F160)-1 -> 0.2149690698
A161: 2020-10-30 | B161: -1.1442 | C161: 2020-10-30 | D161: -0.9206 | E161: 0.988558 | F161: 0.990794 | G161: =PRODUCT($E$4:E161)-1 -> 0.5043315971 | H161: =PRODUCT($F$4:F161)-1 -> 0.2037840646
A162: 2020-11-02 | B162: 0.8102 | C162: 2020-11-02 | D162: 0.3584 | E162: 1.008102 | F162: 1.003584 | G162: =PRODUCT($E$4:E162)-1 -> 0.5165196917 | H162: =PRODUCT($F$4:F162)-1 -> 0.2080984266
A163: 2020-11-03 | B163: 1.2629 | C163: 2020-11-03 | D163: 1.1492 | E163: 1.012629 | F163: 1.011492 | G163: =PRODUCT($E$4:E163)-1 -> 0.5356718189 | H163: =PRODUCT($F$4:F163)-1 -> 0.2219818938
A164: 2020-11-04 | B164: 2.0408 | C164: 2020-11-04 | D164: 1.0356 | E164: 1.020408 | F164: 1.010356 | G164: =PRODUCT($E$4:E164)-1 -> 0.5670118094 | H164: =PRODUCT($F$4:F164)-1 -> 0.2346367383
A165: 2020-11-05 | B165: 0.2222 | C165: 2020-11-05 | D165: 0.3956 | E165: 1.002222 | F165: 1.003956 | G165: =PRODUCT($E$4:E165)-1 -> 0.5704937096 | H165: =PRODUCT($F$4:F165)-1 -> 0.2395209612
A166: 2020-11-06 | B166: 0.3326 | C166: 2020-11-06 | D166: 0.4236 | E166: 1.003326 | F166: 1.004236 | G166: =PRODUCT($E$4:E166)-1 -> 0.5757171717 | H166: =PRODUCT($F$4:F166)-1 -> 0.244771572
A167: 2020-11-09 | B167: 1.326 | C167: 2020-11-09 | D167: 1.1866 | E167: 1.01326 | F167: 1.011866 | G167: =PRODUCT($E$4:E167)-1 -> 0.5966111814 | H167: =PRODUCT($F$4:F167)-1 -> 0.2595420315
A168: 2020-11-10 | B168: -1.6358 | C168: 2020-11-10 | D168: -0.3485 | E168: 0.983642 | F168: 0.996515 | G168: =PRODUCT($E$4:E168)-1 -> 0.5704938157 | H168: =PRODUCT($F$4:F168)-1 -> 0.2551525275
A169: 2020-11-11 | B169: 1.3304 | C169: 2020-11-11 | D169: 1.3796 | E169: 1.013304 | F169: 1.013796 | G169: =PRODUCT($E$4:E169)-1 -> 0.5913876654 | H169: =PRODUCT($F$4:F169)-1 -> 0.2724686117
A170: 2020-11-12 | B170: 0.2188 | C170: 2020-11-12 | D170: -0.3047 | E170: 1.002188 | F170: 0.996953 | G170: =PRODUCT($E$4:E170)-1 -> 0.5948696216 | H170: =PRODUCT($F$4:F170)-1 -> 0.2685913999
A171: 2020-11-13 | B171: 0.8734 | C171: 2020-11-13 | D171: 0.3899 | E171: 1.008734 | F171: 1.003899 | G171: =PRODUCT($E$4:E171)-1 -> 0.6087992129 | H171: =PRODUCT($F$4:F171)-1 -> 0.2735376377
A172: 2020-11-16 | B172: 4.7619 | C172: 2020-11-16 | D172: 2.0982 | E172: 1.047619 | F172: 1.020982 | G172: =PRODUCT($E$4:E172)-1 -> 0.6854086226 | H172: =PRODUCT($F$4:F172)-1 -> 0.3002590045
A173: 2020-11-17 | B173: 0.3099 | C173: 2020-11-17 | D173: 0.3039 | E173: 1.003099 | F173: 1.003039 | G173: =PRODUCT($E$4:E173)-1 -> 0.690631704 | H173: =PRODUCT($F$4:F173)-1 -> 0.3042104916
A174: 2020-11-18 | B174: 2.3687 | C174: 2020-11-18 | D174: 1.3263 | E174: 1.023687 | F174: 1.013263 | G174: =PRODUCT($E$4:E174)-1 -> 0.7306776971 | H174: =PRODUCT($F$4:F174)-1 -> 0.3215082353
A175: 2020-11-19 | B175: -1.4085 | C175: 2020-11-19 | D175: -0.3693 | E175: 0.985915 | F175: 0.996307 | G175: =PRODUCT($E$4:E175)-1 -> 0.7063011018 | H175: =PRODUCT($F$4:F175)-1 -> 0.3166279054
A176: 2020-11-20 | B176: -0.4082 | C176: 2020-11-20 | D176: -0.0437 | E176: 0.995918 | F176: 0.999563 | G176: =PRODUCT($E$4:E176)-1 -> 0.6993359807 | H176: =PRODUCT($F$4:F176)-1 -> 0.316052539
A177: 2020-11-23 | B177: 1.7418 | C177: 2020-11-23 | D177: 1.1779 | E177: 1.017418 | F177: 1.011779 | G177: =PRODUCT($E$4:E177)-1 -> 0.7289350148 | H177: =PRODUCT($F$4:F177)-1 -> 0.3315543219
A178: 2020-11-24 | B178: -0.9063 | C178: 2020-11-24 | D178: -0.5107 | E178: 0.990937 | F178: 0.994893 | G178: =PRODUCT($E$4:E178)-1 -> 0.7132656767 | H178: =PRODUCT($F$4:F178)-1 -> 0.324754074
A179: 2020-11-25 | B179: -1.0163 | C179: 2020-11-25 | D179: -0.4947 | E179: 0.989837 | F179: 0.995053 | G179: =PRODUCT($E$4:E179)-1 -> 0.6958537577 | H179: =PRODUCT($F$4:F179)-1 -> 0.3182005156
A180: 2020-11-26 | B180: 0.4107 | C180: 2020-11-26 | D180: 0.7776 | E180: 1.004107 | F180: 1.007776 | G180: =PRODUCT($E$4:E180)-1 -> 0.7028186291 | H180: =PRODUCT($F$4:F180)-1 -> 0.3284508428
A181: 2020-11-27 | B181: 0 | C181: 2020-11-27 | D181: 0.1548 | E181: 1 | F181: 1.001548 | G181: =PRODUCT($E$4:E181)-1 -> 0.7028186291 | H181: =PRODUCT($F$4:F181)-1 -> 0.3305072847
A182: 2020-11-30 | B182: -1.7382 | C182: 2020-11-30 | D182: -1.0399 | E182: 0.982618 | F182: 0.989601 | G182: =PRODUCT($E$4:E182)-1 -> 0.6732202356 | H182: =PRODUCT($F$4:F182)-1 -> 0.3166713394
A183: 2020-12-01 | B183: 1.9771 | C183: 2020-12-01 | D183: 1.1862 | E183: 1.019771 | F183: 1.011862 | G183: =PRODUCT($E$4:E183)-1 -> 0.7063014729 | H183: =PRODUCT($F$4:F183)-1 -> 0.3322896948
A184: 2020-12-02 | B184: 1.8367 | C184: 2020-12-02 | D184: 0.7452 | E184: 1.018367 | F184: 1.007452 | G184: =PRODUCT($E$4:E184)-1 -> 0.7376411121 | H184: =PRODUCT($F$4:F184)-1 -> 0.3422179176
A185: 2020-12-03 | B185: -0.4008 | C185: 2020-12-03 | D185: -0.0861 | E185: 0.995992 | F185: 0.999139 | G185: =PRODUCT($E$4:E185)-1 -> 0.7306766465 | H185: =PRODUCT($F$4:F185)-1 -> 0.341062268
A186: 2020-12-04 | B186: 1.2072 | C186: 2020-12-04 | D186: 1.1115 | E186: 1.012072 | F186: 1.011115 | G186: =PRODUCT($E$4:E186)-1 -> 0.751569375 | H186: =PRODUCT($F$4:F186)-1 -> 0.3559681751
A187: 2020-12-07 | B187: 2.1869 | C187: 2020-12-07 | D187: 0.8785 | E187: 1.021869 | F187: 1.008785 | G187: =PRODUCT($E$4:E187)-1 -> 0.7898744456 | H187: =PRODUCT($F$4:F187)-1 -> 0.3678803555
A188: 2020-12-08 | B188: 1.9455 | C188: 2020-12-08 | D188: 0.7281 | E188: 1.019455 | F188: 1.007281 | G188: =PRODUCT($E$4:E188)-1 -> 0.824696453 | H188: =PRODUCT($F$4:F188)-1 -> 0.3778398924
A189: 2020-12-09 | B189: -0.7634 | C189: 2020-12-09 | D189: 0.2071 | E189: 0.992366 | F189: 1.002071 | G189: =PRODUCT($E$4:E189)-1 -> 0.8107667203 | H189: =PRODUCT($F$4:F189)-1 -> 0.3806933988
A190: 2020-12-10 | B190: -1.5385 | C190: 2020-12-10 | D190: -0.9774 | E190: 0.984615 | F190: 0.990226 | G190: =PRODUCT($E$4:E190)-1 -> 0.7829080743 | H190: =PRODUCT($F$4:F190)-1 -> 0.3671985016
A191: 2020-12-11 | B191: 0.7813 | C191: 2020-12-11 | D191: 0.0856 | E191: 1.007813 | F191: 1.000856 | G191: =PRODUCT($E$4:E191)-1 -> 0.7968379351 | H191: =PRODUCT($F$4:F191)-1 -> 0.3683688235
A192: 2020-12-14 | B192: -1.5504 | C192: 2020-12-14 | D192: -0.3551 | E192: 0.984496 | F192: 0.996449 | G192: =PRODUCT($E$4:E192)-1 -> 0.7689797597 | H192: =PRODUCT($F$4:F192)-1 -> 0.3635097458
A193: 2020-12-15 | B193: -0.7874 | C193: 2020-12-15 | D193: -1.003 | E193: 0.992126 | F193: 0.98997 | G193: =PRODUCT($E$4:E193)-1 -> 0.7550508131 | H193: =PRODUCT($F$4:F193)-1 -> 0.349833743
A194: 2020-12-16 | B194: 1.5873 | C194: 2020-12-16 | D194: 1.6771 | E194: 1.015873 | F194: 1.016771 | G194: =PRODUCT($E$4:E194)-1 -> 0.7829087346 | H194: =PRODUCT($F$4:F194)-1 -> 0.3724718047
A195: 2020-12-17 | B195: -0.293 | C195: 2020-12-17 | D195: -0.3183 | E195: 0.99707 | F195: 0.996817 | G195: =PRODUCT($E$4:E195)-1 -> 0.777684812 | H195: =PRODUCT($F$4:F195)-1 -> 0.368103227
A196: 2020-12-18 | B196: 0.3937 | C196: 2020-12-18 | D196: -0.0629 | E196: =1+B196/100 -> 1.003937 | F196: =1+D196/100 -> 0.999371 | G196: =PRODUCT($E$4:E196)-1 -> 0.7846835571 | H196: =PRODUCT($F$4:F196)-1 -> 0.36724269
A197: 2020-12-21 | B197: 1.1765 | C197: 2020-12-21 | D197: 0.9474 | E197: 1.011765 | F197: 1.009474 | G197: =PRODUCT($E$4:E197)-1 -> 0.8056803592 | H197: =PRODUCT($F$4:F197)-1 -> 0.3801959473
A198: 2020-12-22 | B198: -1.3566 | C198: 2020-12-22 | D198: -1.4425 | E198: 0.986434 | F198: 0.985575 | G198: =PRODUCT($E$4:E198)-1 -> 0.7811844994 | H198: =PRODUCT($F$4:F198)-1 -> 0.3602866208
A199: 2020-12-23 | B199: 0 | C199: 2020-12-23 | D199: 0.3218 | E199: 1 | F199: 1.003218 | G199: =PRODUCT($E$4:E199)-1 -> 0.7811844994 | H199: =PRODUCT($F$4:F199)-1 -> 0.3646640231
A200: 2020-12-24 | B200: 0.1965 | C200: 2020-12-24 | D200: 0.4021 | E200: 1.001965 | F200: 1.004021 | G200: =PRODUCT($E$4:E200)-1 -> 0.784684527 | H200: =PRODUCT($F$4:F200)-1 -> 0.3701513371
... 52 more rows

Sheet 籌碼分析
A1: 2330 台積電
A2: 年月日 | B2: 外資買賣超(張) | C2: 投信買賣超(張) | D2: 自營買賣超(張) | F2: 年月日 | G2: 融資增減(張) | K2: 近20日籌碼變化
A3: 2021-02-19 | B3: -11759 | C3: 432 | D3: -94 | F3: 2021-02-19 | G3: 45 | J3: 外資 | K3: =SUM(B3:B22) -> -247851
A4: 2021-02-22 | B4: -2676 | C4: 153 | D4: -279 | F4: 2021-02-22 | G4: -418 | J4: 投信 | K4: =SUM(C3:C22) -> 4996
A5: 2021-02-23 | B5: -7612 | C5: 262 | D5: -1244 | F5: 2021-02-23 | G5: 627 | J5: 自營 | K5: =SUM(D3:D22) -> -1756
A6: 2021-02-24 | B6: -16155 | C6: -344 | D6: -1632 | F6: 2021-02-24 | G6: -295 | J6: 融資 | K6: =SUM(G3:G22) -> 5742
A7: 2021-02-25 | B7: 2011 | C7: 263 | D7: -915 | F7: 2021-02-25 | G7: -266
A8: 2021-02-26 | B8: -63751 | C8: 1559 | D8: -544 | F8: 2021-02-26 | G8: 3091
A9: 2021-03-02 | B9: -2478 | C9: 352 | D9: -672 | F9: 2021-03-02 | G9: -377
A10: 2021-03-03 | B10: -3661 | C10: 427 | D10: 3878 | F10: 2021-03-03 | G10: 596
A11: 2021-03-04 | B11: -34899 | C11: 526 | D11: 106 | F11: 2021-03-04 | G11: 1167
A12: 2021-03-05 | B12: -22313 | C12: 1191 | D12: -246 | F12: 2021-03-05 | G12: 1036
A13: 2021-03-08 | B13: -10461 | C13: 201 | D13: -19 | F13: 2021-03-08 | G13: -317
A14: 2021-03-09 | B14: -19386 | C14: 866 | D14: 1574 | F14: 2021-03-09 | G14: 1453
A15: 2021-03-10 | B15: -2177 | C15: 73 | D15: -1185 | F15: 2021-03-10 | G15: -612
A16: 2021-03-11 | B16: -1238 | C16: 135 | D16: 988 | F16: 2021-03-11 | G16: 165
A17: 2021-03-12 | B17: 2518 | C17: 93 | D17: -534 | F17: 2021-03-12 | G17: -1579
A18: 2021-03-15 | B18: -2302 | C18: -62 | D18: -804 | F18: 2021-03-15 | G18: 290
A19: 2021-03-16 | B19: -5163 | C19: 35 | D19: 28 | F19: 2021-03-16 | G19: 189
A20: 2021-03-17 | B20: -19384 | C20: 15 | D20: -395 | F20: 2021-03-17 | G20: 1019
A21: 2021-03-18 | B21: -4449 | C21: -9 | D21: 829 | F21: 2021-03-18 | G21: -125
A22: 2021-03-19 | B22: -22516 | C22: -1172 | D22: -596 | F22: 2021-03-19 | G22: 53

Sheet 圖-報酬率
A1: 2330 台積電
A2: Data Field | B2: 2021-03-19
A3: 未調整收盤價(元) | B3: 591
A4: 券資比 | B4: 0.25
A5: 現金股利率 | B5: 1.6709 | D5: 報酬率
A6: 股利殖利率-TSE | B6: 1.61 | D6: =IF(B7="",TEXT(C2,"YYYY/MM/DD 報酬率"),TEXT(B2,"YYYY/MM/DD 報酬率")) -> 2021/03/19 報酬率
A7: 日報酬率 % | B7: -1.8272 | D7: =IF(B7="",C7,B7) -> -1.8272
A8: 週報酬率 % | B8: -3.3475 | D8: =IF(B8="",C8,B8) -> -3.3475
A9: 月報酬率 % | B9: -8.9807 | D9: =IF(B9="",C9,B9) -> -8.9807
A10: 季報酬率 % | B10: 16.3622 | D10: =IF(B10="",C10,B10) -> 16.3622
A11: 年報酬率 % | B11: 143.7319 | D11: =IF(B11="",C11,B11) -> 143.7319

Sheet 圖-股價.PE.PB
A1: 2330 台積電
B2: 週股價走勢－40W | F2: 月股價走勢－52M | J2: PE BAND | O2: PB BAND
A3: 年月日 | B3: 成交量(千股)_週 | C3: 收盤價(元) | E3: 年月 | F3: 收盤價(元)_月 | G3: 本益比-TEJ | H3: 股價淨值比-TEJ | J3: 5*PE | K3: 10*PE | L3: 15*PE | M3: 20*PE | O3: 0.5*PB | P3: 1*PB | Q3: 2*PB | R3: 3*PB | S3: 4*PB
A4: 2020-06-12 | B4: 228901 | C4: 316 | E4: 2016-12-30 | F4: 181.5 | G4: 15.54 | H4: 3.67 | J4: =5*$F4/$G4 -> 58.3976834 | K4: =10*$F4/$G4 -> 116.7953668 | L4: =15*$F4/$G4 -> 175.1930502 | M4: =20*$F4/$G4 -> 233.5907336 | O4: =0.5*$F4/$H4 -> 24.72752044 | P4: =1*$F4/$H4 -> 49.45504087 | Q4: =2*$F4/$H4 -> 98.91008174 | R4: =3*$F4/$H4 -> 148.3651226 | S4: =4*$F4/$H4 -> 197.8201635
A5: 2020-06-19 | B5: 210024 | C5: 314.5 | E5: 2017-01-24 | F5: 185.5 | G5: 15.88 | H5: 3.75 | J5: =5*$F5/$G5 -> 58.40680101 | K5: =10*$F5/$G5 -> 116.813602 | L5: =15*$F5/$G5 -> 175.220403 | M5: =20*$F5/$G5 -> 233.627204 | O5: =0.5*$F5/$H5 -> 24.73333333 | P5: =1*$F5/$H5 -> 49.46666667 | Q5: =2*$F5/$H5 -> 98.93333333 | R5: =3*$F5/$H5 -> 148.4 | S5: =4*$F5/$H5 -> 197.8666667
A6: 2020-06-24 | B6: 134138 | C6: 317.5 | E6: 2017-02-24 | F6: 189 | G6: 16.18 | H6: 3.82 | J6: 58.40543881 | K6: 116.8108776 | L6: 175.2163164 | M6: 233.6217553 | O6: 24.7382199 | P6: 49.47643979 | Q6: 98.95287958 | R6: 148.4293194 | S6: 197.9057592
A7: 2020-07-03 | B7: 229046 | C7: 329.5 | E7: 2017-03-31 | F7: 189 | G7: 16.18 | H7: 3.82 | J7: 58.40543881 | K7: 116.8108776 | L7: 175.2163164 | M7: 233.6217553 | O7: 24.7382199 | P7: 49.47643979 | Q7: 98.95287958 | R7: 148.4293194 | S7: 197.9057592
A8: 2020-07-10 | B8: 248428 | C8: 348.5 | E8: 2017-04-28 | F8: 194.5 | G8: 16.65 | H8: 3.93 | J8: 58.40840841 | K8: 116.8168168 | L8: 175.2252252 | M8: 233.6336336 | O8: 24.74554707 | P8: 49.49109415 | Q8: 98.9821883 | R8: 148.4732824 | S8: 197.9643766
A9: 2020-07-17 | B9: 322581 | C9: 367 | E9: 2017-05-31 | F9: 203 | G9: 17.38 | H9: 4.1 | J9: 58.4004603 | K9: 116.8009206 | L9: 175.2013809 | M9: 233.6018412 | O9: 24.75609756 | P9: 49.51219512 | Q9: 99.02439024 | R9: 148.5365854 | S9: 198.0487805
A10: 2020-07-24 | B10: 289726 | C10: 386 | E10: 2017-06-30 | F10: 208.5 | G10: 15.09 | H10: 3.71 | J10: 69.08548708 | K10: 138.1709742 | L10: 207.2564612 | M10: 276.3419483 | O10: 28.09973046 | P10: 56.19946092 | Q10: 112.3989218 | R10: 168.5983827 | S10: 224.7978437
A11: 2020-07-31 | B11: 484536 | C11: 425.5 | E11: 2017-07-31 | F11: 214.5 | G11: 15.53 | H11: 3.82 | J11: 69.0598841 | K11: 138.1197682 | L11: 207.1796523 | M11: 276.2395364 | O11: 28.07591623 | P11: 56.15183246 | Q11: 112.3036649 | R11: 168.4554974 | S11: 224.6073298
A12: 2020-08-07 | B12: 247501 | C12: 433 | E12: 2017-08-31 | F12: 216.5 | G12: 15.67 | H12: 3.86 | J12: 69.08104659 | K12: 138.1620932 | L12: 207.2431398 | M12: 276.3241863 | O12: 28.04404145 | P12: 56.0880829 | Q12: 112.1761658 | R12: 168.2642487 | S12: 224.3523316
A13: 2020-08-14 | B13: 194522 | C13: 427 | E13: 2017-09-30 | F13: 216.5 | G13: 15.67 | H13: 3.86 | J13: 69.08104659 | K13: 138.1620932 | L13: 207.2431398 | M13: 276.3241863 | O13: 28.04404145 | P13: 56.0880829 | Q13: 112.1761658 | R13: 168.2642487 | S13: 224.3523316
A14: 2020-08-21 | B14: 228710 | C14: 424.5 | E14: 2017-10-31 | F14: 243 | G14: 17.9 | H14: 4.7 | J14: 67.87709497 | K14: 135.7541899 | L14: 203.6312849 | M14: 271.5083799 | O14: 25.85106383 | P14: 51.70212766 | Q14: 103.4042553 | R14: 155.106383 | S14: 206.8085106
A15: 2020-08-28 | B15: 241876 | C15: 435 | E15: 2017-11-30 | F15: 226 | G15: 16.65 | H15: 4.37 | J15: 67.86786787 | K15: 135.7357357 | L15: 203.6036036 | M15: 271.4714715 | O15: 25.85812357 | P15: 51.71624714 | Q15: 103.4324943 | R15: 155.1487414 | S15: 206.8649886
A16: 2020-09-04 | B16: 272746 | C16: 429 | E16: 2017-12-29 | F16: 229.5 | G16: 17.24 | H16: 4.16 | J16: 66.56032483 | K16: 133.1206497 | L16: 199.6809745 | M16: 266.2412993 | O16: 27.58413462 | P16: 55.16826923 | Q16: 110.3365385 | R16: 165.5048077 | S16: 220.6730769
A17: 2020-09-11 | B17: 174472 | C17: 436.5 | E17: 2018-01-31 | F17: 255 | G17: 19.16 | H17: 4.62 | J17: 66.54488518 | K17: 133.0897704 | L17: 199.6346555 | M17: 266.1795407 | O17: 27.5974026 | P17: 55.19480519 | Q17: 110.3896104 | R17: 165.5844156 | S17: 220.7792208
A18: 2020-09-18 | B18: 247015 | C18: 444 | E18: 2018-02-27 | F18: 246 | G18: 18.48 | H18: 4.46 | J18: 66.55844156 | K18: 133.1168831 | L18: 199.6753247 | M18: 266.2337662 | O18: 27.57847534 | P18: 55.15695067 | Q18: 110.3139013 | R18: 165.470852 | S18: 220.6278027
A19: 2020-09-25 | B19: 248237 | C19: 424 | E19: 2018-03-31 | F19: 247.5 | G19: 18.59 | H19: 4.49 | J19: 66.56804734 | K19: 133.1360947 | L19: 199.704142 | M19: 266.2721893 | O19: 27.56124722 | P19: 55.12249443 | Q19: 110.2449889 | R19: 165.3674833 | S19: 220.4899777
A20: 2020-09-30 | B20: 106017 | C20: 433 | E20: 2018-04-30 | F20: 227 | G20: 17.05 | H20: 4.11 | J20: 66.56891496 | K20: 133.1378299 | L20: 199.7067449 | M20: 266.2756598 | O20: 27.61557178 | P20: 55.23114355 | Q20: 110.4622871 | R20: 165.6934307 | S20: 220.9245742
A21: 2020-10-08 | B21: 175060 | C21: 453 | E21: 2018-05-31 | F21: 224 | G21: 16.83 | H21: 4.06 | J21: 66.54783125 | K21: 133.0956625 | L21: 199.6434938 | M21: 266.191325 | O21: 27.5862069 | P21: 55.17241379 | Q21: 110.3448276 | R21: 165.5172414 | S21: 220.6896552
A22: 2020-10-16 | B22: 264888 | C22: 449 | E22: 2018-06-29 | F22: 216.5 | G22: 16.4 | H22: 3.5 | J22: 66.00609756 | K22: 132.0121951 | L22: 198.0182927 | M22: 264.0243902 | O22: 30.92857143 | P22: 61.85714286 | Q22: 123.7142857 | R22: 185.5714286 | S22: 247.4285714
A23: 2020-10-23 | B23: 135384 | C23: 452 | E23: 2018-07-31 | F23: 246 | G23: 18.63 | H23: 3.97 | J23: 66.02254428 | K23: 132.0450886 | L23: 198.0676329 | M23: 264.0901771 | O23: 30.98236776 | P23: 61.96473552 | Q23: 123.929471 | R23: 185.8942065 | S23: 247.8589421
A24: 2020-10-30 | B24: 166663 | C24: 432 | E24: 2018-08-31 | F24: 256 | G24: 19.39 | H24: 4.13 | J24: 66.01340897 | K24: 132.0268179 | L24: 198.0402269 | M24: 264.0536359 | O24: 30.99273608 | P24: 61.98547215 | Q24: 123.9709443 | R24: 185.9564165 | S24: 247.9418886
A25: 2020-11-06 | B25: 173114 | C25: 452.5 | E25: 2018-09-28 | F25: 262.5 | G25: 19.88 | H25: 4.24 | J25: 66.02112676 | K25: 132.0422535 | L25: 198.0633803 | M25: 264.084507 | O25: 30.95518868 | P25: 61.91037736 | Q25: 123.8207547 | R25: 185.7311321 | S25: 247.6415094
A26: 2020-11-13 | B26: 210036 | C26: 462 | E26: 2018-10-31 | F26: 234 | G26: 17.24 | H26: 4.07 | J26: 67.86542923 | K26: 135.7308585 | L26: 203.5962877 | M26: 271.4617169 | O26: 28.74692875 | P26: 57.49385749 | Q26: 114.987715 | R26: 172.4815725 | S26: 229.97543
A27: 2020-11-20 | B27: 298340 | C27: 488 | E27: 2018-11-30 | F27: 225.5 | G27: 16.61 | H27: 3.92 | J27: 67.8807947 | K27: 135.7615894 | L27: 203.6423841 | M27: 271.5231788 | O27: 28.7627551 | P27: 57.5255102 | Q27: 115.0510204 | R27: 172.5765306 | S27: 230.1020408
A28: 2020-11-27 | B28: 196559 | C28: 489 | E28: 2018-12-28 | F28: 225.5 | G28: 16.57 | H28: 3.71 | J28: 68.04465902 | K28: 136.089318 | L28: 204.1339771 | M28: 272.1786361 | O28: 30.39083558 | P28: 60.78167116 | Q28: 121.5633423 | R28: 182.3450135 | S28: 243.1266846
A29: 2020-12-04 | B29: 339251 | C29: 503 | E29: 2019-01-30 | F29: 221 | G29: 16.24 | H29: 3.64 | J29: 68.04187192 | K29: 136.0837438 | L29: 204.1256158 | M29: 272.1674877 | O29: 30.35714286 | P29: 60.71428571 | Q29: 121.4285714 | R29: 182.1428571 | S29: 242.8571429
A30: 2020-12-11 | B30: 229443 | C30: 516 | E30: 2019-02-27 | F30: 239 | G30: 17.56 | H30: 3.93 | J30: 68.0523918 | K30: 136.1047836 | L30: 204.1571754 | M30: 272.2095672 | O30: 30.40712468 | P30: 60.81424936 | Q30: 121.6284987 | R30: 182.4427481 | S30: 243.2569975
A31: 2020-12-18 | B31: 207442 | C31: 510 | E31: 2019-03-29 | F31: 245.5 | G31: 18.04 | H31: 4.04 | J31: 68.04323725 | K31: 136.0864745 | L31: 204.1297118 | M31: 272.172949 | O31: 30.38366337 | P31: 60.76732673 | Q31: 121.5346535 | R31: 182.3019802 | S31: 243.0693069
A32: 2020-12-25 | B32: 106905 | C32: 511 | E32: 2019-04-30 | F32: 259 | G32: 19.03 | H32: 4.26 | J32: 68.05044666 | K32: 136.1008933 | L32: 204.15134 | M32: 272.2017867 | O32: 30.39906103 | P32: 60.79812207 | Q32: 121.5962441 | R32: 182.3943662 | S32: 243.1924883
A33: 2020-12-31 | B33: 117626 | C33: 530 | E33: 2019-05-31 | F33: 235.5 | G33: 17.31 | H33: 3.88 | J33: 68.02426343 | K33: 136.0485269 | L33: 204.0727903 | M33: 272.0970537 | O33: 30.34793814 | P33: 60.69587629 | Q33: 121.3917526 | R33: 182.0876289 | S33: 242.7835052
A34: 2021-01-08 | B34: 246293 | C34: 580 | E34: 2019-06-28 | F34: 239 | G34: 18.93 | H34: 3.56 | J34: 63.12731115 | K34: 126.2546223 | L34: 189.3819334 | M34: 252.5092446 | O34: 33.56741573 | P34: 67.13483146 | Q34: 134.2696629 | R34: 201.4044944 | S34: 268.5393258
A35: 2021-01-15 | B35: 372392 | C35: 601 | E35: 2019-07-31 | F35: 259.5 | G35: 20.55 | H35: 3.86 | J35: 63.13868613 | K35: 126.2773723 | L35: 189.4160584 | M35: 252.5547445 | O35: 33.61398964 | P35: 67.22797927 | Q35: 134.4559585 | R35: 201.6839378 | S35: 268.9119171
A36: 2021-01-22 | B36: 430649 | C36: 649 | E36: 2019-08-30 | F36: 259 | G36: 20.51 | H36: 3.85 | J36: 63.13993174 | K36: 126.2798635 | L36: 189.4197952 | M36: 252.559727 | O36: 33.63636364 | P36: 67.27272727 | Q36: 134.5454545 | R36: 201.8181818 | S36: 269.0909091
A37: 2021-01-29 | B37: 487286 | C37: 591 | E37: 2019-09-27 | F37: 272 | G37: 21.54 | H37: 4.05 | J37: 63.13834726 | K37: 126.2766945 | L37: 189.4150418 | M37: 252.553389 | O37: 33.58024691 | P37: 67.16049383 | Q37: 134.3209877 | R37: 201.4814815 | S37: 268.6419753
A38: 2021-02-05 | B38: 315548 | C38: 632 | E38: 2019-10-31 | F38: 298.5 | G38: 24.27 | H38: 4.98 | J38: 61.49567367 | K38: 122.9913473 | L38: 184.487021 | M38: 245.9826947 | O38: 29.96987952 | P38: 59.93975904 | Q38: 119.8795181 | R38: 179.8192771 | S38: 239.7590361
A39: 2021-02-19 | B39: 221750 | C39: 652 | E39: 2019-11-29 | F39: 305 | G39: 24.8 | H39: 5.09 | J39: 61.49193548 | K39: 122.983871 | L39: 184.4758065 | M39: 245.9677419 | O39: 29.96070727 | P39: 59.92141454 | Q39: 119.8428291 | R39: 179.7642436 | S39: 239.6856582
A40: 2021-02-26 | B40: 355603 | C40: 606 | E40: 2019-12-31 | F40: 331 | G40: 25.96 | H40: 5.41 | J40: 63.75192604 | K40: 127.5038521 | L40: 191.2557781 | M40: 255.0077042 | O40: 30.59149723 | P40: 61.18299445 | Q40: 122.3659889 | R40: 183.5489834 | S40: 244.7319778
A41: 2021-03-05 | B41: 280052 | C41: 601 | E41: 2020-01-31 | F41: 320 | G41: 25.1 | H41: 5.23 | J41: 63.74501992 | K41: 127.4900398 | L41: 191.2350598 | M41: 254.9800797 | O41: 30.59273423 | P41: 61.18546845 | Q41: 122.3709369 | R41: 183.5564054 | S41: 244.7418738
A42: 2021-03-12 | B42: 253223 | C42: 614 | E42: 2020-02-27 | F42: 316 | G42: 24.79 | H42: 5.16 | J42: 63.73537717 | K42: 127.4707543 | L42: 191.2061315 | M42: 254.9415087 | O42: 30.62015504 | P42: 61.24031008 | Q42: 122.4806202 | R42: 183.7209302 | S42: 244.9612403
A43: 2021-03-19 | B43: 216675 | C43: 591 | E43: 2020-03-31 | F43: 274 | G43: 21.49 | H43: 4.48 | J43: 63.75058167 | K43: 127.5011633 | L43: 191.251745 | M43: 255.0023267 | O43: 30.58035714 | P43: 61.16071429 | Q43: 122.3214286 | R43: 183.4821429 | S43: 244.6428571
E44: 2020-04-30 | F44: 304.5 | G44: 23.88 | H44: 4.98 | J44: 63.75628141 | K44: 127.5125628 | L44: 191.2688442 | M44: 255.0251256 | O44: 30.57228916 | P44: 61.14457831 | Q44: 122.2891566 | R44: 183.4337349 | S44: 244.5783133
E45: 2020-05-29 | F45: 292 | G45: 22.9 | H45: 4.77 | J45: 63.75545852 | K45: 127.510917 | L45: 191.2663755 | M45: 255.0218341 | O45: 30.60796646 | P45: 61.21593291 | Q45: 122.4318658 | R45: 183.6477987 | S45: 244.8637317
E46: 2020-06-30 | F46: 313 | G46: 20.19 | H46: 4.84 | J46: 77.5136206 | K46: 155.0272412 | L46: 232.5408618 | M46: 310.0544824 | O46: 32.33471074 | P46: 64.66942149 | Q46: 129.338843 | R46: 194.0082645 | S46: 258.677686
E47: 2020-07-31 | F47: 425.5 | G47: 27.44 | H47: 6.58 | J47: 77.53279883 | K47: 155.0655977 | L47: 232.5983965 | M47: 310.1311953 | O47: 32.33282675 | P47: 64.6656535 | Q47: 129.331307 | R47: 193.9969605 | S47: 258.662614
E48: 2020-08-31 | F48: 426.5 | G48: 27.51 | H48: 6.6 | J48: 77.51726645 | K48: 155.0345329 | L48: 232.5517993 | M48: 310.0690658 | O48: 32.31060606 | P48: 64.62121212 | Q48: 129.2424242 | R48: 193.8636364 | S48: 258.4848485
E49: 2020-09-30 | F49: 433 | G49: 27.93 | H49: 6.7 | J49: 77.51521661 | K49: 155.0304332 | L49: 232.5456498 | M49: 310.0608665 | O49: 32.31343284 | P49: 64.62686567 | Q49: 129.2537313 | R49: 193.880597 | S49: 258.5074627
E50: 2020-10-30 | F50: 432 | G50: 24.5 | H50: 6.51 | J50: 88.16326531 | K50: 176.3265306 | L50: 264.4897959 | M50: 352.6530612 | O50: 33.1797235 | P50: 66.359447 | Q50: 132.718894 | R50: 199.078341 | S50: 265.437788
E51: 2020-11-30 | F51: 480.5 | G51: 27.26 | H51: 7.24 | J51: 88.1327953 | K51: 176.2655906 | L51: 264.3983859 | M51: 352.5311812 | O51: 33.18370166 | P51: 66.36740331 | Q51: 132.7348066 | R51: 199.1022099 | S51: 265.4696133
E52: 2020-12-31 | F52: 530 | G52: 28.23 | H52: 7.69 | J52: 93.87176762 | K52: 187.7435352 | L52: 281.6153029 | M52: 375.4870705 | O52: 34.4603381 | P52: 68.9206762 | Q52: 137.8413524 | R52: 206.7620286 | S52: 275.6827048
E53: 2021-01-29 | F53: 591 | G53: 31.48 | H53: 8.57 | J53: 93.86912325 | K53: 187.7382465 | L53: 281.6073698 | M53: 375.476493 | O53: 34.48074679 | P53: 68.96149358 | Q53: 137.9229872 | R53: 206.8844807 | S53: 275.8459743
E54: 2021-02-26 | F54: 606 | G54: 32.28 | H54: 8.79 | J54: 93.866171 | K54: 187.732342 | L54: 281.598513 | M54: 375.464684 | O54: 34.47098976 | P54: 68.94197952 | Q54: 137.883959 | R54: 206.8259386 | S54: 275.7679181
E55: 2021-03-31 | F55: 591 | G55: 31.48 | H55: 8.57 | J55: 93.86912325 | K55: 187.7382465 | L55: 281.6073698 | M55: 375.476493 | O55: 34.48074679 | P55: 68.96149358 | Q55: 137.9229872 | R55: 206.8844807 | S55: 275.8459743

Sheet 月營收
A1: 2330 台積電 | B1: 單位:佰萬
A2: 年月 | B2: 以合併為主單月營收(千元) | C2: 以合併為主累計營收(千元) | D2: 以合併為主單月營收與上月比％ | E2: 以合併為主單月營收成長率％ | F2: 合併營收(Y/N)
A3: 2021-02-26 | B3: 106533.69 | C3: 233282.842 | D3: -15.95 | E3: 14.07 | H3: =IF(A3="","",YEAR(A3)&MONTH(A3)) -> 20212 | I3: =IF(B3="","",B3) -> 106533.69 | L3: =YEAR(A39) -> 2018 | M3: =YEAR(A27) -> 2019 | N3: =YEAR(A15) -> 2020 | O3: =YEAR(A3) -> 2021
A4: 2021-01-29 | B4: 126749.152 | C4: 126749.152 | D4: 8 | E4: 22.25 | H4: =IF(A4="","",YEAR(A4)&MONTH(A4)) -> 20211 | I4: =IF(B4="","",B4) -> 126749.152 | K4: 1 | L4: =IF(ISERROR(VLOOKUP($L$3&K4,$H:$I,2,0)),"",VLOOKUP($L$3&K4,$H:$I,2,0)) -> 79740.672 | M4: =IF(ISERROR(VLOOKUP($M$3&K4,$H:$I,2,0)),"",VLOOKUP($M$3&K4,$H:$I,2,0)) -> 78093.827 | N4: =IF(ISERROR(VLOOKUP($N$3&K4,$H:$I,2,0)),"",VLOOKUP($N$3&K4,$H:$I,2,0)) -> 103683.135 | O4: =IF(ISERROR(VLOOKUP($O$3&K4,$H:$I,2,0)),"",VLOOKUP($O$3&K4,$H:$I,2,0)) -> 126749.152
A5: 2020-12-31 | B5: 117364.912 | C5: 1339254.811 | D5: -6.01 | E5: 13.6 | H5: 202012 | I5: 117364.912 | K5: 2 | L5: 64640.562 | M5: 60889.055 | N5: 93394.449 | O5: 106533.69
A6: 2020-11-30 | B6: 124865.438 | C6: 1221889.899 | D6: 4.66 | E6: 15.74 | H6: 202011 | I6: 124865.438 | K6: 3 | L6: 103697.437 | M6: 79721.587 | N6: 113519.599
A7: 2020-10-30 | B7: 119302.707 | C7: 1097024.461 | D7: -6.49 | E7: 12.51 | H7: 202010 | I7: 119302.707 | K7: 4 | L7: 81869.781 | M7: 74693.615 | N7: 96001.572
A8: 2020-09-30 | B8: 127584.492 | C8: 977721.754 | D8: 3.83 | E8: 24.87 | H8: 20209 | I8: 127584.492 | K8: 5 | L8: 80968.732 | M8: 80436.931 | N8: 93819.01
A9: 2020-08-31 | B9: 122878.244 | C9: 850137.262 | D9: 15.96 | E9: 15.79 | H9: 20208 | I9: 122878.244 | K9: 6 | L9: 70438.298 | M9: 85867.929 | N9: 120877.785
A10: 2020-07-31 | B10: 105963.468 | C10: 727259.018 | D10: -12.34 | E10: 25.02 | H10: 20207 | I10: 105963.468 | K10: 7 | L10: 74370.924 | M10: 84757.724 | N10: 105963.468
A11: 2020-06-30 | B11: 120877.785 | C11: 621295.55 | D11: 28.84 | E11: 40.77 | H11: 20206 | I11: 120877.785 | K11: 8 | L11: 91055.038 | M11: 106117.619 | N11: 122878.244
A12: 2020-05-29 | B12: 93819.01 | C12: 500417.765 | D12: -2.27 | E12: 16.64 | H12: 20205 | I12: 93819.01 | K12: 9 | L12: 94921.92 | M12: 102170.096 | N12: 127584.492
A13: 2020-04-30 | B13: 96001.572 | C13: 406598.755 | D13: -15.43 | E13: 28.53 | H13: 20204 | I13: 96001.572 | K13: 10 | L13: 101550.181 | M13: 106039.531 | N13: 119302.707
A14: 2020-03-31 | B14: 113519.599 | C14: 310597.183 | D14: 21.55 | E14: 42.4 | H14: 20203 | I14: 113519.599 | K14: 11 | L14: 98389.414 | M14: 107884.396 | N14: 124865.438
A15: 2020-02-27 | B15: 93394.449 | C15: 197077.584 | D15: -9.92 | E15: 53.38 | H15: 20202 | I15: 93394.449 | K15: 12 | L15: 89830.598 | M15: 103313.138 | N15: 117364.912
A16: 2020-01-31 | B16: 103683.135 | C16: 103683.135 | D16: 0.36 | E16: 32.77 | H16: 20201 | I16: 103683.135
A17: 2019-12-31 | B17: 103313.138 | C17: 1069985.448 | D17: -4.24 | E17: 15.01 | H17: 201912 | I17: 103313.138
A18: 2019-11-29 | B18: 107884.396 | C18: 966672.31 | D18: 1.74 | E18: 9.65 | H18: 201911 | I18: 107884.396
A19: 2019-10-31 | B19: 106039.531 | C19: 858787.914 | D19: 3.79 | E19: 4.42 | H19: 201910 | I19: 106039.531
A20: 2019-09-27 | B20: 102170.096 | C20: 752748.383 | D20: -3.72 | E20: 7.64 | H20: 20199 | I20: 102170.096
A21: 2019-08-30 | B21: 106117.619 | C21: 650578.287 | D21: 25.2 | E21: 16.54 | H21: 20198 | I21: 106117.619
A22: 2019-07-31 | B22: 84757.724 | C22: 544460.668 | D22: -1.29 | E22: 13.97 | H22: 20197 | I22: 84757.724
A23: 2019-06-28 | B23: 85867.929 | C23: 459702.944 | D23: 6.75 | E23: 21.91 | H23: 20196 | I23: 85867.929
A24: 2019-05-31 | B24: 80436.931 | C24: 373835.015 | D24: 7.69 | E24: -0.66 | H24: 20195 | I24: 80436.931
A25: 2019-04-30 | B25: 74693.615 | C25: 293398.084 | D25: -6.31 | E25: -8.77 | H25: 20194 | I25: 74693.615
A26: 2019-03-29 | B26: 79721.587 | C26: 218704.469 | D26: 30.93 | E26: -23.12 | H26: 20193 | I26: 79721.587
A27: 2019-02-27 | B27: 60889.055 | C27: 138982.882 | D27: -22.03 | E27: -5.8 | H27: 20192 | I27: 60889.055
A28: 2019-01-30 | B28: 78093.827 | C28: 78093.827 | D28: -13.07 | E28: -2.07 | H28: 20191 | I28: 78093.827
A29: 2018-12-28 | B29: 89830.598 | C29: 1031473.557 | D29: -8.7 | E29: -0.07 | H29: 201812 | I29: 89830.598
A30: 2018-11-30 | B30: 98389.414 | C30: 941642.959 | D30: -3.11 | E30: 5.62 | H30: 201811 | I30: 98389.414
A31: 2018-10-31 | B31: 101550.181 | C31: 843253.545 | D31: 6.98 | E31: 7.44 | H31: 201810 | I31: 101550.181
A32: 2018-09-28 | B32: 94921.92 | C32: 741703.364 | D32: 4.25 | E32: 7.16 | H32: 20189 | I32: 94921.92
A33: 2018-08-31 | B33: 91055.038 | C33: 646781.444 | D33: 22.43 | E33: -0.94 | H33: 20188 | I33: 91055.038
A34: 2018-07-31 | B34: 74370.924 | C34: 555726.406 | D34: 5.58 | E34: 3.85 | H34: 20187 | I34: 74370.924
A35: 2018-06-29 | B35: 70438.298 | C35: 481355.482 | D35: -13.01 | E35: -16.33 | H35: 20186 | I35: 70438.298
A36: 2018-05-31 | B36: 80968.732 | C36: 410917.184 | D36: -1.1 | E36: 11.23 | H36: 20185 | I36: 80968.732
A37: 2018-04-30 | B37: 81869.781 | C37: 329948.452 | D37: -21.05 | E37: 43.95 | H37: 20184 | I37: 81869.781
A38: 2018-03-31 | B38: 103697.437 | C38: 248078.671 | D38: 60.42 | E38: 20.75 | H38: 20183 | I38: 103697.437
A39: 2018-02-27 | B39: 64640.562 | C39: 144381.234 | D39: -18.94 | E39: -9.5 | H39: 20182 | I39: 64640.562
A40: 2018-01-31 | B40: 79740.672 | C40: 79740.672 | D40: -11.3 | E40: 4.08 | H40: 20181 | I40: 79740.672
I44: =IF(B44="","",B44) -> 

Sheet 十大股東
A1: 1216 統一
A2: 年月日 | B2: 持股人姓名 | C2: 身份別 | D2: 持股數 | E2: 持股率 | F2: 選任持股比率 | G2: 質押比率% | H2: 十大股東
A3: 2021-02-26 | B3: 高權投資(股) 高秀玲 | C3: 董事 | D3: 284331 | E3: 5 | F3: 4.93 | G3: 28.15 | H3: 1
A4: 2021-02-26 | B4: 高權投資(股) 陳瑞堂 | C4: 董事 | D4: 284331 | E4: 5 | F4: 4.93 | G4: 28.15 | H4: 1
A5: 2021-02-26 | B5: 高權投資(股) 羅智先 | C5: 董事長/總經理 | D5: 284331 | E5: 5 | F5: 4.93 | G5: 28.15 | H5: 1
A6: 2021-02-26 | B6: 摩根梵市場股 摩根梵市場股 | C6: 大股東 | D6: 73991 | E6: 1.3 | F6: 0 | G6: 0 | H6: 10
A7: 2021-02-26 | B7: 匯豐巴黎財香 匯豐巴黎財香 | C7: 大股東 | D7: 172709 | E7: 3.04 | F7: 0 | G7: 0 | H7: 2
A8: 2021-02-26 | B8: 侯博明 侯博明 | C8: 法人代表(董事) | D8: 147751 | E8: 2.6 | F8: 0 | G8: 0 | H8: 3
A9: 2021-02-26 | B9: 侯博裕 侯博裕 | C9: 董事 | D9: 128917 | E9: 2.27 | F9: 2.27 | G9: 0 | H9: 4
A10: 2021-02-26 | B10: 花旗託管新加 花旗託管新加 | C10: 大股東 | D10: 117118 | E10: 2.06 | F10: 0 | G10: 0 | H10: 5
A11: 2021-02-26 | B11: 高秀玲 高秀玲 | C11: 法人代表(董事) | D11: 93402 | E11: 1.64 | F11: 0 | G11: 37.47 | H11: 6
A12: 2021-02-26 | B12: 大通託阿拉伯 大通託阿拉伯 | C12: 大股東 | D12: 87614 | E12: 1.54 | F12: 0 | G12: 0 | H12: 7
A13: 2021-02-26 | B13: 匯豐託斯圖爾 匯豐託斯圖爾 | C13: 大股東 | D13: 86197 | E13: 1.52 | F13: 0 | G13: 0 | H13: 8
A14: 2021-02-26 | B14: 大通先進星光 大通先進星光 | C14: 大股東 | D14: 75985 | E14: 1.34 | F14: 0 | G14: 0 | H14: 9

Sheet 合併財報(累計)
A1: 2330 台積電
A2: Data Field | B2: 2018-12-28 | C2: 2019-12-31 | D2: 2020-12-31 | E2: Data Field | F2: 2020-12-31
A3: 合併(Y/N) | B3: Y | C3: Y | D3: Y | E3: 合併(Y/N) | F3: Y
A4: 現金及約當現金 | B4: 577814601 | C4: 455399336 | D4: 660170647 | E4: 現金及約當現金 | F4: 660170647
A5: 透過損益按公允價值衡量之金融資產－流動 | B5: 3504590 | C5: 326839 | D5: 2259412 | E5: 透過損益按公允價值衡量之金融資產－流動 | F5: 2259412
A6: 透過其他綜合損益按公允價值衡量之金融資產－流動 | B6: 99561740 | C6: 127396577 | D6: 122448453 | E6: 透過其他綜合損益按公允價值衡量之金融資產－流動 | F6: 122448453
A7: 按攤銷後成本衡量之金融資產－流動 | B7: 14277615 | C7: 299884 | D7: 6597992 | E7: 按攤銷後成本衡量之金融資產－流動 | F7: 6597992
A8: 避險之金融資產－流動 | B8: 23497 | C8: 25884 | D8: 47 | E8: 避險之金融資產－流動 | F8: 47
A9: 應收帳款及票據 | B9: 129197803 | C9: 139770659 | D9: 146038403 | E9: 應收帳款及票據 | F9: 146038403
A10: 其他應收款 | B10: 65028 | C10: 51653 | D10: 50645 | E10: 其他應收款 | F10: 50645
A11: 存貨 | B11: 103230976 | C11: 82981196 | D11: 137353407 | E11: 存貨 | F11: 137353407
A12: 其他金融資產－流動 | B12: 18597448 | C12: 11041091 | D12: 10676111 | E12: 其他金融資產－流動 | F12: 10676111
A13: 其他流動資產 | B13: 5406423 | C13: 5320795 | D13: 6590191 | E13: 其他流動資產 | F13: 6590191
A14: 流動資產 | B14: 951679721 | C14: 822613914 | D14: 1092185308 | E14: 流動資產 | F14: 1092185308
A15: 透過損益按公允價值衡量之金融資產－非流動 | B15: 0 | C15: 0 | D15: 0 | E15: 透過損益按公允價值衡量之金融資產－非流動 | F15: 0
A16: 透過其他綜合損益按公允價值衡量之金融資產－非流動 | B16: 3910681 | C16: 4124337 | D16: 4514940 | E16: 透過其他綜合損益按公允價值衡量之金融資產－非流動 | F16: 4514940
A17: 按攤銷後成本衡量之金融資產－非流動 | B17: 7528277 | C17: 7348914 | D17: 4372207 | E17: 按攤銷後成本衡量之金融資產－非流動 | F17: 4372207
A18: 避險之金融資產－非流動 | B18: 0 | C18: 0 | D18: 0 | E18: 避險之金融資產－非流動 | F18: 0
A19: 採權益法之長期股權投資 | B19: 17865838 | C19: 18698788 | D19: 18841061 | E19: 採權益法之長期股權投資 | F19: 18841061
A20: 不動產廠房及設備 | B20: 1072050279 | C20: 1352377405 | D20: 1555589120 | E20: 不動產廠房及設備 | F20: 1555589120
A21: 商譽及無形資產合計 | B21: 17002137 | C21: 20653028 | D21: 25768179 | E21: 商譽及無形資產合計 | F21: 25768179
A22: 遞延所得稅資產 | B22: 16806387 | C22: 17928358 | D22: 25958184 | E22: 遞延所得稅資產 | F22: 25958184
A23: 其他非流動資產 | B23: 3284718 | C23: 21060288 | D23: 33482406 | E23: 其他非流動資產 | F23: 33482406
A24: 非流動資產 | B24: 1138448317 | C24: 1442191118 | D24: 1668526097 | E24: 非流動資產 | F24: 1668526097
A25: 資產總額 | B25: 2090128038 | C25: 2264805032 | D25: 2760711405 | E25: 資產總額 | F25: 2760711405
A26: 短期借款 | B26: 88754640 | C26: 118522290 | D26: 88559026 | E26: 短期借款 | F26: 88559026
A27: 透過損益按公允價值衡量之金融負債－流動 | B27: 40825 | C27: 982349 | D27: 94128 | E27: 透過損益按公允價值衡量之金融負債－流動 | F27: 94128
A28: 應付公司債－非流動 | B28: 56900000 | C28: 25100000 | D28: 254105084 | E28: 應付公司債－非流動 | F28: 254105084
A29: 避險之金融負債－流動 | B29: 155832 | C29: 1798 | D29: 1169 | E29: 避險之金融負債－流動 | F29: 1169
A30: 合約負債－流動 | B30: 4684024 | C30: 6784323 | D30: 13775088 | E30: 合約負債－流動 | F30: 13775088
A31: 應付帳款及票據 | B31: 34357432 | C31: 40205966 | D31: 41095002 | E31: 應付帳款及票據 | F31: 41095002
A32: 其他應付款 | B32: 81586185 | C32: 310383861 | D32: 343209150 | E32: 其他應付款 | F32: 343209150
A33: 當期所得稅負債 | B33: 38987053 | C33: 32466156 | D33: 53909313 | E33: 當期所得稅負債 | F33: 53909313
A34: 負債準備－流動 | B34: 0 | C34: 0 | D34: 0 | E34: 負債準備－流動 | F34: 0
A35: 一年內到期長期負債 | B35: 34900000 | C35: 31800000 | D35: 2600000 | E35: 一年內到期長期負債 | F35: 2600000
A36: 其他流動負債 | B36: 57076595 | C36: 47313874 | D36: 72080147 | E36: 其他流動負債 | F36: 72080147
A37: 流動負債 | B37: 340542586 | C37: 590735701 | D37: 617151048 | E37: 流動負債 | F37: 617151048
A38: Data Field | B38: 2018-12-28 | C38: 2019-12-31 | D38: 2020-12-31 | E38: Data Field | F38: 2020-09-30 | G38: 2020-12-31
A39: 應付公司債－非流動 | B39: 56900000 | C39: 25100000 | D39: 254105084 | E39: 應付公司債－非流動 | F39: 227045434 | G39: 254105084
A40: 銀行借款－非流動 | B40: 0 | C40: 0 | D40: 1967611 | E40: 銀行借款－非流動 | F40: 982449 | G40: 1967611
A41: 遞延所得稅 | B41: 233284 | C41: 344393 | D41: 1729941 | E41: 遞延所得稅 | F41: 1022263 | G41: 1729941
A42: 其他非流動負債 | B42: 5304367 | C42: 2305183 | D42: 2660999 | E42: 其他非流動負債 | F42: 2448187 | G42: 2660999
A43: 非流動負債 | B43: 72089056 | C43: 51973905 | D43: 292938358 | E43: 非流動負債 | F43: 259064116 | G43: 292938358
A44: 負債總額 | B44: 412631642 | C44: 642709606 | D44: 910089406 | E44: 負債總額 | F44: 847305839 | G44: 910089406
A45: 普通股股本 | B45: 259303805 | C45: 259303805 | D45: 259303805 | E45: 普通股股本 | F45: 259303805 | G45: 259303805
A46: 特別股股本 | B46: 0 | C46: 0 | D46: 0 | E46: 特別股股本 | F46: 0 | G46: 0
A47: 股本 | B47: 259303805 | C47: 259303805 | D47: 259303805 | E47: 股本 | F47: 259303805 | G47: 259303805
A48: 資本公積合計 | B48: 56315932 | C48: 56339709 | D48: 56347243 | E48: 資本公積合計 | F48: 56339982 | G48: 56347243
A49: 法定盈餘公積 | B49: 276033811 | C49: 311146899 | D49: 311146899 | E49: 法定盈餘公積 | F49: 311146899 | G49: 311146899
A50: 特別盈餘公積 | B50: 26907527 | C50: 10675106 | D50: 42259146 | E50: 特別盈餘公積 | F50: 36757795 | G50: 42259146
A51: 未分配盈餘 | B51: 1073706503 | C51: 1011512974 | D51: 1235280036 | E51: 未分配盈餘 | F51: 1166071694 | G51: 1235280036
A52: 保留盈餘 | B52: 1376647841 | C52: 1333334979 | D52: 1588686081 | E52: 保留盈餘 | F52: 1513976388 | G52: 1588686081
A53: 其他權益 | B53: -15449913 | C53: -27568369 | D53: -54679873 | E53: 其他權益 | F53: -42259146 | G53: -54679873
A54: 母公司股東權益合計 | B54: 1676817665 | C54: 1621410124 | D54: 1849657256 | E54: 母公司股東權益合計 | F54: 1787361029 | G54: 1849657256
A55: 非控制權益 | B55: 678731 | C55: 685302 | D55: 964743 | E55: 非控制權益 | F55: 905346 | G55: 964743
A56: 股東權益總額 | B56: 1677496396 | C56: 1622095426 | D56: 1850621999 | E56: 股東權益總額 | F56: 1788266375 | G56: 1850621999
A57: 負債及股東權益總額 | B57: 2090128038 | C57: 2264805032 | D57: 2760711405 | E57: 負債及股東權益總額 | F57: 2635572214 | G57: 2760711405
A58: Data Field | B58: 2018-12-28 | C58: 2019-12-31 | D58: 2020-12-31
A59: 營業收入淨額 | B59: 1031473557 | C59: 1069985448 | D59: 1339254811
A60: 營業成本 | B60: 533487516 | C60: 577286947 | D60: 628108309
A61: 營業毛利 | B61: 497986041 | C61: 492698501 | D61: 711146502
A62: 聯屬公司已（未）實現銷貨利益 | B62: -111788 | C62: 3395 | D62: -16382
A63: 已實現銷貨毛利 | B63: 497874253 | C63: 492701896 | D63: 711130120
A64: 營業費用 | B64: 112149280 | C64: 119504582 | D64: 145056549
A65: 推銷費用 | B65: 5987828 | C65: 6348626 | D65: 7112867
A66: 管理費用 | B66: 20265883 | C66: 21737210 | D66: 28457593
A67: 研究發展費 | B67: 85895569 | C67: 91418746 | D67: 109486089
A68: 其他費用 | B68: 0 | C68: 0 | D68: 0
A69: 其他收益及費損淨額 | B69: -2101449 | C69: -496224 | D69: 710127
A70: 營業利益 | B70: 383623524 | C70: 372701090 | D70: 566783698
A71: 採權益法之關聯企業及合資損益之份額 | B71: 3057781 | C71: 2844222 | D71: 3592818
A72: 其他收入 | B72: 14852814 | C72: 16606669 | D72: 9679007
A73: 其他利益及損失 | B73: -975016 | C73: 945916 | D73: 6806784
A74: 財務成本 | B74: 3051223 | C74: 3250847 | D74: 2081455
A75: 採用權益法認列之關聯企業及合資損失之份額
A76: 採用權益法認列之關聯企業及合資利益之份額 | B76: 3057781 | C76: 2844222 | D76: 3592818
A77: 預期信用減損（損失）利益 | B77: 2383 | C77: -1714 | D77: -3672
A78: 營業外收入及支出 | B78: 13886739 | C78: 17144246 | D78: 17993482
A79: 稅前淨利 | B79: 397510263 | C79: 389845336 | D79: 584777180
A80: 所得稅費用 | B80: 46325857 | C80: 44501527 | D80: 66619098
A81: 繼續營業單位損益 | B81: 351184406 | C81: 345343809 | D81: 518158082
A82: 確定福利計畫之再衡量數－不重分類－OCI | B82: -861162 | C82: 253895 | D82: -3516749
A83: 透過FVOCI衡量權益工具投資未實現評價損益－不重分類－OCI | B83: -3309089 | C83: 334327 | D83: 423697
A84: 避險工具之損益－不重分類－OCI | B84: 40975 | C84: -109592 | D84: 24085
A85: 採權益法認列關聯企業及合資其他綜合損益份額－不重分－OCI | B85: -14217 | C85: -18271 | D85: -11604
A86: 與其他綜合損益組成部分相關之所得稅－可重分類－OCI | B86: 0 | C86: 0 | D86: 0
A87: 後續可能重分類至損益之項目－OCI | B87: 13784740 | C87: -12262929 | D87: -27663894
A88: 國外營運機構財務報表換算之兌換差額－可重分類－OCI | B88: 14562386 | C88: -14689107 | D88: -29847196
A89: 與其他綜合損益組成部分相關之所得稅－可重分類－OCI_1 | B89: 0 | C89: 0 | D89: 0
A90: Data Field | B90: 2018-12-28 | C90: 2019-12-31 | D90: 2020-12-31
A91: 其他綜合損益－OCI | B91: 9836976 | C91: -11823562 | D91: -30321802
A92: 本期綜合損益總額 | B92: 361021382 | C92: 333520247 | D92: 487836280
A93: 歸屬母公司淨利（損） | B93: 351130884 | C93: 345263668 | D93: 517885387
A94: 歸屬非控制權益淨利（損） | B94: 53522 | C94: 80141 | D94: 272695
A95: 綜合損益歸屬母公司 | B95: 360965015 | C95: 333440460 | D95: 487563478
A96: 綜合損益歸屬非控制權益 | B96: 56367 | C96: 79787 | D96: 272802
A97: 每股盈餘 | B97: 13.54 | C97: 13.32 | D97: 19.97
A98: 每股盈餘－完全稀釋 | B98: 13.54 | C98: 13.32 | D98: 19.97

Sheet 合併財報(單季)
A1: 2330 台積電
A2: Data Field | B2: 2019-09-27 | C2: 2019-12-31 | D2: 2020-03-31 | E2: 2020-06-30 | F2: 2020-09-30 | G2: 2020-12-31
A3: 營業收入淨額 | B3: 293045439 | C3: 317237065 | D3: 310597183 | E3: 310698367 | F3: 356426204 | G3: 361533057
A4: 營業成本 | B4: 153613278 | C4: 157996080 | D4: 149813002 | E4: 146005542 | F4: 165945534 | G4: 166344231
A5: 營業毛利 | B5: 139432161 | C5: 159240985 | D5: 160784181 | E5: 164692825 | F5: 190480670 | G5: 195188826
A6: 營業費用 | B6: 31378953 | C6: 34942621 | D6: 32323046 | E6: 33520709 | F6: 40891355 | G6: 38321439
A7: 營業利益 | B7: 107887292 | C7: 124243722 | D7: 128521637 | E7: 131094538 | F7: 150047349 | G7: 157120174
A8: 採權益法之關聯企業及合資損益之份額 | B8: 915714 | C8: 866482 | D8: 725968 | E8: 678757 | F8: 833165 | G8: 1354928
A9: 其他收入 | B9: 3918123 | C9: 3488423 | D9: 3099578 | E9: 2711777 | F9: 2015597 | G9: 1852055
A10: 其他利益及損失 | B10: 459563 | C10: 828657 | D10: 332185 | E10: 2321273 | F10: 2600868 | G10: 1552458
A11: 財務成本 | B11: 843434 | C11: 643597 | D11: 530564 | E11: 409145 | F11: 373164 | G11: 768582
A12: 預期信用減損（損失）利益 | B12: -987 | C12: -1714 | D12: -1626 | E12: 1438 | F12: 188 | G12: -3672
A13: 營業外收入及支出 | B13: 4448979 | C13: 4538251 | D13: 3625541 | E13: 5304100 | F13: 5076654 | G13: 3987187
A14: 稅前淨利 | B14: 112336271 | C14: 128781973 | D14: 132147178 | E14: 136398638 | F14: 155124003 | G14: 161107361
A15: 所得稅費用 | B15: 11233817 | C15: 12703779 | D15: 15084285 | E15: 15506124 | F15: 17745852 | G15: 18282837
A16: 繼續營業單位損益 | B16: 101102454 | C16: 116078194 | D16: 117062893 | E16: 120892514 | F16: 137378151 | G16: 142824524
A17: 其他綜合損益－OCI | B17: -3224875 | C17: -16740693 | D17: 2647918 | E17: -11883486 | F17: -5435402 | G17: -15650832
A18: 本期綜合損益總額 | B18: 97877579 | C18: 99337501 | D18: 119710811 | E18: 109009028 | F18: 131942749 | G18: 127173692
A19: 歸屬母公司淨利（損） | B19: 101069886 | C19: 116035081 | D19: 116986720 | E19: 120822193 | F19: 137310040 | G19: 142766434
A20: 歸屬非控制權益淨利（損） | B20: 32568 | C20: 43113 | D20: 76173 | E20: 70321 | F20: 68111 | G20: 58090
A21: 綜合損益歸屬母公司 | B21: 97844981 | C21: 99294825 | D21: 119634992 | E21: 108937736 | F21: 131874689 | G21: 127116061
A22: 綜合損益歸屬非控制權益 | B22: 32598 | C22: 42676 | D22: 75819 | E22: 71292 | F22: 68060 | G22: 57631
A23: 每股盈餘 | B23: 3.9 | C23: 4.47 | D23: 4.51 | E23: 4.66 | F23: 5.3 | G23: 5.51
A24: 每股盈餘－完全稀釋 | B24: 3.9 | D24: 4.51 | E24: 4.66 | F24: 5.3
A25: Data Field | B25: 2019-09-27 | C25: 2019-12-31 | D25: 2020-03-31 | E25: 2020-06-30 | F25: 2020-09-30 | G25: 2020-12-31
A26: 來自營運之現金流量 | B26: 141753021 | C26: 202954417 | D26: 203029442 | E26: 170334959 | F26: 190171227 | G26: 259130584
A27: 投資活動之現金流量 | B27: -108290117 | C27: -171605106 | D27: -188993268 | E27: -129750164 | F27: -96079669 | G27: -90958613
A28: 籌資活動之現金流量 | B28: -229112243 | C28: -17182776 | D28: -40757411 | E28: 5912053 | F28: 47434066 | G28: -101203795
A29: 匯率影響數 | B29: -1617623 | C29: -11197499 | D29: 2099130 | E29: -9660634 | F29: -4943954 | G29: -10992642
A30: 本期產生現金流量 | B30: -197266962 | C30: 2969036 | D30: -24622107 | E30: 36836214 | F30: 136581670 | G30: 55975534
A31: 期初現金及約當現金 | B31: 649697262 | C31: 452430300 | D31: 455399336 | E31: 430777229 | F31: 467613443 | G31: 604195113
A32: 期末現金及約當現金 | B32: 452430300 | C32: 455399336 | D32: 430777229 | E32: 467613443 | F32: 604195113 | G32: 660170647
A33: 營收成長率 | B33: 1900-01-12T13:26:24 | C33: 1900-01-09T11:31:12 | D33: 1900-02-11T00:28:48 | E33: 1900-01-28T22:04:48 | F33: 1900-01-21T15:07:12 | G33: 1900-01-13T23:02:24
A34: 營業毛利成長率 | B34: 13.01 | C34: 15.36 | D34: 77.95 | E34: 58.86 | F34: 36.61 | G34: 22.57
A35: 營業利益成長率 | B35: 13.27 | C35: 15.98 | D35: 99.98 | E35: 71.81 | F35: 39.08 | G35: 26.46
A36: 稅前淨利成長率 | B36: 13.59 | C36: 15.93 | D36: 93.82 | E36: 69.34 | F36: 38.09 | G36: 25.1
A37: 稅後淨利成長率 | B37: 13.47 | C37: 16.07 | D37: 90.7 | E37: 81.04 | F37: 35.88 | G37: 23.04
A38: 營業毛利率 | B38: 47.58 | C38: 50.2 | D38: 51.77 | E38: 53.01 | F38: 53.44 | G38: 53.99
A39: 營業利益率 | B39: 36.82 | C39: 39.16 | D39: 41.38 | E39: 42.19 | F39: 42.1 | G39: 43.46
A40: 稅前淨利率 | B40: 38.33 | C40: 40.59 | D40: 42.55 | E40: 43.9 | F40: 43.52 | G40: 44.56
A41: 稅後淨利率 | B41: 34.5 | C41: 36.59 | D41: 37.69 | E41: 38.91 | F41: 38.54 | G41: 39.51
A42: 稅後淨利率 | B42: 30.46 | C42: 32.28 | D42: 37.69 | E42: 38.3 | F42: 38.39 | G42: 38.69

Sheet IFRS說明
A1: 2330 台積電
A2: 年月 | B2: 序碼 | C2: 內文 | D2: 說明日
A3: 2012-12-28 | B3: 01 | C3: IFRS對淨值無重大影響 | D3: 2013-04-29

Sheet IFRS_BS
A1: 2330 台積電
A2: Data Field | B2: 2018-12-28 | C2: 2019-12-31 | D2: 2020-12-31 | E2: Data Field | F2: 2020-12-31
A3: 現金及約當現金 | B3: 577814601 | C3: 455399336 | D3: 660170647 | E3: 現金及約當現金 | F3: 660170647
A4: 透過損益按公允價值衡量之金融資產－流動 | B4: 3504590 | C4: 326839 | D4: 2259412 | E4: 透過損益按公允價值衡量之金融資產－流動 | F4: 2259412
A5: 透過其他綜合損益按公允價值衡量之金融資產－流動 | B5: 99561740 | C5: 127396577 | D5: 122448453 | E5: 透過其他綜合損益按公允價值衡量之金融資產－流動 | F5: 122448453
A6: 按攤銷後成本衡量之金融資產－流動 | B6: 14277615 | C6: 299884 | D6: 6597992 | E6: 按攤銷後成本衡量之金融資產－流動 | F6: 6597992
A7: 避險之金融資產－流動 | B7: 23497 | C7: 25884 | D7: 47 | E7: 避險之金融資產－流動 | F7: 47
A8: 合約資產－流動 | B8: 0 | C8: 0 | D8: 0 | E8: 合約資產－流動 | F8: 0
A9: 應收帳款及票據 | B9: 129197803 | C9: 139770659 | D9: 146038403 | E9: 應收帳款及票據 | F9: 146038403
A10: 其他應收款 | B10: 65028 | C10: 51653 | D10: 50645 | E10: 其他應收款 | F10: 50645
A11: 存貨 | B11: 103230976 | C11: 82981196 | D11: 137353407 | E11: 存貨 | F11: 137353407
A12: 預付費用及預付款 | B12: 0 | C12: 0 | D12: 0 | E12: 預付費用及預付款 | F12: 0
A13: 待出售非流動資產 | B13: 0 | C13: 0 | D13: 0 | E13: 待出售非流動資產 | F13: 0
A14: 其他流動資產 | B14: 5406423 | C14: 5320795 | D14: 6590191 | E14: 其他流動資產 | F14: 6590191
A15: 透過損益按公允價值衡量之金融資產－非流動 | B15: 0 | C15: 0 | D15: 0 | E15: 透過損益按公允價值衡量之金融資產－非流動 | F15: 0
A16: 透過其他綜合損益按公允價值衡量之金融資產－非流動 | B16: 3910681 | C16: 4124337 | D16: 4514940 | E16: 透過其他綜合損益按公允價值衡量之金融資產－非流動 | F16: 4514940
A17: 按攤銷後成本衡量之金融資產－非流動 | B17: 7528277 | C17: 7348914 | D17: 4372207 | E17: 按攤銷後成本衡量之金融資產－非流動 | F17: 4372207
A18: 合約資產－非流動 | B18: 0 | C18: 0 | D18: 0 | E18: 合約資產－非流動 | F18: 0
A19: 採權益法之長期股權投資 | B19: 17865838 | C19: 18698788 | D19: 18841061 | E19: 採權益法之長期股權投資 | F19: 18841061
A20: 不動產廠房及設備 | B20: 1072050279 | C20: 1352377405 | D20: 1555589120 | E20: 不動產廠房及設備 | F20: 1555589120
A21: 商譽淨額 | B21: 5795488 | C21: 5693376 | D21: 5436602 | E21: 商譽淨額 | F21: 5436602
A22: 遞延所得稅資產 | B22: 16806387 | C22: 17928358 | D22: 25958184 | E22: 遞延所得稅資產 | F22: 25958184
A23: 投資性不動產淨額 | B23: 0 | C23: 0 | D23: 0 | E23: 投資性不動產淨額 | F23: 0
A24: 其他非流動資產－其他 | B24: 3284718 | C24: 3827886 | D24: 5754024 | E24: 其他非流動資產－其他 | F24: 5754024
A25: 非流動資產 | B25: 1138448317 | C25: 1442191118 | D25: 1668526097 | E25: 非流動資產 | F25: 1668526097
A26: 短期借款 | B26: 88754640 | C26: 118522290 | D26: 88559026 | E26: 短期借款 | F26: 88559026
A27: 透過損益按公允價值衡量之金融負債－流動 | B27: 40825 | C27: 982349 | D27: 94128 | E27: 透過損益按公允價值衡量之金融負債－流動 | F27: 94128
A28: 避險之金融負債－流動 | B28: 155832 | C28: 1798 | D28: 1169 | E28: 避險之金融負債－流動 | F28: 1169
A29: 按攤銷後成本衡量之金融負債－流動 | B29: 0 | C29: 0 | D29: 0 | E29: 按攤銷後成本衡量之金融負債－流動 | F29: 0
A30: 合約負債－流動 | B30: 4684024 | C30: 6784323 | D30: 13775088 | E30: 合約負債－流動 | F30: 13775088
A31: 應付帳款及票據 | B31: 34357432 | C31: 40205966 | D31: 41095002 | E31: 應付帳款及票據 | F31: 41095002
A32: 其他應付款 | B32: 81586185 | C32: 310383861 | D32: 343209150 | E32: 其他應付款 | F32: 343209150
A33: 負債準備－流動 | B33: 0 | C33: 0 | D33: 0 | E33: 負債準備－流動 | F33: 0
A34: 其他金融負債－流動 | B34: 0 | C34: 0 | D34: 0 | E34: 其他金融負債－流動 | F34: 0
A35: 一年內到期長期負債 | B35: 34900000 | C35: 31800000 | D35: 2600000 | E35: 一年內到期長期負債 | F35: 2600000
A36: 其他流動負債 | B36: 57076595 | C36: 47313874 | D36: 72080147 | E36: 其他流動負債 | F36: 72080147
A37: 透過損益按公允價值衡量之金融負債－非流動 | B37: 0 | C37: 0 | D37: 0 | E37: 透過損益按公允價值衡量之金融負債－非流動 | F37: 0
A38: 避險之金融負債－非流動 | B38: 0 | C38: 0 | D38: 0 | E38: 避險之金融負債－非流動 | F38: 0
A39: 按攤銷後成本衡量之金融負債－非流動 | B39: 0 | C39: 0 | D39: 0 | E39: 按攤銷後成本衡量之金融負債－非流動 | F39: 0
A40: 應付公司債－非流動 | B40: 56900000 | C40: 25100000 | D40: 254105084 | E40: 應付公司債－非流動 | F40: 254105084
A41: 銀行借款－非流動 | B41: 0 | C41: 0 | D41: 1967611 | E41: 銀行借款－非流動 | F41: 1967611
A42: 其他長期借款－非流動 | B42: 0 | C42: 0 | D42: 0 | E42: 其他長期借款－非流動 | F42: 0
A43: 負債準備－非流動 | B43: 0 | C43: 0 | D43: 0 | E43: 負債準備－非流動 | F43: 0
A44: 應計退休金負債 | B44: 9651405 | C44: 9182496 | D44: 11914074 | E44: 應計退休金負債 | F44: 11914074
A45: 遞延所得稅 | B45: 233284 | C45: 344393 | D45: 1729941 | E45: 遞延所得稅 | F45: 1729941
A46: 其他非流動負債 | B46: 5304367 | C46: 2305183 | D46: 2660999 | E46: 其他非流動負債 | F46: 2660999
A47: 普通股股本 | B47: 259303805 | C47: 259303805 | D47: 259303805 | E47: 普通股股本 | F47: 259303805
A48: 特別股股本 | B48: 0 | C48: 0 | D48: 0 | E48: 特別股股本 | F48: 0
A49: 資本公積－發行溢價 | B49: 33077786 | C49: 33077786 | D49: 33077786 | E49: 資本公積－發行溢價 | F49: 33077786
A50: 法定盈餘公積 | B50: 276033811 | C50: 311146899 | D50: 311146899 | E50: 法定盈餘公積 | F50: 311146899
A51: 特別盈餘公積 | B51: 26907527 | C51: 10675106 | D51: 42259146 | E51: 特別盈餘公積 | F51: 42259146
A52: 國外營運機構財務報表換算之兌換差額 | B52: -12042347 | C52: -26871400 | D52: -57001627 | E52: 國外營運機構財務報表換算之兌換差額 | F52: -57001627
A53: 透過其他綜合損益按公允價值衡量之金融資產未實現損益 | B53: -3429324 | C53: -692959 | D53: 2321754 | E53: 透過其他綜合損益按公允價值衡量之金融資產未實現損益 | F53: 2321754
A54: 指定按公允價值衡量之金融負債信用風險變動影響數 | B54: 0 | C54: 0 | D54: 0 | E54: 指定按公允價值衡量之金融負債信用風險變動影響數 | F54: 0
A55: 確定福利計畫再衡量數 | B55: 0 | C55: 0 | D55: 0 | E55: 確定福利計畫再衡量數 | F55: 0
A56: 避險工具損益 | B56: 23601 | C56: -3820 | D56: 0 | E56: 避險工具損益 | F56: 0
A57: 非控制權益 | B57: 678731 | C57: 685302 | D57: 964743 | E57: 非控制權益 | F57: 964743
A58: 股東權益總額 | B58: 1677496396 | C58: 1622095426 | D58: 1850621999 | E58: 股東權益總額 | F58: 1850621999
G74: =83-55 -> 28

Sheet IFRS_note
A1: 2330 台積電
A2: Data Field | B2: 2019-09-27 | C2: 2019-12-31 | D2: 2020-03-31 | E2: 2020-06-30 | F2: 2020-09-30 | G2: 2020-12-31
A3: 財報附註TEJ是否完成Y/N | B3: Y | C3: Y | D3: Y | E3: Y | F3: Y | G3: Y
A4: 存貨費損─呆滯損失 | B4: 0 | C4: 0 | D4: 0 | E4: 0 | F4: 0 | G4: 0
A5: 存貨費損─少/多分攤 | B5: 0 | C5: 0 | D5: 0 | E5: 0 | F5: 0 | G5: 0
A6: 存貨費損─盤盈/虧 | B6: 0 | C6: 0 | D6: 0 | E6: 0 | F6: 0 | G6: 0
A7: 存貨費損─報廢 | B7: 0 | C7: 0 | D7: 0 | E7: 0 | F7: 0 | G7: 0
A8: 存貨費損─進貨合約損失 | B8: 0 | C8: 0 | D8: 0 | E8: 0 | F8: 0 | G8: 0
A9: 存貨費損─下腳及癈料收 | B9: 0 | C9: 0 | D9: 0 | E9: 0 | F9: 0 | G9: 0
A10: 存貨費損─其他 | B10: 0 | C10: 0 | D10: 0 | E10: 0 | F10: 0 | G10: 0
A11: 存貨相關費損合計 | B11: 0 | C11: 0 | D11: 0 | E11: 0 | F11: 0 | G11: 0
A12: 投資性不動產淨額 | B12: 0 | C12: 0 | D12: 0 | E12: 0 | F12: 0 | G12: 0
A13: 投資性不動產─成本 | B13: 0 | C13: 0 | D13: 0 | E13: 0 | F13: 0 | G13: 0
A14: 投資性不動產─重估增值 | B14: 0 | C14: 0 | D14: 0 | E14: 0 | F14: 0 | G14: 0
A15: 投資性不動產-累計公允價值變動數 | B15: 0 | C15: 0 | D15: 0 | E15: 0 | F15: 0 | G15: 0
A16: 投資性不動產─累計折舊 | B16: 0 | C16: 0 | D16: 0 | E16: 0 | F16: 0 | G16: 0
A17: 投資性不動產─累計減損 | B17: 0 | C17: 0 | D17: 0 | E17: 0 | F17: 0 | G17: 0
A18: 投資性不動產公允價值
A19: 員工福利負債準備─流動 | B19: 0 | C19: 0 | D19: 0 | E19: 0 | F19: 0 | G19: 0
A20: 保固之短期負債準備 | B20: 0 | C20: 0 | D20: 0 | E20: 0 | F20: 0 | G20: 0
A21: 重組之短期負債準備 | B21: 0 | C21: 0 | D21: 0 | E21: 0 | F21: 0 | G21: 0
A22: 有待法律程序決定之短期負債準備 | B22: 0 | C22: 0 | D22: 0 | E22: 0 | F22: 0 | G22: 0
A23: 虧損性合約之短期負債準備 | B23: 0 | C23: 0 | D23: 0 | E23: 0 | F23: 0 | G23: 0
A24: 除役、復原及修復成本之短期負債準備 | B24: 0 | C24: 0 | D24: 0 | E24: 0 | F24: 0 | G24: 0
A25: 銷貨退回及折讓之短期負債準備 | B25: 0 | C25: 0 | D25: 0 | E25: 0 | F25: 0 | G25: 0
A26: 保證合約之短期負債準備 | B26: 0 | C26: 0 | D26: 0 | E26: 0 | F26: 0 | G26: 0
A27: 其他短期負債準備 | B27: 0 | C27: 0 | D27: 0 | E27: 0 | F27: 0 | G27: 0
A28: 長期借款─銀行借款 | B28: 0 | C28: 0 | D28: 0 | E28: 0 | F28: 0 | G28: 0
A29: 長期負債─債券 | B29: 56900000 | C29: 56900000 | D29: 59275148 | E29: 95239681 | F29: 229645434 | G29: 256705084
A30: 公司債─不可轉換債 | B30: 56900000 | C30: 56900000 | D30: 59275148 | E30: 95239681 | F30: 229645434 | G30: 256705084
A31: 公司債─可轉換債 | B31: 0 | C31: 0 | D31: 0 | E31: 0 | F31: 0 | G31: 0
A32: 長期借款─應付租賃及分期 | B32: 0 | C32: 0 | D32: 0 | E32: 0 | F32: 0 | G32: 0
A33: 長期借款─政策性借款 | B33: 0 | C33: 0 | D33: 0 | E33: 0 | F33: 982449 | G33: 1967611
A34: 長期借款─重整債權 | B34: 0 | C34: 0 | D34: 0 | E34: 0 | F34: 0 | G34: 0
A35: 長期借款─其他借款 | B35: 0 | C35: 0 | D35: 0 | E35: 0 | F35: 0 | G35: 0
A36: 特別股負債 | B36: 0 | C36: 0 | D36: 0 | E36: 0 | F36: 0 | G36: 0
A37: 管理薪酬─薪資獎金等 | B37: 0 | C37: 0 | D37: 0 | E37: 0 | F37: 0 | G37: 0
A38: 管理薪酬─業務執行費 | B38: 0 | C38: 0 | D38: 0 | E38: 0 | F38: 0 | G38: 0
A39: 管理薪酬─酬勞 (盈餘分 | B39: 0 | C39: 0 | D39: 0 | E39: 0 | F39: 0 | G39: 0
A40: 管理薪酬─紅利 | B40: 0 | C40: 0 | D40: 0 | E40: 0 | F40: 0 | G40: 0
A41: 管理薪酬─其他 | B41: 0 | C41: 0
A42: 管理階層薪酬總額 | B42: 1249780 | C42: 1924877 | G42: 2669030
A43: 國外機構財務報表換算之兌換差額─OCI | B43: 2221268 | C43: -14689107 | D43: 3035024 | E43: -11690196 | F43: -17163363 | G43: -29847196
A44: 權益工具投資之利益〈損失〉─OCI | B44: 219784 | C44: 334327 | D44: -44047 | E44: -21710 | F44: 78311 | G44: 423697
A45: 備供出售金融資產未實現評價損益─OCI | B45: 2576461 | C45: 2566373 | D45: -210748 | E45: 2698399 | F45: 2600675 | G45: 2466711
A46: 現金流量避險─OCI
A47: 國外營運機構淨投資避險─OCI
A48: 重估價之利益〈損失〉─OCI | B48: 0 | C48: 0 | D48: 0 | E48: 0 | F48: 0 | G48: 0
A49: 確定福利計畫精算利益〈損失〉─OCI | B49: 0 | C49: 253895 | D49: 0 | E49: 0 | F49: 0 | G49: -3516749
A50: 採用權益法認列之關聯企業及合資之其他綜合損益之份額─OCI
A51: 其他綜合損益─其他─OCI
A52: 與其他綜合損益組成部分相關之所得稅─OCI
A53: 其他綜合損益─OCI | B53: 4917131 | C53: -11823562 | D53: 2647918 | E53: -9235568 | F53: -14670970 | G53: -30321802
A54: ROA(A)稅後息前 | B54: 10.95 | C54: 15.98 | D54: 5.1 | E54: 10.13 | F54: 15.36 | G54: 20.69
A55: ROE(A)－稅後 | B55: 14.04 | C55: 20.93 | D55: 7.1 | E55: 14.23 | F55: 22.01 | G55: 29.84
A56: ROA-綜合損益 | B56: 11.09 | C56: 15.32 | D56: 5.2 | E56: 9.7 | F56: 14.72 | G56: 19.41
A57: ROE-綜合損益 | B57: 14.35 | C57: 20.22 | D57: 7.26 | E57: 13.68 | F57: 21.15 | G57: 28.1

Sheet IFRS_IS(Q)
A1: 2330 台積電
A2: Data Field | B2: 2019-09-27 | C2: 2019-12-31 | D2: 2020-03-31 | E2: 2020-06-30 | F2: 2020-09-30 | G2: 2020-12-31
A3: 合併(Y/N) | B3: Y | C3: Y | D3: Y | E3: Y | F3: Y | G3: Y
A4: 營業收入淨額 | B4: 293045439 | C4: 317237065 | D4: 310597183 | E4: 310698367 | F4: 356426204 | G4: 361533057
A5: 營業成本 | B5: 153613278 | C5: 157996080 | D5: 149813002 | E5: 146005542 | F5: 165945534 | G5: 166344231
A6: 營業毛利 | B6: 139432161 | C6: 159240985 | D6: 160784181 | E6: 164692825 | F6: 190480670 | G6: 195188826
A7: 營業費用 | B7: 31378953 | C7: 34942621 | D7: 32323046 | E7: 33520709 | F7: 40891355 | G7: 38321439
A8: 其他收益及費損淨額 | B8: -146189 | C8: -15502 | D8: 68175 | E8: -8544 | F8: 445208 | G8: 205288
A9: 營業利益 | B9: 107887292 | C9: 124243722 | D9: 128521637 | E9: 131094538 | F9: 150047349 | G9: 157120174
A10: 利息收入 | B10: 3916098 | C10: 3317583 | D10: 2989069 | E10: 2478362 | F10: 1897963 | G10: 1653006
A11: 租金收入 | B11: 0 | C11: 0 | D11: 0 | E11: 0 | F11: 0 | G11: 0
A12: 其他收入-其他 | B12: 0 | C12: 0 | D12: 0 | E12: 343924 | F12: 117634 | G12: -438526
A13: 其他收入 | B13: 3918123 | C13: 3488423 | D13: 3099578 | E13: 2711777 | F13: 2015597 | G13: 1852055
A14: 處分不動產、廠房及設備利益 | B14: 0 | C14: 0 | D14: 0 | E14: 0 | F14: 0 | G14: 0
A15: 處分投資利益 | B15: 326682 | C15: 38688 | D15: 179412 | E15: 747507 | F15: 400332 | G15: 112169
A16: 外幣兌換利益 | B16: 530496 | C16: 1564721 | D16: 375791 | E16: 2779312 | F16: -3155103 | G16: 0
A17: 透過損益按公允價值衡量之金融資產（負債）利益 | B17: 18141 | C17: -18141 | D17: 0 | E17: 0 | F17: 4105213 | G17: 4139278
A18: 資產評價利益 | B18: 0 | C18: 0 | D18: 0 | E18: 0 | F18: 0 | G18: 0
A19: 金融資產減損迴轉利益 | B19: 0 | C19: 0 | D19: 0 | E19: 0 | F19: 0 | G19: 0
A20: 資產減損迴轉利益 | B20: 0 | C20: 0 | D20: 0 | E20: 0 | F20: 0 | G20: 0
A21: 不動產、廠房及設備減損迴轉利益 | B21: 0 | C21: 0 | D21: 0 | E21: 0 | F21: 0 | G21: 0
A22: 其他減損迴轉利益 | B22: 0 | C22: 0 | D22: 0 | E22: 0 | F22: 0 | G22: 0
A23: 處分不動產、廠房及設備損失 | B23: 0 | C23: 0 | D23: 0 | E23: 0 | F23: 0 | G23: 0
A24: 處分投資損失 | B24: 0 | C24: 0 | D24: 0 | E24: 0 | F24: 0 | G24: 0
A25: 外幣兌換損失 | B25: -507929 | C25: 0 | D25: 0 | E25: 0 | F25: 394836 | G25: 2908462
A26: 透過損益按公允價值衡量之金融資產（負債）損失 | B26: 940705 | C26: 1063070 | D26: 90963 | E26: 1416828 | F26: -1503129 | G26: -4662
A27: 資產減損損失 | B27: 0 | C27: 0 | D27: 0 | E27: 0 | F27: 0 | G27: 0
A28: 金融資產減損損失 | B28: 0 | C28: 0 | D28: 0 | E28: 0 | F28: 0 | G28: 0
A29: 不動產、廠房及設備減損損失 | B29: 0 | C29: 0 | D29: 0 | E29: 0 | F29: 0 | G29: 0
A30: 其他利益及損失-其他 | B30: 34846 | C30: 293368 | D30: -132055 | E30: 211282 | F30: 142133 | G30: 204811
A31: 其他利益及損失 | B31: 459563 | C31: 828657 | D31: 332185 | E31: 2321273 | F31: 2600868 | G31: 1552458
A32: 財務成本 | B32: 843434 | C32: 643597 | D32: 530564 | E32: 409145 | F32: 373164 | G32: 768582
A33: 採權益法之關聯企業及合資損益 | B33: 915714 | C33: 866482 | D33: 725968 | E33: 678757 | F33: 833165 | G33: 1354928
A34: 營業外收入及支出 | B34: 4448979 | C34: 4538251 | D34: 3625541 | E34: 5304100 | F34: 5076654 | G34: 3987187
A35: 稅前淨利 | B35: 112336271 | C35: 128781973 | D35: 132147178 | E35: 136398638 | F35: 155124003 | G35: 161107361
A36: 所得稅費用 | B36: 11233817 | C36: 12703779 | D36: 15084285 | E36: 15506124 | F36: 17745852 | G36: 18282837
A37: 合併總損益 | B37: 101102454 | C37: 116078194 | D37: 117062893 | E37: 120892514 | F37: 137378151 | G37: 142824524
A38: 國外機構財務報表換算之兌換差額─OCI | B38: -3286794 | C38: -16910375 | D38: 3035024 | E38: -14725220 | F38: -5473167 | G38: -12683833
A39: 權益工具投資之利益〈損失〉─OCI | B39: -9015 | C39: 114543 | D39: -44047 | E39: 22337 | F39: 100021 | G39: 345386
A40: 備供出售金融資產未實現評價損益─OCI | B40: 192177 | C40: -10088 | D40: -210748 | E40: 2909147 | F40: -97724 | G40: -133964
A41: 現金流量避險─OCI
A42: 國外營運機構淨投資避險─OCI
A43: 重估價之利益〈損失〉─OCI | B43: 0 | C43: 0 | D43: 0 | E43: 0 | F43: 0 | G43: 0
A44: 確定福利計畫精算利益〈損失〉─OCI | B44: 0 | C44: 253895 | D44: 0 | E44: 0 | F44: 0 | G44: -3516749
A45: 採用權益法認列之關聯企業及合資之其他綜合損益之份額─OCI
A46: 其他綜合損益─其他─OCI
A47: 與其他綜合損益組成部分相關之所得稅─OCI
A48: 其他綜合損益─OCI | B48: -3224875 | C48: -16740693 | D48: 2647918 | E48: -11883486 | F48: -5435402 | G48: -15650832
A49: 本期綜合損益總額 | B49: 97877579 | C49: 99337501 | D49: 119710811 | E49: 109009028 | F49: 131942749 | G49: 127173692
A50: 本期稅後淨利〈歸屬母公司股東〉 | B50: 101069886 | C50: 116035081 | D50: 116986720 | E50: 120822193 | F50: 137310040 | G50: 142766434
A51: 每股盈餘 | B51: 3.9 | C51: 4.47 | D51: 4.51 | E51: 4.66 | F51: 5.3 | G51: 5.51
A52: 營業毛利率 | B52: 47.58 | C52: 50.2 | D52: 51.77 | E52: 53.01 | F52: 53.44 | G52: 53.99
A53: 營業利益率 | B53: 36.82 | C53: 39.16 | D53: 41.38 | E53: 42.19 | F53: 42.1 | G53: 43.46
A54: 稅後淨利率 | B54: 34.5 | C54: 36.59 | D54: 37.69 | E54: 38.91 | F54: 38.54 | G54: 39.51
A55: 營收成長率 | B55: 12.56 | C55: 9.48 | D55: 42.02 | E55: 28.92 | F55: 21.63 | G55: 13.96
A56: 稅後淨利成長率 | B56: 13.47 | C56: 16.07 | D56: 90.7 | E56: 81.04 | F56: 35.88 | G56: 23.04
